Workbook

Sheet bianco

Sheet Autenticazione
B2: Richiesta di licenza d'uso per il programma ParaSol FC | K2: Password aspettata
K3: =100000+ROUND(+SQRT(codice_utente),0) -> 107816
B4: Inviare via mail a marketing@paradigmaitalia.it | K4: Giusta? | L4: =IF(OR(passord_OK=password,password="0321Para"),"OK","KO") -> OK
B7: Riservato all'ufficio Paradigma. | D7: Il vostro codice di abilitazione è: | G7: 0321Para
B9: Intestatario: | C9: Ditta:*
C10: Cognome:* | F10: Nome:*
C11: Indirizzo:*
C12: Città:* | F12: Provincia:*
C13: Telefono:* | F13: Fax:
C14: Email:
C15: * i dati sono obbligatori
B16: Agenzia Paradigma | D16: Partner Paradigma | G16: Altro
J17: TRUE | K17: 1
J18: FALSE | K18: 2
B19: Numero di serie: | C19: 61092556 | J19: FALSE | K19: 3
J20: =+IF(_age,1,IF(_pp,2,3)) -> 1
B21: Licenza d'uso:
B42: Autorizzo il trattamento dei miei dati.
B46: Data: | E46: Firma:
B47: =+NOW() -> 2021-01-26T14:21:16.450

Sheet inizio
C8: Dati generali impianto | F8: Energia solare mensile incidente sui collettori
C9: Oggetto, committente, località, dati collettori (tipo, superficie, inclinazione) | F9: Energia raggiante ricevuta (per metro2) in accordo alle norme UNI 8477 parte I
C10: ="Fabbisogno acqua calda sanitaria" -> Fabbisogno acqua calda sanitaria | D10: =IF(ACS=TRUE,"SI","") -> SI | F10: Risultati del calcolo - copertura solare
C11: Stima del fabbisogno energetico per l'aqua calda sanitaria. | F11: Riepilogo dei fabbisogni energetici, copertura solare
C12: ="Fabbisogno per riscaldamento" -> Fabbisogno per riscaldamento | D12: =IF(+INTEGRAZ=TRUE,"SI","") -> SI | F12: Relazione tecnica di riepilogo
C13: Stima del fabbisogno per integrazione riscaldamento - Periodo riscaldamento - Gradi giorno - Potenza caldaia | F13: Relazione con i principali dati di input e di output
F14: Bilancio economico impianto
F15: Risparmio annuo sulla bolletta grazie all'impianto solare

Sheet variabili (hidden)
A1: Accetto condizioni | C1: TRUE
A2: Fabbisogni scelti
B3: ACS | C3: TRUE | E3: =+IF(ACS,"ACS","")&IF(ACS,IF(INTEGRAZ," - ",""),"")&IF(INTEGRAZ,"RISC","") -> ACS - RISC
B4: INTEGRAZ | C4: TRUE
M6: Fogli:
A7: Località scelta | C7: 6 | I7: elenco valori in TabelleUNI, A5:C105 | M7: tab_UNI | N7: OK
M8: tab_bollitore | N8: OK
A9: Committente | C9: inserito direttamente nel foglio Dati, variabile "committente" | I9: testo libero
A10: Riferimento | C10: inserito direttamente nel foglio Dati, variabile "riferimento" | I10: testo libero
A12: Pannello scelto | C12: 4 | E12: =+superficie&" m2 / "&descrizpannelloscelto -> 2,4 m2 / AQUA PLASMA | I12: elenco valori in Tabelle
A14: Superficie | C14: inserito direttamente nel foglio Dati, variabile "superficie" | I14: valore libero
A15: Inclinazione | C15: inserito direttamente nel foglio Dati, variabile "inclinazione" | I15: elenco valori in Tabelle
A16: Azimut | C16: inserito direttamente nel foglio Dati, variabile "azimut" | I16: elenco valori in Tabelle
A19: AQUAsys | C19: TRUE
A20: Preriscaldo | C20: FALSE
A22: Bollitore scelto | C22: 3 | I22: elenco valori in Bollitori
A23: Numero bollitori scelti | C23: 1 | I23: libero inserimento
A24: Temperatura centrale termica | C24: 20 | I24: libero inserimento
A25: Bollitore di altra marca | C25: FALSE | I25: vero/falso
A26: Volume di altra marca | C26: 1500 | I26: libero inserimento
A27: K bollitore altra marca | C27: 4 | D27: W/K | I27: libero inserimento
A29: Scelta utilizzo ACS | C29: 3

Sheet Dati
C5: Dati impianto
C6: Committente: | E6: Nome committente | L6: Provincia: | N6: =VLOOKUP(localitascelta,Tab_UNI!AJ5:AL105,3,FALSE) -> Ascoli Piceno | R6: =+"Lat. = "&VLOOKUP(localitascelta,Tab_UNI!Z5:AG105,5,FALSE)&"°" -> Lat. = 42°
C8: Riferimento: | E8: Riferimento impianto
C10: Caratteristiche deI COLLETTORI
C11: Tipo: | E11: =+descrizpannelloscelto -> AQUA PLASMA | L11: Sup.apertura: | N11: 2.4 | O11: m2
C13: Inclinazione: | E13: 45 | F13: sull'orizzontale | L13: Azimut: | N13: -5 | O13: orientamento da sud
C14: =+Tabelle!H25 -> 
C15: Impianto solare
C16: Accumulo solare: | F16: =+tab_bollitore!I58 -> 543 | H16: litri | L16: Tecnologia Aqua: | Q16: =IF(aquasys=FALSE,"NO","SI") -> SI
D18: =+tab_bollitore!K58 -> Aqua 500 | L18: Solare come preriscaldo: | Q18: =IF(preriscaldo=FALSE,"NO","SI") -> NO

Sheet fabb_ACS
C5: Consumi: | D5: =IF(Tabelle5!H28="SI","Altro utilizzo",+Tabelle5!B28) -> abitazione S > 200 m2 | I5: Temperature: | K5: utilizzo: | L5: 40 | N5: Valore UNI: 40°C | O5: 45
D6: =IF(D5="altro utilizzo","",+Tabelle5!D28) -> 3.13 | E6: =+Tabelle5!E28 -> litri/G m2 | K6: ingresso: | L6: =+ROUND(Tabelle5!C39,0) -> 15 | M6: Valore UNI non modificabile | O6: 12
D7: =IF(D5="altro utilizzo","",+Tabelle5!G28) -> 80 | E7: =+Tabelle5!J28 -> m2/alloggio (1 alloggi) | O7: 8
D8: =+Tabelle5!H34 -> 250 | E8: litri / giorno (Vw) | I8: Profilo utilizzo: | K8: annuale | L8: =+Tabelle!B64 -> sempre 100%
D9: =+Tabelle5!E40 -> 7.267361111 | E9: kWh/giorno (inverno)
I10: Ricircolo:
C12: Periodo d'utilizzo
C13: gen | D13: feb | E13: mar | F13: apr | G13: mag | H13: giu | I13: lug | J13: ago | K13: sett | L13: ott | M13: nov | N13: dic
C14: 100 | D14: 100 | E14: 100 | F14: 100 | G14: 100 | H14: 100 | I14: 100 | J14: 100 | K14: 100 | L14: 100 | M14: 100 | N14: 100
C15: =+Tabelle5!E44 -> 225.2881944 | D15: =+Tabelle5!E45 -> 203.4861111 | E15: =+Tabelle5!E46 -> 225.2881944 | F15: =+Tabelle5!E47 -> 218.0208333 | G15: =+Tabelle5!E48 -> 225.2881944 | H15: =+Tabelle5!E49 -> 218.0208333 | I15: =+Tabelle5!E50 -> 225.2881944 | J15: =+Tabelle5!E51 -> 225.2881944 | K15: =+Tabelle5!E52 -> 218.0208333 | L15: =+Tabelle5!E53 -> 225.2881944 | M15: =+Tabelle5!E54 -> 218.0208333 | N15: =+Tabelle5!E55 -> 225.2881944
C17: Fabbisogno utile per ACS | F17: Qh,w: | G17: =SUM(C15:N15) -> 2652.586806 | I17: /anno
C18: Fabbisogno per distribuzione | F18: Ql,w,d: | G18: =+cti!F31+cti!H31 -> 470.9919444 | I18: /anno
C19: Fabbisogno erogazione | F19: Ql,w,er: | G19: =+cti!G31 -> 0 | I19: /anno
C20: Fabbisogno stoccaggio | F20: Ql,w,s: | G20: =+cti!I31 -> 574.656 | I20: /anno
C21: Totale fabbisogno sanitario | F21: Q,w,gn,out: | G21: =+G20+G19+G18+G17 -> 3698.23475 | I21: /anno
C24: =IF((D23+G23+J23+M23)>D8,"Attenzione: il totale supera il consumo giornaliero. Ricontrollare le percentuali!","") -> 

Sheet fabb_risc
C6: Inserire i fabbisogni per il riscaldamento / raffrescamento (kWh / mese):
D7: gen | E7: feb | F7: mar | G7: apr | H7: mag | I7: giu | J7: lug | K7: ago | L7: set | M7: ott | N7: nov | O7: dic
D11: =+D31*sup_risc -> 791.4420485 | E11: 731.4016173 | F11: 573.1132075 | G11: 365.7008086 | H11: 152.8301887 | I11: 0 | J11: 0 | K11: 0 | L11: 0 | M11: 229.245283 | N11: 496.6981132 | O11: 709.5687332
C14: Nel caso di fabbisogno stimato, inserire la superficie e il fabbisogno EPH:
C16: Superficie riscaldata | E16: 90 | F16: m2 | I16: Temp.min. progetto | K16: =VLOOKUP(localitascelta,Tab_UNI!Z5:AH105,9,FALSE) -> -2
C17: Fabbisogno EPH | E17: 45 | F17: kWh/m2 anno | I17: Temp. media invern. | K17: =IF(K18<138,AVERAGE(D28,E28,N28,O28),IF(K18<184,AVERAGE(D28,E28,F28,O28,N28,M28),AVERAGE(D28,E28,F28,O28,N28,M28,G28))) -> 9.8
I18: Giorni riscald. / zona | K18: =VLOOKUP(localitascelta,Tab_UNI!BK5:BO105,4,FALSE)&" / "&VLOOKUP(localitascelta,Tab_UNI!BK5:BO105,3,FALSE) -> 166 / D
I19: Gradi giorno | K19: =VLOOKUP(localitascelta,Tab_UNI!BK5:BO105,5,FALSE) -> 1698
D27: gen | E27: feb | F27: mar | G27: apr | H27: mag | I27: giu | J27: lug | K27: ago | L27: set | M27: ott | N27: nov | O27: dic
C28: T.media esterna | D28: =VLOOKUP(localitascelta,Tab_UNI!A5:P105,5,FALSE) -> 5.5 | E28: =VLOOKUP(localitascelta,Tab_UNI!A5:P105,6,FALSE) -> 6.6 | F28: =VLOOKUP(localitascelta,Tab_UNI!A5:P105,7,FALSE) -> 9.5 | G28: =VLOOKUP(localitascelta,Tab_UNI!A5:P105,8,FALSE) -> 13.3 | H28: =VLOOKUP(localitascelta,Tab_UNI!A5:P105,9,FALSE) -> 17.2 | I28: =VLOOKUP(localitascelta,Tab_UNI!A5:P105,10,FALSE) -> 21.7 | J28: =VLOOKUP(localitascelta,Tab_UNI!A5:P105,11,FALSE) -> 24.4 | K28: =VLOOKUP(localitascelta,Tab_UNI!A5:P105,12,FALSE) -> 24.3 | L28: =VLOOKUP(localitascelta,Tab_UNI!A5:P105,13,FALSE) -> 21.1 | M28: =VLOOKUP(localitascelta,Tab_UNI!A5:P105,14,FALSE) -> 15.8 | N28: =VLOOKUP(localitascelta,Tab_UNI!A5:P105,15,FALSE) -> 10.9 | O28: =VLOOKUP(localitascelta,Tab_UNI!A5:P105,16,FALSE) -> 7
C29: DT medio | D29: =20-D28 -> 14.5 | E29: =20-E28 -> 13.4 | F29: 10.5 | G29: 6.7 | H29: 2.8 | I29: -1.7 | J29: -4.4 | K29: -4.3 | L29: -1.1 | M29: 4.2 | N29: 9.1 | O29: 13
C30: DT medio | D30: =IF(D29<0,0,D29) -> 14.5 | E30: =IF(E29<0,0,E29) -> 13.4 | F30: 10.5 | G30: 6.7 | H30: 2.8 | I30: 0 | J30: 0 | K30: 0 | L30: 0 | M30: 4.2 | N30: 9.1 | O30: 13
C31: kWh/m2 mese | D31: =$E$17/SUM($D$30:$O$30)*D30 -> 8.793800539 | E31: 8.126684636 | F31: 6.367924528 | G31: 4.063342318 | H31: 1.698113208 | I31: 0 | J31: 0 | K31: 0 | L31: 0 | M31: 2.547169811 | N31: 5.518867925 | O31: 7.884097035
C32: kWh / giorno | D32: =+D31*24 -> 211.0512129 | E32: =+E31*24 -> 195.0404313 | F32: 152.8301887 | G32: 97.52021563 | H32: 40.75471698 | I32: 0 | J32: 0 | K32: 0 | L32: 0 | M32: 61.13207547 | N32: 132.4528302 | O32: 189.2183288
C33: gg | D33: 31 | E33: 28 | F33: 31 | G33: 30 | H33: 31 | I33: 30 | J33: 31 | K33: 31 | L33: 30 | M33: 31 | N33: 30 | O33: 31
C35: Usato da PARASOL | D35: 2 | E35: =+INTEGRAZ -> TRUE
D36: =IF(INTEGRAZ,IF($D$35=1,D8,D11),0) -> 791.4420485 | E36: 731.4016173 | F36: 573.1132075 | G36: 365.7008086 | H36: 152.8301887 | I36: 0 | J36: 0 | K36: 0 | L36: 0 | M36: 229.245283 | N36: 496.6981132 | O36: 709.5687332
C38: Parasol web
D39: 1 | E39: Fabbisogno inserito dall'utente | H39: =+IF(fabb_risc_stimato_utente=1,TRUE,FALSE) -> FALSE
D40: 2 | E40: Fabbisogno stimato | H40: =+IF(fabb_risc_stimato_utente=2,TRUE,FALSE) -> TRUE

Sheet UNI8477
D5: Un.Mis | E5: Gennaio | F5: Febbraio | G5: Marzo | H5: Aprile | I5: Maggio | J5: Giugno | K5: Luglio | L5: Agosto | M5: Settembre | N5: Ottobre | O5: Novembre | P5: Dicembre
C8: Hh | D8: MJ/m2g | E8: ='Dettaglio mesi'!E6 -> 5.4 | F8: ='Dettaglio mesi'!F6 -> 8.2 | G8: ='Dettaglio mesi'!G6 -> 12.6 | H8: ='Dettaglio mesi'!H6 -> 17.2 | I8: ='Dettaglio mesi'!I6 -> 20.8 | J8: ='Dettaglio mesi'!J6 -> 23.7 | K8: ='Dettaglio mesi'!K6 -> 25.6 | L8: ='Dettaglio mesi'!L6 -> 22.3 | M8: ='Dettaglio mesi'!M6 -> 16.3 | N8: ='Dettaglio mesi'!N6 -> 10.4 | O8: ='Dettaglio mesi'!O6 -> 6.4 | P8: ='Dettaglio mesi'!P6 -> 4.8
C9: r | D9: - | E9: ='Dettaglio mesi'!E4 -> 0.22 | F9: ='Dettaglio mesi'!F4 -> 0.22 | G9: ='Dettaglio mesi'!G4 -> 0.22 | H9: ='Dettaglio mesi'!H4 -> 0.22 | I9: ='Dettaglio mesi'!I4 -> 0.22 | J9: ='Dettaglio mesi'!J4 -> 0.22 | K9: ='Dettaglio mesi'!K4 -> 0.22 | L9: ='Dettaglio mesi'!L4 -> 0.22 | M9: ='Dettaglio mesi'!M4 -> 0.22 | N9: ='Dettaglio mesi'!N4 -> 0.22 | O9: ='Dettaglio mesi'!O4 -> 0.22 | P9: ='Dettaglio mesi'!P4 -> 0.22
C10: d | D10: ° | E10: ='Dettaglio mesi'!E7 -> -20.91696257 | F10: ='Dettaglio mesi'!F7 -> -12.95460809 | G10: ='Dettaglio mesi'!G7 -> -2.417734805 | H10: ='Dettaglio mesi'!H7 -> 9.414893347 | I10: ='Dettaglio mesi'!I7 -> 18.79191752 | J10: ='Dettaglio mesi'!J7 -> 23.085911 | K10: ='Dettaglio mesi'!K7 -> 21.18369356 | L10: ='Dettaglio mesi'!L7 -> 13.45495968 | M10: ='Dettaglio mesi'!M7 -> 2.216886783 | N10: ='Dettaglio mesi'!N7 -> -9.599397234 | O10: ='Dettaglio mesi'!O7 -> -18.91195474 | P10: ='Dettaglio mesi'!P7 -> -23.04962764
C11: ws | D11: ° | E11: ='Dettaglio mesi'!E9 -> 69.87091618 | F11: ='Dettaglio mesi'!F9 -> 78.04616877 | G11: ='Dettaglio mesi'!G9 -> 87.82124373 | H11: ='Dettaglio mesi'!H9 -> 98.58644367 | I11: ='Dettaglio mesi'!I9 -> 107.841256 | J11: ='Dettaglio mesi'!J9 -> 112.5688416 | K11: ='Dettaglio mesi'!K9 -> 110.4230408 | L11: ='Dettaglio mesi'!L9 -> 102.440135 | M11: ='Dettaglio mesi'!M9 -> 91.99749513 | N11: ='Dettaglio mesi'!N9 -> 81.2407933 | O11: ='Dettaglio mesi'!O9 -> 72.03191937 | P11: ='Dettaglio mesi'!P9 -> 67.47294773
C12: w' | D12: ° | E12: ='Dettaglio mesi'!E39 -> -69.87091618 | F12: ='Dettaglio mesi'!F39 -> -78.04616877 | G12: ='Dettaglio mesi'!G39 -> -87.82124373 | H12: ='Dettaglio mesi'!H39 -> -93.05894185 | I12: ='Dettaglio mesi'!I39 -> -92.55512385 | J12: ='Dettaglio mesi'!J39 -> -92.30680506 | K12: ='Dettaglio mesi'!K39 -> -92.42130472 | L12: ='Dettaglio mesi'!L39 -> -92.84961941 | M12: ='Dettaglio mesi'!M39 -> -92.00020845 | N12: ='Dettaglio mesi'!N39 -> -81.24318937 | O12: ='Dettaglio mesi'!O39 -> -72.03404384 | P12: ='Dettaglio mesi'!P39 -> -67.47493774
C13: w'' | D13: ° | E13: ='Dettaglio mesi'!E40 -> 69.87297691 | F13: ='Dettaglio mesi'!F40 -> 78.04847062 | G13: ='Dettaglio mesi'!G40 -> 86.58670286 | H13: ='Dettaglio mesi'!H40 -> 85.98592249 | I13: ='Dettaglio mesi'!I40 -> 85.48208963 | J13: ='Dettaglio mesi'!J40 -> 85.23376352 | K13: ='Dettaglio mesi'!K40 -> 85.34554074 | L13: ='Dettaglio mesi'!L40 -> 85.77385542 | M13: ='Dettaglio mesi'!M40 -> 86.35298166 | N13: ='Dettaglio mesi'!N40 -> 81.24318937 | O13: ='Dettaglio mesi'!O40 -> 72.03404384 | P13: ='Dettaglio mesi'!P40 -> 67.47493774
C14: KT | D14: - | E14: ='Dettaglio mesi'!E28 -> 0.3902802725 | F14: ='Dettaglio mesi'!F28 -> 0.4273406088 | G14: ='Dettaglio mesi'!G28 -> 0.4802762348 | H14: ='Dettaglio mesi'!H28 -> 0.5100907992 | I14: ='Dettaglio mesi'!I28 -> 0.531796804 | J14: ='Dettaglio mesi'!J28 -> 0.5731576294 | K14: ='Dettaglio mesi'!K28 -> 0.637099899 | L14: ='Dettaglio mesi'!L28 -> 0.6235334942 | M14: ='Dettaglio mesi'!M28 -> 0.5639398323 | N14: ='Dettaglio mesi'!N28 -> 0.4898983958 | O14: ='Dettaglio mesi'!O28 -> 0.4245687853 | P14: ='Dettaglio mesi'!P28 -> 0.3872666702
C15: R | D15: - | E15: ='Dettaglio mesi'!E30 -> 1.671895651 | F15: ='Dettaglio mesi'!F30 -> 1.45557448 | G15: ='Dettaglio mesi'!G30 -> 1.219312927 | H15: ='Dettaglio mesi'!H30 -> 1.013464571 | I15: ='Dettaglio mesi'!I30 -> 0.8870804845 | J15: ='Dettaglio mesi'!J30 -> 0.8332828691 | K15: ='Dettaglio mesi'!K30 -> 0.8539075546 | L15: ='Dettaglio mesi'!L30 -> 0.9681330483 | M15: ='Dettaglio mesi'!M30 -> 1.161257522 | N15: ='Dettaglio mesi'!N30 -> 1.412660196 | O15: ='Dettaglio mesi'!O30 -> 1.662965356 | P15: ='Dettaglio mesi'!P30 -> 1.767620765
C16: H | D16: MJ/m2g | E16: ='Dettaglio mesi'!E31 -> 9.028236516 | F16: ='Dettaglio mesi'!F31 -> 11.93571073 | G16: ='Dettaglio mesi'!G31 -> 15.36334288 | H16: ='Dettaglio mesi'!H31 -> 17.43159062 | I16: ='Dettaglio mesi'!I31 -> 18.45127408 | J16: ='Dettaglio mesi'!J31 -> 19.748804 | K16: ='Dettaglio mesi'!K31 -> 21.8600334 | L16: ='Dettaglio mesi'!L31 -> 21.58936698 | M16: ='Dettaglio mesi'!M31 -> 18.92849761 | N16: ='Dettaglio mesi'!N31 -> 14.69166604 | O16: ='Dettaglio mesi'!O31 -> 10.64297828 | P16: ='Dettaglio mesi'!P31 -> 8.484579672
C17: Htot | D17: MJ/m2 | E17: ='Dettaglio mesi'!E33 -> 279.875332 | F17: ='Dettaglio mesi'!F33 -> 334.1999005 | G17: ='Dettaglio mesi'!G33 -> 476.2636292 | H17: ='Dettaglio mesi'!H33 -> 522.9477185 | I17: ='Dettaglio mesi'!I33 -> 571.9894964 | J17: ='Dettaglio mesi'!J33 -> 592.4641199 | K17: ='Dettaglio mesi'!K33 -> 677.6610353 | L17: ='Dettaglio mesi'!L33 -> 669.2703763 | M17: ='Dettaglio mesi'!M33 -> 567.8549284 | N17: ='Dettaglio mesi'!N33 -> 455.4416472 | O17: ='Dettaglio mesi'!O33 -> 319.2893483 | P17: ='Dettaglio mesi'!P33 -> 263.0219698 | Q17: =SUM(E17:P17) -> 5730.279502
D18: kWh/m2 | E18: =E17*1000000/3600000 -> 77.74314778 | F18: =F17*1000000/3600000 -> 92.8333057 | G18: 132.2954526 | H18: 145.2632551 | I18: 158.8859712 | J18: 164.5733666 | K18: 188.2391765 | L18: 185.9084379 | M18: 157.7374801 | N18: 126.5115687 | O18: 88.69148565 | P18: 73.06165829 | Q18: =SUM(E18:P18) -> 1591.744306
C20: Tm | D20: ° | E20: ='Dettaglio mesi'!E37 -> 5.5 | F20: ='Dettaglio mesi'!F37 -> 6.6 | G20: ='Dettaglio mesi'!G37 -> 9.5 | H20: ='Dettaglio mesi'!H37 -> 13.3 | I20: ='Dettaglio mesi'!I37 -> 17.2 | J20: ='Dettaglio mesi'!J37 -> 21.7 | K20: ='Dettaglio mesi'!K37 -> 24.4 | L20: ='Dettaglio mesi'!L37 -> 24.3 | M20: ='Dettaglio mesi'!M37 -> 21.1 | N20: ='Dettaglio mesi'!N37 -> 15.8 | O20: ='Dettaglio mesi'!O37 -> 10.9 | P20: ='Dettaglio mesi'!P37 -> 7
C22: Il sole sorge:* | E22: =TRUNC('Dettaglio mesi'!E44)&"h "&(TRUNC(('Dettaglio mesi'!E44-TRUNC('Dettaglio mesi'!E44))*60)&"m") -> 7h 20m | F22: =TRUNC('Dettaglio mesi'!F44)&"h "&(TRUNC(('Dettaglio mesi'!F44-TRUNC('Dettaglio mesi'!F44))*60)&"m") -> 6h 47m | G22: =TRUNC('Dettaglio mesi'!G44)&"h "&(TRUNC(('Dettaglio mesi'!G44-TRUNC('Dettaglio mesi'!G44))*60)&"m") -> 6h 8m | H22: =TRUNC('Dettaglio mesi'!H44)&"h "&(TRUNC(('Dettaglio mesi'!H44-TRUNC('Dettaglio mesi'!H44))*60)&"m") -> 5h 47m | I22: =TRUNC('Dettaglio mesi'!I44)&"h "&(TRUNC(('Dettaglio mesi'!I44-TRUNC('Dettaglio mesi'!I44))*60)&"m") -> 5h 49m | J22: =TRUNC('Dettaglio mesi'!J44)&"h "&(TRUNC(('Dettaglio mesi'!J44-TRUNC('Dettaglio mesi'!J44))*60)&"m") -> 5h 50m | K22: =TRUNC('Dettaglio mesi'!K44)&"h "&(TRUNC(('Dettaglio mesi'!K44-TRUNC('Dettaglio mesi'!K44))*60)&"m") -> 5h 50m | L22: =TRUNC('Dettaglio mesi'!L44)&"h "&(TRUNC(('Dettaglio mesi'!L44-TRUNC('Dettaglio mesi'!L44))*60)&"m") -> 5h 48m | M22: =TRUNC('Dettaglio mesi'!M44)&"h "&(TRUNC(('Dettaglio mesi'!M44-TRUNC('Dettaglio mesi'!M44))*60)&"m") -> 5h 51m | N22: =TRUNC('Dettaglio mesi'!N44)&"h "&(TRUNC(('Dettaglio mesi'!N44-TRUNC('Dettaglio mesi'!N44))*60)&"m") -> 6h 35m | O22: =TRUNC('Dettaglio mesi'!O44)&"h "&(TRUNC(('Dettaglio mesi'!O44-TRUNC('Dettaglio mesi'!O44))*60)&"m") -> 7h 11m | P22: =TRUNC('Dettaglio mesi'!P44)&"h "&(TRUNC(('Dettaglio mesi'!P44-TRUNC('Dettaglio mesi'!P44))*60)&"m") -> 7h 30m
C23: Il sole tramonta:* | E23: =TRUNC('Dettaglio mesi'!E45)&"h "&(TRUNC(('Dettaglio mesi'!E45-TRUNC('Dettaglio mesi'!E45))*60)&"m") -> 16h 39m | F23: =TRUNC('Dettaglio mesi'!F45)&"h "&(TRUNC(('Dettaglio mesi'!F45-TRUNC('Dettaglio mesi'!F45))*60)&"m") -> 17h 12m | G23: =TRUNC('Dettaglio mesi'!G45)&"h "&(TRUNC(('Dettaglio mesi'!G45-TRUNC('Dettaglio mesi'!G45))*60)&"m") -> 17h 46m | H23: =TRUNC('Dettaglio mesi'!H45)&"h "&(TRUNC(('Dettaglio mesi'!H45-TRUNC('Dettaglio mesi'!H45))*60)&"m") -> 17h 43m | I23: =TRUNC('Dettaglio mesi'!I45)&"h "&(TRUNC(('Dettaglio mesi'!I45-TRUNC('Dettaglio mesi'!I45))*60)&"m") -> 17h 41m | J23: =TRUNC('Dettaglio mesi'!J45)&"h "&(TRUNC(('Dettaglio mesi'!J45-TRUNC('Dettaglio mesi'!J45))*60)&"m") -> 17h 40m | K23: =TRUNC('Dettaglio mesi'!K45)&"h "&(TRUNC(('Dettaglio mesi'!K45-TRUNC('Dettaglio mesi'!K45))*60)&"m") -> 17h 41m | L23: =TRUNC('Dettaglio mesi'!L45)&"h "&(TRUNC(('Dettaglio mesi'!L45-TRUNC('Dettaglio mesi'!L45))*60)&"m") -> 17h 43m | M23: =TRUNC('Dettaglio mesi'!M45)&"h "&(TRUNC(('Dettaglio mesi'!M45-TRUNC('Dettaglio mesi'!M45))*60)&"m") -> 17h 45m | N23: =TRUNC('Dettaglio mesi'!N45)&"h "&(TRUNC(('Dettaglio mesi'!N45-TRUNC('Dettaglio mesi'!N45))*60)&"m") -> 17h 24m | O23: =TRUNC('Dettaglio mesi'!O45)&"h "&(TRUNC(('Dettaglio mesi'!O45-TRUNC('Dettaglio mesi'!O45))*60)&"m") -> 16h 48m | P23: =TRUNC('Dettaglio mesi'!P45)&"h "&(TRUNC(('Dettaglio mesi'!P45-TRUNC('Dettaglio mesi'!P45))*60)&"m") -> 16h 29m
C24: * sul collettore
C25: Località | E25: Inclinazione | H25: Hh | I25: Radiazione media globale al suolo sul piano orizzontale secondo UNI 10349
C26: =Dati!N6 -> Ascoli Piceno | E26: =Dati!E13 -> 45 | H26: H | I26: Irraggiamento medio giornaliero sulla superficie considerata
C27: Latitudine | E27: Azimut | H27: Htot | I27: Irraggiamento mensile sulla superficie considerata in assenza di ostruzioni ai raggi solari
C28: =Dati!R6 -> Lat. = 42° | E28: =Dati!N13 -> -5 | H28: Tm | I28: Temperatura media esterna giornaliera

Sheet riepilogo
E6: Radiazione | F6: Energia fornita | G6: Fabbisogno al generatore (*) | J6: Copertura
E7: sui collett. | F7: imp.solare | G7: ACS | H7: Riscald. | I7: Totale | J7: ACS | L7: RISCALDAMENTO | N7: Totale
E8: kWh | F8: kWh | G8: kWh | H8: kWh | I8: kWh | J8: kWh | K8: % | L8: kWh | M8: % | N8: %
C9: gennaio | E9: ='UNI8477'!E18*superficie -> 186.5835547 | F9: =+fc!AE35 -> 99.02414445 | G9: =+fc!S35 -> 314.09665 | H9: =+fc!R35 -> 720.2122642 | I9: =SUM(G9:H9) -> 1034.308914 | J9: =+fc!AD35 -> 29.48390473 | K9: =IF(ISERROR(+fc!AH35),,+fc!AH35) -> 0.09386889267 | L9: =+fc!AC35 -> 69.54023973 | M9: =IF(ISERROR(+fc!AG35),,+fc!AG35) -> 0.09655520072 | N9: =IF(ISERROR(+fc!AF35),,+fc!AF35) -> 0.09573942862
C10: febbraio | E10: ='UNI8477'!F18*superficie -> 222.7999337 | F10: =+fc!AE36 -> 125.7389568 | G10: =+fc!S36 -> 283.7002 | H10: =+fc!R36 -> 665.5754717 | I10: =SUM(G10:H10) -> 949.2756717 | J10: =+fc!AD36 -> 37.13293867 | K10: =IF(ISERROR(+fc!AH36),,+fc!AH36) -> 0.1308879538 | L10: =+fc!AC36 -> 88.60601812 | M10: =IF(ISERROR(+fc!AG36),,+fc!AG36) -> 0.1331269283 | N10: =IF(ISERROR(+fc!AF36),,+fc!AF36) -> 0.1324577892
C11: marzo | E11: ='UNI8477'!G18*superficie -> 317.5090861 | F11: =+fc!AE37 -> 183.435262 | G11: =+fc!S37 -> 314.09665 | H11: =+fc!R37 -> 521.5330189 | I11: 835.6296689 | J11: =+fc!AD37 -> 68.66356913 | K11: =IF(ISERROR(+fc!AH37),,+fc!AH37) -> 0.2186064994 | L11: =+fc!AC37 -> 114.7716929 | M11: =IF(ISERROR(+fc!AG37),,+fc!AG37) -> 0.2200660145 | N11: =IF(ISERROR(+fc!AF37),,+fc!AF37) -> 0.2195174117
C12: aprile | E12: ='UNI8477'!H18*superficie -> 348.6318123 | F12: =+fc!AE38 -> 200.3368312 | G12: =+fc!S38 -> 303.9645 | H12: =+fc!R38 -> 332.7877358 | I12: 636.7522358 | J12: =+fc!AD38 -> 95.69445618 | K12: =IF(ISERROR(+fc!AH38),,+fc!AH38) -> 0.314821159 | L12: =+fc!AC38 -> 104.642375 | M12: =IF(ISERROR(+fc!AG38),,+fc!AG38) -> 0.314441801 | N12: =IF(ISERROR(+fc!AF38),,+fc!AF38) -> 0.314622894
C13: maggio | E13: ='UNI8477'!I18*superficie -> 381.326331 | F13: =+fc!AE39 -> 211.1465685 | G13: =+fc!S39 -> 314.09665 | H13: =+fc!R39 -> 139.0754717 | I13: 453.1721217 | J13: =+fc!AD39 -> 146.7150565 | K13: =IF(ISERROR(+fc!AH39),,+fc!AH39) -> 0.4671016279 | L13: =+fc!AC39 -> 64.43151196 | M13: =IF(ISERROR(+fc!AG39),,+fc!AG39) -> 0.4632845114 | N13: =IF(ISERROR(+fc!AF39),,+fc!AF39) -> 0.4659301805
C14: giugno | E14: ='UNI8477'!J18*superficie -> 394.9760799 | F14: =+fc!AE40 -> 205.6677259 | G14: =+fc!S40 -> 303.9645 | H14: =+fc!R40 -> 0 | I14: 303.9645 | J14: =+fc!AD40 -> 205.6677259 | K14: =IF(ISERROR(+fc!AH40),,+fc!AH40) -> 0.6766175849 | L14: =+fc!AC40 -> 0 | M14: =IF(ISERROR(+fc!AG40),,+fc!AG40) -> 0 | N14: =IF(ISERROR(+fc!AF40),,+fc!AF40) -> 0.6766175849
C15: luglio | E15: ='UNI8477'!K18*superficie -> 451.7740235 | F15: =+fc!AE41 -> 233.0589481 | G15: =+fc!S41 -> 314.09665 | H15: =+fc!R41 -> 0 | I15: 314.09665 | J15: =+fc!AD41 -> 233.0589481 | K15: =IF(ISERROR(+fc!AH41),,+fc!AH41) -> 0.7419975606 | L15: =+fc!AC41 -> 0 | M15: =IF(ISERROR(+fc!AG41),,+fc!AG41) -> 0 | N15: =IF(ISERROR(+fc!AF41),,+fc!AF41) -> 0.7419975606
C16: agosto | E16: ='UNI8477'!L18*superficie -> 446.1802508 | F16: =+fc!AE42 -> 230.6481489 | G16: =+fc!S42 -> 314.09665 | H16: =+fc!R42 -> 0 | I16: 314.09665 | J16: =+fc!AD42 -> 230.6481489 | K16: =IF(ISERROR(+fc!AH42),,+fc!AH42) -> 0.7343222186 | L16: =+fc!AC42 -> 0 | M16: =IF(ISERROR(+fc!AG42),,+fc!AG42) -> 0 | N16: =IF(ISERROR(+fc!AF42),,+fc!AF42) -> 0.7343222186
C17: settembre | E17: ='UNI8477'!M18*superficie -> 378.5699523 | F17: =+fc!AE43 -> 197.9578427 | G17: =+fc!S43 -> 303.9645 | H17: =+fc!R43 -> 0 | I17: 303.9645 | J17: =+fc!AD43 -> 197.9578427 | K17: =IF(ISERROR(+fc!AH43),,+fc!AH43) -> 0.651253165 | L17: =+fc!AC43 -> 0 | M17: =IF(ISERROR(+fc!AG43),,+fc!AG43) -> 0 | N17: =IF(ISERROR(+fc!AF43),,+fc!AF43) -> 0.651253165
C18: ottobre | E18: ='UNI8477'!N18*superficie -> 303.6277648 | F18: =+fc!AE44 -> 170.8017586 | G18: =+fc!S44 -> 314.09665 | H18: =+fc!R44 -> 208.6132075 | I18: 522.7098575 | J18: =+fc!AD44 -> 102.923497 | K18: =IF(ISERROR(+fc!AH44),,+fc!AH44) -> 0.3276809766 | L18: =+fc!AC44 -> 67.87826157 | M18: =IF(ISERROR(+fc!AG44),,+fc!AG44) -> 0.3253785432 | N18: =IF(ISERROR(+fc!AF44),,+fc!AF44) -> 0.3267620768
C19: novembre | E19: ='UNI8477'!O18*superficie -> 212.8595656 | F19: =+fc!AE45 -> 117.7599336 | G19: =+fc!S45 -> 303.9645 | H19: =+fc!R45 -> 451.995283 | I19: 755.959783 | J19: =+fc!AD45 -> 47.19268673 | K19: =IF(ISERROR(+fc!AH45),,+fc!AH45) -> 0.1552572315 | L19: =+fc!AC45 -> 70.56724688 | M19: =IF(ISERROR(+fc!AG45),,+fc!AG45) -> 0.1561238569 | N19: =IF(ISERROR(+fc!AF45),,+fc!AF45) -> 0.1557753947
C20: dicembre | E20: ='UNI8477'!P18*superficie -> 175.3479799 | F20: =+fc!AE46 -> 91.86115233 | G20: =+fc!S46 -> 314.09665 | H20: =+fc!R46 -> 645.7075472 | I20: 959.8041972 | J20: =+fc!AD46 -> 29.57884984 | K20: =IF(ISERROR(+fc!AH46),,+fc!AH46) -> 0.09417117258 | L20: =+fc!AC46 -> 62.28230249 | M20: =IF(ISERROR(+fc!AG46),,+fc!AG46) -> 0.09645589984 | N20: =IF(ISERROR(+fc!AF46),,+fc!AF46) -> 0.09570822111
C21: Totale | E21: =SUM(E9:E20) -> 3820.186335 | F21: 2067.437273 | G21: 3698.23475 | H21: 3685.5 | I21: 7383.73475 | J21: 1424.717624 | K21: =IF(ISERROR(+fc!AH47),,+fc!AH47) -> 0.3852426146 | L21: =SUM(L9:L20) -> 642.7196487 | M21: =IF(ISERROR(+fc!AG47),,+fc!AG47) -> 0.1743914391 | N21: =IF(ISERROR(+fc!AF47),,+fc!AF47) -> 0.2799988546
C23: Resa dell'impianto solare: | F23: =+pr_disp/superficie -> 861.4321971 | G23: kWh/m2 anno | M23: % solare su E.prim. ACS: | N23: =+cti_show!K48 -> 0.3434077173
C55: (*) per ACS: fabbisogno utile + dispersioni accumulo, distribuzione, erogazione - per RISC: fabbisogno termico al generatore
C56: Non sono considerati i fenomeni di ombreggiamento e/o di ostruzione ai raggi solari dati da ostacoli presenti in sito o dal profilo orografico circostante.
C57: Paradigma s.r.l. non si assume alcuna responsabilità per i dati forniti da ParaSol, che sono puramente indicativi e soggetti a calcolo più dettagliato.

Sheet grafico1 (hidden)

Sheet relazione
D4: Simulazione impianto solare
D6: Committente: | F6: =+committente -> Nome committente
D7: Riferimento: | F7: =+riferimento -> Riferimento impianto
D8: Data: | F8: =+TODAY() -> 2021-01-26
D10: Dati generali
D11: Località e dati climatici: | I11: =+Dati!N6 -> Ascoli Piceno
D12: Tipologia collettori: | I12: =+Dati!E11 -> AQUA PLASMA
D13: Superficie collettori: | I13: =+superficie -> 2.4 | J13: m2
D14: Inclinazione: | I14: =+Dati!E13 -> 45 | J14: °
D15: Azimut: | I15: =+Dati!N13 -> -5 | J15: °
D16: Volume accumulo solare | I16: =+volume -> 543 | J16: litri
D18: Fabbisogno acqua sanitaria | G18: =+ACS -> TRUE
D19: Tipologia | I19: =IF(G18,+fabb_ACS!D5,"-") -> abitazione S > 200 m2
D20: Utenza | I20: =IF(G18,+fabb_ACS!D6&" "&fabb_ACS!E6,"-") -> 3,13 litri/G m2
I21: =IF(G18,+fabb_ACS!D7,"-") -> 80 | J21: =+fabb_ACS!E7 -> m2/alloggio (1 alloggi)
D22: Consumo giornaliero | I22: =IF(G18,++fabb_ACS!D8,"-") -> 250 | J22: =+fabb_ACS!E8 -> litri / giorno (Vw)
D23: Ricircolo | I23: =IF(G18,IF(+Tabelle5!C36,"Presente","Assente"),"-") -> Presente
D24: Temperatura ACS: | I24: =IF(G18,+fabb_ACS!L5,"-") -> 40 | J24: °C
D25: Temperature acqua fredda: | I25: =IF(G18,+fabb_ACS!L6& "°C (estate) / "&fabb_ACS!L7&"°C (inverno)","-") -> 15°C (estate) / °C (inverno)
D26: Fabbisogno energetico giornaliero | I26: =IF(G18,+fabb_ACS!D9,"-") -> 7.267361111 | J26: kWh/giorno
D27: Fabbisogno annuo per ACS (comprese dispersioni ricircolo): | I27: =IF(G18,+fabb_ACS!G17+fabb_ACS!G18,"-") -> 3123.57875 | J27: kWh
D29: Fabbisogno per riscaldamento | H29: =+INTEGRAZ -> TRUE
D30: Fabbisogno annuo per riscaldamento: | I30: =+riepilogo!H21 -> 3685.5 | J30: kWh
D56: Risultati solari:
D58: Potenza solare installata: | H58: =+superficie*0.7 -> 1.68 | I58: kW
D59: Radiazione sui collettori solari: | H59: =+riepilogo!E21 -> 3820.186335 | I59: kWh / anno
D60: Energia fornita dai collettori: | H60: =+pr_disp -> 2067.437273 | I60: kWh / anno
D61: - di cui per ACS: | H61: =+riepilogo!J21 -> 1424.717624 | I61: kWh / anno
D62: - di cui per riscaldamento: | H62: =+riepilogo!L21 -> 642.7196487 | I62: kWh / anno
D65: =+riepilogo!C23 -> Resa dell'impianto solare: | H65: =+riepilogo!F23 -> 861.4321971 | I65: kWh/m2 anno
D66: ="Risparmio "&Tabelle6!E10&" all'anno:" -> Risparmio metano all'anno: | H66: =+comb_evitato -> 241 | I66: =+unità_comb -> m3 di metano
D67: CO2 evitata: | H67: =+Tabelle6!G20 -> 474.77 | I67: kg/anno
E71: Energia | F71: Fabbisogno (*) | I71: Copertura solare (*)
E72: solare | F72: Qw,gn,out | G72: QH,gn,out | H72: Qgn,out | I72: Qw,sol,out | J72: fw | K72: QH,sol,out | L72: fH | M72: f
E73: prodotta | F73: ACS | G73: Riscald. | H73: Totale | I73: ACS | J73: ACS | K73: Riscald. | L73: Riscald. | M73: Totale
E74: kWh | F74: kWh | G74: kWh | H74: kWh | I74: kWh | J74: % | K74: kWh | L74: % | M74: %
D75: gen | E75: =+riepilogo!F9 -> 99.02414445 | F75: =+riepilogo!G9 -> 314.09665 | G75: =+riepilogo!H9 -> 720.2122642 | H75: =+riepilogo!I9 -> 1034.308914 | I75: =+riepilogo!J9 -> 29.48390473 | J75: =+riepilogo!K9 -> 0.09386889267 | K75: =+riepilogo!L9 -> 69.54023973 | L75: =+riepilogo!M9 -> 0.09655520072 | M75: =+riepilogo!N9 -> 0.09573942862
D76: feb | E76: =+riepilogo!F10 -> 125.7389568 | F76: =+riepilogo!G10 -> 283.7002 | G76: =+riepilogo!H10 -> 665.5754717 | H76: =+riepilogo!I10 -> 949.2756717 | I76: =+riepilogo!J10 -> 37.13293867 | J76: =+riepilogo!K10 -> 0.1308879538 | K76: =+riepilogo!L10 -> 88.60601812 | L76: =+riepilogo!M10 -> 0.1331269283 | M76: =+riepilogo!N10 -> 0.1324577892
D77: mar | E77: =+riepilogo!F11 -> 183.435262 | F77: =+riepilogo!G11 -> 314.09665 | G77: =+riepilogo!H11 -> 521.5330189 | H77: =+riepilogo!I11 -> 835.6296689 | I77: =+riepilogo!J11 -> 68.66356913 | J77: =+riepilogo!K11 -> 0.2186064994 | K77: =+riepilogo!L11 -> 114.7716929 | L77: =+riepilogo!M11 -> 0.2200660145 | M77: =+riepilogo!N11 -> 0.2195174117
D78: apr | E78: =+riepilogo!F12 -> 200.3368312 | F78: =+riepilogo!G12 -> 303.9645 | G78: =+riepilogo!H12 -> 332.7877358 | H78: =+riepilogo!I12 -> 636.7522358 | I78: =+riepilogo!J12 -> 95.69445618 | J78: =+riepilogo!K12 -> 0.314821159 | K78: =+riepilogo!L12 -> 104.642375 | L78: =+riepilogo!M12 -> 0.314441801 | M78: =+riepilogo!N12 -> 0.314622894
D79: mag | E79: =+riepilogo!F13 -> 211.1465685 | F79: =+riepilogo!G13 -> 314.09665 | G79: =+riepilogo!H13 -> 139.0754717 | H79: =+riepilogo!I13 -> 453.1721217 | I79: =+riepilogo!J13 -> 146.7150565 | J79: =+riepilogo!K13 -> 0.4671016279 | K79: =+riepilogo!L13 -> 64.43151196 | L79: =+riepilogo!M13 -> 0.4632845114 | M79: =+riepilogo!N13 -> 0.4659301805
D80: giu | E80: =+riepilogo!F14 -> 205.6677259 | F80: =+riepilogo!G14 -> 303.9645 | G80: =+riepilogo!H14 -> 0 | H80: =+riepilogo!I14 -> 303.9645 | I80: =+riepilogo!J14 -> 205.6677259 | J80: =+riepilogo!K14 -> 0.6766175849 | K80: =+riepilogo!L14 -> 0 | L80: =+riepilogo!M14 -> 0 | M80: =+riepilogo!N14 -> 0.6766175849
D81: lug | E81: =+riepilogo!F15 -> 233.0589481 | F81: =+riepilogo!G15 -> 314.09665 | G81: =+riepilogo!H15 -> 0 | H81: =+riepilogo!I15 -> 314.09665 | I81: =+riepilogo!J15 -> 233.0589481 | J81: =+riepilogo!K15 -> 0.7419975606 | K81: =+riepilogo!L15 -> 0 | L81: =+riepilogo!M15 -> 0 | M81: =+riepilogo!N15 -> 0.7419975606
D82: ago | E82: =+riepilogo!F16 -> 230.6481489 | F82: =+riepilogo!G16 -> 314.09665 | G82: =+riepilogo!H16 -> 0 | H82: =+riepilogo!I16 -> 314.09665 | I82: =+riepilogo!J16 -> 230.6481489 | J82: =+riepilogo!K16 -> 0.7343222186 | K82: =+riepilogo!L16 -> 0 | L82: =+riepilogo!M16 -> 0 | M82: =+riepilogo!N16 -> 0.7343222186
D83: set | E83: =+riepilogo!F17 -> 197.9578427 | F83: =+riepilogo!G17 -> 303.9645 | G83: =+riepilogo!H17 -> 0 | H83: =+riepilogo!I17 -> 303.9645 | I83: =+riepilogo!J17 -> 197.9578427 | J83: =+riepilogo!K17 -> 0.651253165 | K83: =+riepilogo!L17 -> 0 | L83: =+riepilogo!M17 -> 0 | M83: =+riepilogo!N17 -> 0.651253165
D84: ott | E84: =+riepilogo!F18 -> 170.8017586 | F84: =+riepilogo!G18 -> 314.09665 | G84: =+riepilogo!H18 -> 208.6132075 | H84: =+riepilogo!I18 -> 522.7098575 | I84: =+riepilogo!J18 -> 102.923497 | J84: =+riepilogo!K18 -> 0.3276809766 | K84: =+riepilogo!L18 -> 67.87826157 | L84: =+riepilogo!M18 -> 0.3253785432 | M84: =+riepilogo!N18 -> 0.3267620768
D85: nov | E85: =+riepilogo!F19 -> 117.7599336 | F85: =+riepilogo!G19 -> 303.9645 | G85: =+riepilogo!H19 -> 451.995283 | H85: =+riepilogo!I19 -> 755.959783 | I85: =+riepilogo!J19 -> 47.19268673 | J85: =+riepilogo!K19 -> 0.1552572315 | K85: =+riepilogo!L19 -> 70.56724688 | L85: =+riepilogo!M19 -> 0.1561238569 | M85: =+riepilogo!N19 -> 0.1557753947
D86: dic | E86: =+riepilogo!F20 -> 91.86115233 | F86: =+riepilogo!G20 -> 314.09665 | G86: =+riepilogo!H20 -> 645.7075472 | H86: =+riepilogo!I20 -> 959.8041972 | I86: =+riepilogo!J20 -> 29.57884984 | J86: =+riepilogo!K20 -> 0.09417117258 | K86: =+riepilogo!L20 -> 62.28230249 | L86: =+riepilogo!M20 -> 0.09645589984 | M86: =+riepilogo!N20 -> 0.09570822111
D87: =+riepilogo!C21 -> Totale | E87: =+riepilogo!F21 -> 2067.437273 | F87: =+riepilogo!G21 -> 3698.23475 | G87: =+riepilogo!H21 -> 3685.5 | H87: =+riepilogo!I21 -> 7383.73475 | I87: =SUM(I75:I86) -> 1424.717624 | J87: =+riepilogo!K21 -> 0.3852426146 | K87: =SUM(K75:K86) -> 642.7196487 | L87: =+riepilogo!M21 -> 0.1743914391 | M87: =+riepilogo!N21 -> 0.2799988546
C90: (*) per ACS: fabbisogno utile + dispersioni accumulo, distribuzione, erogazione - per RISC: fabbisogno termico al generatore Non sono considerati i fenomeni di ombreggiamento e/o di ostruzione ai raggi solari dati da ostacoli presenti in sito o dal profilo orografico circostante. Paradigma non fornisce alcuna garanzia, né esplicita né implicita e non si assume alcuna responsabilità per i dati forniti dalla presente simulazione. Essi sono puramente indicativi e soggetti a calcolo più dettagliato. Paradigma non garantisce l'uso del software in tutte le situazioni.
H106: =+Tabelle5!H34 -> 250 | K106: litri
G113: =365*Tabelle5!H34 -> 91250 | K113: litri
E122: =+J87 -> 0.3852426146 | G122: = | H122: =+E122*G113 -> 35153.38858 | K122: litri/anno
E133: =+ROUND(H67/1000*20/0.2,0) -> 47

Sheet Dettaglio mesi (hidden)
E1: GENNAIO | F1: FEBBRAIO | G1: MARZO | H1: APRILE | I1: MAGGIO | J1: GIUGNO | K1: LUGLIO | L1: AGOSTO | M1: SETTEMBRE | N1: OTTOBRE | O1: NOVEMBRE | P1: DICEMBRE
A2: Componente diffusa della radiazione | C2: Hdh | D2: MJ/m2 | E2: =VLOOKUP(localitascelta,Tab_UNI!AJ5:BJ105,4,FALSE) -> 2.8 | F2: =VLOOKUP(localitascelta,Tab_UNI!AJ5:BJ105,6,FALSE) -> 3,8 | G2: =VLOOKUP(localitascelta,Tab_UNI!AJ5:BJ105,8,FALSE) -> 5,3 | H2: =VLOOKUP(localitascelta,Tab_UNI!AJ5:BJ105,10,FALSE) -> 6,8 | I2: =VLOOKUP(localitascelta,Tab_UNI!AJ5:BJ105,12,FALSE) -> 7,8 | J2: =VLOOKUP(localitascelta,Tab_UNI!AJ5:BJ105,14,FALSE) -> 8,0 | K2: =VLOOKUP(localitascelta,Tab_UNI!AJ5:BJ105,16,FALSE) -> 7,1 | L2: =VLOOKUP(localitascelta,Tab_UNI!AJ5:BJ105,18,FALSE) -> 6,3 | M2: =VLOOKUP(localitascelta,Tab_UNI!AJ5:BJ105,20,FALSE) -> 5,5 | N2: =VLOOKUP(localitascelta,Tab_UNI!AJ5:BJ105,22,FALSE) -> 4,2 | O2: =VLOOKUP(localitascelta,Tab_UNI!AJ5:BJ105,24,FALSE) -> 3,0 | P2: =VLOOKUP(localitascelta,Tab_UNI!AJ5:BJ105,26,FALSE) -> 2,5
A3: Componente diretta della radiazione | C3: Hbh | D3: MJ/m2 | E3: =VLOOKUP(localitascelta,Tab_UNI!AJ5:BJ105,5,FALSE) -> 2,6 | F3: =VLOOKUP(localitascelta,Tab_UNI!AJ5:BJ105,7,FALSE) -> 4,4 | G3: =VLOOKUP(localitascelta,Tab_UNI!AJ5:BJ105,9,FALSE) -> 7,3 | H3: =VLOOKUP(localitascelta,Tab_UNI!AJ5:BJ105,11,FALSE) -> 10,4 | I3: =VLOOKUP(localitascelta,Tab_UNI!AJ5:BJ105,13,FALSE) -> 13,0 | J3: =VLOOKUP(localitascelta,Tab_UNI!AJ5:BJ105,15,FALSE) -> 15,7 | K3: =VLOOKUP(localitascelta,Tab_UNI!AJ5:BJ105,17,FALSE) -> 18,5 | L3: =VLOOKUP(localitascelta,Tab_UNI!AJ5:BJ105,19,FALSE) -> 16,0 | M3: =VLOOKUP(localitascelta,Tab_UNI!AJ5:BJ105,21,FALSE) -> 10,8 | N3: =VLOOKUP(localitascelta,Tab_UNI!AJ5:BJ105,23,FALSE) -> 6,2 | O3: =VLOOKUP(localitascelta,Tab_UNI!AJ5:BJ105,25,FALSE) -> 3,4 | P3: =VLOOKUP(localitascelta,Tab_UNI!AJ5:BJ105,27,FALSE) -> 2,3
A4: Riflettanza ambiante circostante | C4: r | E4: 0.22 | F4: 0.22 | G4: 0.22 | H4: 0.22 | I4: 0.22 | J4: 0.22 | K4: 0.22 | L4: 0.22 | M4: 0.22 | N4: 0.22 | O4: 0.22 | P4: 0.22
A5: Ennesimo giorno dell'anno | C5: n | E5: 17 | F5: 47 | G5: 75 | H5: 105 | I5: 135 | J5: 162 | K5: 198 | L5: 228 | M5: 258 | N5: 288 | O5: 318 | P5: 344
A6: Radiazione media globale al suolo sul piano orizzontale UNI | C6: Hh | D6: MJ/m2 | E6: =E3+E2 -> 5.4 | F6: =F3+F2 -> 8.2 | G6: =G3+G2 -> 12.6 | H6: =H3+H2 -> 17.2 | I6: =I3+I2 -> 20.8 | J6: 23.7 | K6: 25.6 | L6: 22.3 | M6: 16.3 | N6: 10.4 | O6: 6.4 | P6: 4.8
A7: Declinazione solare | C7: d | D7: gradi ° | E7: =23.45*SIN((360*(E5+284)/365)/180*PI()) -> -20.91696257 | F7: =23.45*SIN((360*(F5+284)/365)/180*PI()) -> -12.95460809 | G7: =23.45*SIN((360*(G5+284)/365)/180*PI()) -> -2.417734805 | H7: =23.45*SIN((360*(H5+284)/365)/180*PI()) -> 9.414893347 | I7: =23.45*SIN((360*(I5+284)/365)/180*PI()) -> 18.79191752 | J7: 23.085911 | K7: 21.18369356 | L7: 13.45495968 | M7: 2.216886783 | N7: -9.599397234 | O7: -18.91195474 | P7: -23.04962764
D8: rad | E8: =E7/180*PI() -> -0.3650698664 | F8: -0.2261005645 | G8: -0.04219743279 | H8: 0.1643208876 | I8: 0.3279808334 | J8: 0.4029251578 | K8: 0.3697252004 | L8: 0.2348333472 | M8: 0.03869197351 | N8: -0.1675410879 | O8: -0.3300758782 | P8: -0.4022918937
A9: Angolo orario al tramonto | C9: ws | D9: gradi ° | E9: =E10/PI()*180 -> 69.87091618 | F9: 78.04616877 | G9: 87.82124373 | H9: 98.58644367 | I9: 107.841256 | J9: 112.5688416 | K9: 110.4230408 | L9: 102.440135 | M9: 91.99749513 | N9: 81.2407933 | O9: 72.03191937 | P9: 67.47294773
D10: rad | E10: =ACOS(-TAN(lat)*TAN(E8)) -> 1.219477539 | F10: 1.362162614 | G10: 1.532769856 | H10: 1.72065804 | I10: 1.882184987 | J10: 1.96469692 | K10: 1.927245633 | L10: 1.787917641 | M10: 1.605659194 | N10: 1.41791933 | O10: 1.25719416 | P10: 1.177625094
A11: Funzioni intermedie | C11: Th | E11: =SIN(E8)*SIN(lat) -> -0.2388893673 | F11: =SIN(F8)*SIN(lat) -> -0.1500050641 | G11: =SIN(G8)*SIN(lat) -> -0.02822721504 | H11: =SIN(H8)*SIN(lat) -> 0.1094579933 | I11: =SIN(I8)*SIN(lat) -> 0.2155484822 | J11: 0.2623734185 | K11: 0.2417965108 | L11: 0.1556939184 | M11: 0.02588352433 | N11: -0.1115831318 | O11: -0.2168751403 | P11: -0.2619835632
C12: Uh | E12: =COS(E8)*COS(lat) -> 0.6941707046 | F12: =COS(F8)*COS(lat) -> 0.7242302839 | G12: =COS(G8)*COS(lat) -> 0.7424832931 | H12: =COS(H8)*COS(lat) -> 0.7331344222 | I12: =COS(I8)*COS(lat) -> 0.7035312761 | J12: 0.6836322607 | K12: 0.692928064 | L12: 0.7227478274 | M12: 0.7425886254 | N12: 0.7327391567 | O12: 0.7030281979 | P12: 0.6838166537
C13: T | E13: =SIN(E8)*(SIN(lat)*COS(beta)-COS(lat)*SIN(beta)*COS(gamma)) -> 0.01797080463 | F13: =SIN(F8)*(SIN(lat)*COS(beta)-COS(lat)*SIN(beta)*COS(gamma)) -> 0.01128435196 | G13: =SIN(G8)*(SIN(lat)*COS(beta)-COS(lat)*SIN(beta)*COS(gamma)) -> 0.002123433841 | H13: =SIN(H8)*(SIN(lat)*COS(beta)-COS(lat)*SIN(beta)*COS(gamma)) -> -0.008234138823 | I13: =SIN(I8)*(SIN(lat)*COS(beta)-COS(lat)*SIN(beta)*COS(gamma)) -> -0.01621495216 | J13: -0.01973742698 | K13: -0.01818949878 | L13: -0.01171230441 | M13: -0.001947126254 | N13: 0.008394005492 | O13: 0.01631475197 | P13: 0.01970809954
C14: U | E14: =COS(E8)*(COS(lat)*COS(beta)+SIN(lat)*SIN(beta)*COS(gamma)) -> 0.9311368566 | F14: =COS(F8)*(COS(lat)*COS(beta)+SIN(lat)*SIN(beta)*COS(gamma)) -> 0.9714577488 | G14: =COS(G8)*(COS(lat)*COS(beta)+SIN(lat)*SIN(beta)*COS(gamma)) -> 0.9959417115 | H14: =COS(H8)*(COS(lat)*COS(beta)+SIN(lat)*SIN(beta)*COS(gamma)) -> 0.9834014555 | I14: =COS(I8)*(COS(lat)*COS(beta)+SIN(lat)*SIN(beta)*COS(gamma)) -> 0.9436928072 | J14: 0.9170009481 | K14: 0.9294700209 | L14: 0.9694692323 | M14: 0.9960830006 | N14: 0.9828712599 | O14: 0.9430179954 | P14: 0.9172482866
C15: V | E15: =COS(E8)*SIN(beta)*SIN(gamma) -> -0.05756703134 | F15: =COS(F8)*SIN(beta)*SIN(gamma) -> -0.06005984864 | G15: =COS(G8)*SIN(beta)*SIN(gamma) -> -0.06157355636 | H15: =COS(H8)*SIN(beta)*SIN(gamma) -> -0.06079826183 | I15: =COS(I8)*SIN(beta)*SIN(gamma) -> -0.05834329618 | J15: -0.05669308646 | K15: -0.05746398013 | L15: -0.05993690968 | M15: -0.06158229148 | N15: -0.06076548277 | O15: -0.0583015763 | P15: -0.05670837803
C16: U2+V2-T2 | E16: =E14^2+E15^2-E13^2 -> 0.870006859 | F16: 0.9472100066 | G16: 0.9956866866 | H16: 0.9707070503 | I16: 0.8936971299 | J16: 0.8437152788 | K16: 0.8668857709 | L16: 0.9433258474 | M16: 0.9959699314 | N16: 0.9696578981 | O16: 0.8924158423 | P16: 0.8441718502
C17: a) w | D17: rad | E17: =2*ATAN((-E15-SQRT(E16))/(E13-E14)) -> 1.528314724 | F17: 1.520644478 | G17: 1.511178484 | H17: 1.500693197 | I17: 1.491899914 | J17: 1.487565934 | K17: 1.489516757 | L17: 1.496992038 | M17: 1.507099399 | N17: 1.517574577 | O17: 1.526318921 | P17: 1.530497269
C18: b) w | D18: rad | E18: =2*ATAN((-E15+SQRT(E16))/(E13-E14)) -> -1.651806461 | F18: =2*ATAN((-F15+SQRT(F16))/(F13-F14)) -> -1.644136214 | G18: =2*ATAN((-G15+SQRT(G16))/(G13-G14)) -> -1.63467022 | H18: =2*ATAN((-H15+SQRT(H16))/(H13-H14)) -> -1.624184934 | I18: =2*ATAN((-I15+SQRT(I16))/(I13-I14)) -> -1.615391651 | J18: -1.61105767 | K18: -1.613008493 | L18: -1.620483774 | M18: -1.630591136 | N18: -1.641066313 | O18: -1.649810657 | P18: -1.653989006
C19: w1 | D19: rad | E19: =IF((E15*COS(E17))>(E14*SIN(E17)),E17,E18) -> -1.651806461 | F19: -1.644136214 | G19: -1.63467022 | H19: -1.624184934 | I19: -1.615391651 | J19: -1.61105767 | K19: -1.613008493 | L19: -1.620483774 | M19: -1.630591136 | N19: -1.641066313 | O19: -1.649810657 | P19: -1.653989006
C20: w2 | D20: rad | E20: =IF((E15*COS(E17))>(E14*SIN(E17)),E18,E17) -> 1.528314724 | F20: =IF((F15*COS(F17))>(F14*SIN(F17)),F18,F17) -> 1.520644478 | G20: =IF((G15*COS(G17))>(G14*SIN(G17)),G18,G17) -> 1.511178484 | H20: =IF((H15*COS(H17))>(H14*SIN(H17)),H18,H17) -> 1.500693197 | I20: =IF((I15*COS(I17))>(I14*SIN(I17)),I18,I17) -> 1.491899914 | J20: 1.487565934 | K20: 1.489516757 | L20: 1.496992038 | M20: 1.507099399 | N20: 1.517574577 | O20: 1.526318921 | P20: 1.530497269
A21: Angolo all'apparire del sole sulla superficie | C21: w' | D21: rad | E21: =IF(E16>0,SIGN(E19)*MIN(ABS(E19),ABS(E10)),IF((E13+E14)>0,-E10,0)) -> -1.219477539 | F21: =IF(F16>0,SIGN(F19)*MIN(ABS(F19),ABS(F10)),IF((F13+F14)>0,-F10,0)) -> -1.362162614 | G21: =IF(G16>0,SIGN(G19)*MIN(ABS(G19),ABS(G10)),IF((G13+G14)>0,-G10,0)) -> -1.532769856 | H21: =IF(H16>0,SIGN(H19)*MIN(ABS(H19),ABS(H10)),IF((H13+H14)>0,-H10,0)) -> -1.624184934 | I21: =IF(I16>0,SIGN(I19)*MIN(ABS(I19),ABS(I10)),IF((I13+I14)>0,-I10,0)) -> -1.615391651 | J21: -1.61105767 | K21: -1.613008493 | L21: -1.620483774 | M21: -1.605659194 | N21: -1.41791933 | O21: -1.25719416 | P21: -1.177625094
A22: Angolo allo scomparire del sole sulla superficie | C22: w'' | D22: rad | E22: =IF(E16>0,SIGN(E20)*MIN(ABS(E20),ABS(E10)),IF((E13+E14)>0,E10,0)) -> 1.219477539 | F22: =IF(F16>0,SIGN(F20)*MIN(ABS(F20),ABS(F10)),IF((F13+F14)>0,F10,0)) -> 1.362162614 | G22: =IF(G16>0,SIGN(G20)*MIN(ABS(G20),ABS(G10)),IF((G13+G14)>0,G10,0)) -> 1.511178484 | H22: =IF(H16>0,SIGN(H20)*MIN(ABS(H20),ABS(H10)),IF((H13+H14)>0,H10,0)) -> 1.500693197 | I22: =IF(I16>0,SIGN(I20)*MIN(ABS(I20),ABS(I10)),IF((I13+I14)>0,I10,0)) -> 1.491899914 | J22: 1.487565934 | K22: 1.489516757 | L22: 1.496992038 | M22: 1.507099399 | N22: 1.41791933 | O22: 1.25719416 | P22: 1.177625094
E23: =E2/E6 -> 0.5185185185 | F23: =F2/F6 -> 0.4634146341 | G23: =G2/G6 -> 0.4206349206 | H23: =H2/H6 -> 0.3953488372 | I23: =I2/I6 -> 0.375 | J23: 0.3375527426 | K23: 0.27734375 | L23: 0.2825112108 | M23: 0.3374233129 | N23: 0.4038461538 | O23: 0.46875 | P23: 0.5208333333
A24: Irraggiamento extratmosferico | C24: Hho | D24: MJ/m2 | E24: =24*3600/1000000/PI()*Ics*(1+0.033*COS(360*E5/365/180*PI()))*(E11*2*PI()*E9/360+E12*SIN(E10)) -> 13.83621049 | F24: =24*3600/1000000/PI()*Ics*(1+0.033*COS(360*F5/365/180*PI()))*(F11*2*PI()*F9/360+F12*SIN(F10)) -> 19.18844086 | G24: =24*3600/1000000/PI()*Ics*(1+0.033*COS(360*G5/365/180*PI()))*(G11*2*PI()*G9/360+G12*SIN(G10)) -> 26.2349021 | H24: =24*3600/1000000/PI()*Ics*(1+0.033*COS(360*H5/365/180*PI()))*(H11*2*PI()*H9/360+H12*SIN(H10)) -> 33.71948686 | I24: =24*3600/1000000/PI()*Ics*(1+0.033*COS(360*I5/365/180*PI()))*(I11*2*PI()*I9/360+I12*SIN(I10)) -> 39.11268335 | J24: 41.3498814 | K24: 40.1820814 | L24: 35.76391679 | M24: 28.90379269 | N24: 21.22889173 | O24: 15.07411807 | P24: 12.39456005
A25: Irraggiamento diretto sull'orizzontale extratm. | C25: Hbh | D25: W/m2 | E25: =2*Ics*(E11*E10+E12*SIN(E10)) -> 975.3785733 | F25: 1364.348769 | G25: 1890.630011 | H25: 2471.27353 | I25: 2910.032105 | J25: 3103.141521 | K25: 3018.199556 | L25: 2663.101193 | M25: 2120.685466 | N25: 1531.534789 | O25: 1071.809564 | P25: 874.3685831
A26: Irraggiamento diretto sulla superficie extratmos. | C26: Hb | D26: W/m2 | E26: =Ics*(E13*(E22-E21)+E14*(SIN(E22)-SIN(E21))-E15*(COS(E22)-COS(E21))) -> 2425.056905 | F26: 2613.353685 | G26: 2702.191983 | H26: 2631.258454 | I26: 2489.961796 | J26: 2402.820639 | K26: 2443.112958 | L26: 2578.799651 | M26: 2691.85605 | N26: 2660.837151 | O26: 2482.853564 | P26: 2355.491397
A27: Rapporto di irraggiamento diretto | C27: Rb | E27: =E26/E25 -> 2.486272481 | F27: 1.915458674 | G27: 1.429254782 | H27: 1.064737845 | I27: 0.8556475344 | J27: 0.7743187421 | K27: 0.8094603795 | L27: 0.9683445969 | M27: 1.269333002 | N27: 1.737366444 | O27: 2.316506259 | P27: 2.693934163
A28: Indice di soleggiamento | C28: KT | E28: =E6/E24 -> 0.3902802725 | F28: =F6/F24 -> 0.4273406088 | G28: =G6/G24 -> 0.4802762348 | H28: =H6/H24 -> 0.5100907992 | I28: =I6/I24 -> 0.531796804 | J28: 0.5731576294 | K28: 0.637099899 | L28: 0.6235334942 | M28: 0.5639398323 | N28: 0.4898983958 | O28: 0.4245687853 | P28: 0.3872666702
A29: Frazione diffusa del soleggiamento | C29: Hd/Hh | E29: =E2/E6 -> 0.5185185185 | F29: =F2/F6 -> 0.4634146341 | G29: =G2/G6 -> 0.4206349206 | H29: =H2/H6 -> 0.3953488372 | I29: =I2/I6 -> 0.375 | J29: 0.3375527426 | K29: 0.27734375 | L29: 0.2825112108 | M29: 0.3374233129 | N29: 0.4038461538 | O29: 0.46875 | P29: 0.5208333333
A30: Rapporto di irraggiamento globale | C30: R | E30: =(1-E29)*E27+E29*(1+COS(beta))/2+E4*(1-COS(beta))/2 -> 1.671895651 | F30: 1.45557448 | G30: 1.219312927 | H30: 1.013464571 | I30: 0.8870804845 | J30: 0.8332828691 | K30: 0.8539075546 | L30: 0.9681330483 | M30: 1.161257522 | N30: 1.412660196 | O30: 1.662965356 | P30: 1.767620765
A31: Irraggiamento medio mensile giornaliero | C31: H | D31: MJ/m2 | E31: =E30*E6 -> 9.028236516 | F31: 11.93571073 | G31: 15.36334288 | H31: 17.43159062 | I31: 18.45127408 | J31: 19.748804 | K31: 21.8600334 | L31: 21.58936698 | M31: 18.92849761 | N31: 14.69166604 | O31: 10.64297828 | P31: 8.484579672
A32: Giorni al mese | E32: 31 | F32: 28 | G32: 31 | H32: 30 | I32: 31 | J32: 30 | K32: 31 | L32: 31 | M32: 30 | N32: 31 | O32: 30 | P32: 31
A33: Radiazione totale mensile | D33: MJ/m2 | E33: =E32*E31 -> 279.875332 | F33: =F32*F31 -> 334.1999005 | G33: 476.2636292 | H33: 522.9477185 | I33: 571.9894964 | J33: 592.4641199 | K33: 677.6610353 | L33: 669.2703763 | M33: 567.8549284 | N33: 455.4416472 | O33: 319.2893483 | P33: 263.0219698
D34: kWh/m2 | E34: =E33/3.6 -> 77.74314778 | F34: =F33/3.6 -> 92.8333057 | G34: 132.2954526 | H34: 145.2632551 | I34: 158.8859712 | J34: 164.5733666 | K34: 188.2391765 | L34: 185.9084379 | M34: 157.7374801 | N34: 126.5115687 | O34: 88.69148565 | P34: 73.06165829
A35: Totale annuo | D35: MJ/m2 | E35: =SUM(E33:P33) -> 5730.279502
D36: kWh/m2 | E36: =E35/3.6 -> 1591.744306
A37: Temperature medie | D37: ° | E37: =VLOOKUP(localitascelta,Tab_UNI!A5:P105,5) -> 5.5 | F37: =VLOOKUP(localitascelta,Tab_UNI!A5:P105,6) -> 6.6 | G37: =VLOOKUP(localitascelta,Tab_UNI!A5:P105,7) -> 9.5 | H37: =VLOOKUP(localitascelta,Tab_UNI!A5:P105,8) -> 13.3 | I37: =VLOOKUP(localitascelta,Tab_UNI!A5:P105,9) -> 17.2 | J37: =VLOOKUP(localitascelta,Tab_UNI!A5:P105,10) -> 21.7 | K37: =VLOOKUP(localitascelta,Tab_UNI!A5:P105,11) -> 24.4 | L37: =VLOOKUP(localitascelta,Tab_UNI!A5:P105,12) -> 24.3 | M37: =VLOOKUP(localitascelta,Tab_UNI!A5:P105,13) -> 21.1 | N37: =VLOOKUP(localitascelta,Tab_UNI!A5:P105,14) -> 15.8 | O37: =VLOOKUP(localitascelta,Tab_UNI!A5:P105,15) -> 10.9 | P37: =VLOOKUP(localitascelta,Tab_UNI!A5:P105,16) -> 7
A39: Angolo all'apparire del sole sulla superficie | C39: w' | E39: =E21/PI()*180 -> -69.87091618 | F39: -78.04616877 | G39: -87.82124373 | H39: -93.05894185 | I39: -92.55512385 | J39: -92.30680506 | K39: =K21/3.1415*180 -> -92.42130472 | L39: -92.84961941 | M39: -92.00020845 | N39: -81.24318937 | O39: -72.03404384 | P39: -67.47493774
A40: Angolo allo scomparire del sole sulla superficie | C40: w'' | E40: =E22/3.1415*180 -> 69.87297691 | F40: =F22/3.1415*180 -> 78.04847062 | G40: 86.58670286 | H40: 85.98592249 | I40: 85.48208963 | J40: 85.23376352 | K40: 85.34554074 | L40: 85.77385542 | M40: 86.35298166 | N40: 81.24318937 | O40: 72.03404384 | P40: 67.47493774
A41: Irraggiamento diretto sulla superficie | C41: KT Hb | D41: W/m2 | E41: =E46 -> 269.189954 | F41: =F46 -> 318.6024084 | G41: 367.0356191 | H41: 405.6616079 | I41: 431.8215678 | J41: 463.4810172 | K41: 512.376041 | L41: 503.6051159 | M41: =M46 -> 442.2053792 | N41: 376.7409652 | O41: 307.8110048 | P41: 261.9670094
A42: Angoli app/scomp rispetto perpen. coll. | C42: a | E42: =IF(E39-(gamma/PI()*180)<-90,-90,E39-(gamma/PI()*180)) -> -64.87091618 | F42: =IF(F39-(gamma/PI()*180)<-90,-90,F39-(gamma/PI()*180)) -> -73.04616877 | G42: -82.82124373 | H42: -88.05894185 | I42: -87.55512385 | J42: -87.30680506 | K42: -87.42130472 | L42: -87.84961941 | M42: -87.00020845 | N42: -76.24318937 | O42: -67.03404384 | P42: -62.47493774
C43: b | E43: =IF((E40-gamma/PI()*180)>90,90,(E40-gamma/PI()*180)) -> 74.87297691 | F43: =IF((F40-gamma/PI()*180)>90,90,(F40-gamma/PI()*180)) -> 83.04847062 | G43: 90 | H43: 90 | I43: 90 | J43: 90 | K43: 90 | L43: 90 | M43: 90 | N43: =IF((N40-gamma/PI()*180)>90,90,(N40-gamma/PI()*180)) -> 86.24318937 | O43: 77.03404384 | P43: 72.47493774
A44: Ora alba | E44: =E39/15+12 -> 7.341938921 | F44: 6.796922082 | G44: 6.145250418 | H44: 5.796070543 | I44: 5.82965841 | J44: 5.846212996 | K44: 5.838579685 | L44: =L39/15+12 -> 5.810025373 | M44: 5.86665277 | N44: 6.583787375 | O44: 7.197730411 | P44: 7.501670817
A45: Ora tramonto | E45: =E40/15+12 -> 16.65819846 | F45: =F40/15+12 -> 17.20323137 | G45: 17.77244686 | H45: 17.73239483 | I45: 17.69880598 | J45: 17.6822509 | K45: 17.68970272 | L45: 17.71825703 | M45: 17.75686544 | N45: 17.41621262 | O45: 16.80226959 | P45: 16.49832918
A46: Irraggiamento (energia/ore) | D46: W/m2 g | E46: =E31/3.6*1000/E47 -> 269.189954 | F46: 318.6024084 | G46: 367.0356191 | H46: 405.6616079 | I46: 431.8215678 | J46: 463.4810172 | K46: 512.376041 | L46: 503.6051159 | M46: 442.2053792 | N46: 376.7409652 | O46: 307.8110048 | P46: 261.9670094
A47: ore di irraggiamento | E47: =12-E44+E45-12 -> 9.316259539 | F47: 10.40630929 | G47: 11.62719644 | H47: 11.93632429 | I47: 11.86914757 | J47: 11.83603791 | K47: 11.85112303 | L47: 11.90823166 | M47: 11.89021267 | N47: 10.83242525 | O47: 9.604539178 | P47: 8.996658365
D50: diretta | E50: =(1-E29)*E27*E28*E24 -> 6.464308451 | F50: =(1-F29)*F27*F28*F24 -> 8.428018165 | G50: 10.43355991 | H50: 11.07327359 | I50: 11.12341795 | J50: 12.15680425 | K50: 14.97501702 | L50: =(1-L29)*L27*L28*L24 -> 15.49351355 | M50: =(1-M29)*M27*M28*M24 -> 13.70879642 | N50: =(1-N29)*N27*N28*N24 -> 10.77167195 | O50: =(1-O29)*O27*O28*O24 -> 7.876121281 | P50: =(1-P29)*P27*P28*P24 -> 6.196048576
D51: diffusa | E51: =E29*(1+COS(beta))/2*E28*E24 -> 2.389949494 | F51: =F29*(1+COS(beta))/2*F28*F24 -> 3.243502884 | G51: 4.52383297 | H51: 5.804163056 | I51: 6.657716447 | J51: 6.828427125 | K51: 6.060229073 | L51: =L29*(1+COS(beta))/2*L28*L24 -> 5.377386361 | M51: =M29*(1+COS(beta))/2*M28*M24 -> 4.694543648 | N51: =N29*(1+COS(beta))/2*N28*N24 -> 3.58492424 | O51: =O29*(1+COS(beta))/2*O28*O24 -> 2.560660172 | P51: =P29*(1+COS(beta))/2*P28*P24 -> 2.133883476
D52: riflessa | E52: =E4*(1-COS(beta))/2*E28*E24 -> 0.173978572 | F52: =F4*(1-COS(beta))/2*F28*F24 -> 0.2641896834 | G52: 0.4059500013 | H52: 0.55415397 | I52: 0.6701396846 | J52: 0.7635726214 | K52: 0.8247873042 | L52: =L4*(1-COS(beta))/2*L28*L24 -> 0.7184670657 | M52: =M4*(1-COS(beta))/2*M28*M24 -> 0.5251575413 | N52: =N4*(1-COS(beta))/2*N28*N24 -> 0.3350698423 | O52: =O4*(1-COS(beta))/2*O28*O24 -> 0.206196826 | P52: =P4*(1-COS(beta))/2*P28*P24 -> 0.1546476195

Sheet ammortamento
C6: Costo stimato impianto: | H6: Costo annuo manutenz. [euro]:
C7: 7000 | D7: € | H7: 0
C11: Contributi / sgravi fiscali:
C12: =+incentivi!E47 -> 787.92 | D12: €
H13: Investimento netto [euro]:
H14: =+costo2-C12 -> 6212.08
C16: Il vostro investimento vi permetterà di risparmiare da subito:
C17: =+Tabelle6!E20 -> 241 | D17: =+Tabelle6!F20&" per il primo anno;" -> m3 di metano per il primo anno;
C18: =+Tabelle6!E21 -> 204.85 | D18: euro il primo anno di esercizio impianto.
C20: Tenuto conto del tasso di aumento del combustibile, la tabella a lato vi fornisce un riepilogo dell'investimento durante la vita stimata dell'impianto solare.
C22: =IF(tasso=0,(H14)/(C18-manut),LOG(1+tasso/100*(H14)/(C18-manut),1+tasso/100)) -> 20.25331332 | D22: anni per ammortizzare l'investimento
C24: Considerando una vita media dell'impianto pari a 20 anni, il vostro investimento in un impianto solare vi permetterà di guadagnare circa:
C26: =+cashflow!M39 -> 123.7669721 | D26: euro

Sheet cti_show
D4: Calcolo energia primaria per produzione A.C.S. (secondo UNI TS 11300-5)
D6: Rendimenti considerati:
D8: h w,er | E8: - Rendimento di erogazione | H8: =+cti!E2 -> 1
D9: h w,d | E9: - Rendimento di distribuzione | H9: =+cti!F7 -> 0.92 | I9: (Ricircolo assente; se presente, vedi sotto)
D10: h w,c | E10: - Rendimento di generazione | H10: =+cti!E16 -> 0.9 | I10: =+"("&Tabelle6!B10&")" -> (Caldaia a condens. 4*)
D12: Per le dispersioni della rete di ricircolo, si sono considerati i seguenti valori:
D14: Coefficiente dispersione tubazione: | H14: =+IF(Tabelle5!C36=FALSE,"-",+k_ricircolo) -> 0.4 | I14: W/mK
D15: Lunghezza semplice rete ricircolo: | H15: =+IF(Tabelle5!C36=FALSE,"-",+lung_ricircolo) -> 10 | I15: m
D16: Ore di funzionamento ricircolo al giorno: | H16: =+IF(Tabelle5!C36=FALSE,"-",+ore_ricircolo) -> 6 | I16: ore / giorno
D17: Temperatura distribuzione ACS: | H17: =+IF(Tabelle5!C36=FALSE,"-",+tdistrib_ricircolo) -> 48 | I17: °C
D18: Temperatura ambiente tubazione ricircolo: | H18: =+IF(Tabelle5!C36=FALSE,"-",+tamb_ricircolo) -> 18.45833333 | I18: °C
D20: Per le dispersioni dell'accumulo solare:
D22: ="Tipologia: "& IF(sceltobollitore=FALSE,tab_bollitore!B58,"bollitore di altra marca:") -> Tipologia: Aqua 500 | H22: =+IF(sceltobollitore=TRUE,spessoreisolam,"") ->  | I22: =+IF(sceltobollitore=TRUE,"mm di isolamento","") -> 
H23: =+IF(sceltobollitore=TRUE,conducibilita,"") ->  | I23: =+IF(sceltobollitore=TRUE,"W/mk di dispersione termica","") -> 
D24: Riepilogo:
E25: (1) energia utile per ACS | J25: Q h,w | K25: =+cti!E31 -> 2652.586806 | L25: kWh
E26: (2) perdite per distribuzione e ricircolo | J26: Q l,w,d | K26: =+cti!H31+cti!F31 -> 470.9919444 | L26: kWh
E27: (3) perdite per erogazione | J27: Q l,w,er | K27: =+cti!G31 -> 0 | L27: kWh
E28: (4) perdite di accumulo | J28: Q l,w,s | K28: =+cti!I31 -> 574.656 | L28: kWh
E29: TOTALE ENERGIA DA FORNIRE | J29: Q w,gn, out | K29: =SUM(K25:K28) -> 3698.23475 | L29: kWh
E30: di cui, | F30: da solare: | K30: =+cti!K31 -> 1424.717624 | L30: kWh
F31: da combustibile generatore: | K31: =+cti!M31 -> 2273.517126 | L31: kWh
F32: =IF(cti!H14=TRUE,"da aria:","") ->  | K32: =IF(cti!H14=TRUE,cti!L31,"") ->  | L32: =IF(cti!H14=TRUE,"kWh","") -> 
E34: Energia consumata da generatore tradizionale: | J34: Q w,gn, in | K34: =+cti!M31+cti!N31 -> 2526.13014 | L34: kWh
E35: Energia elettrica ausiliari (pompa solare e carico bollitore) | J35: Q w,aux | K35: =+cti!Q31+cti!O31 -> 68.11136798 | L35: kWh
D37: Fattori di conversione energia primaria: | I37: fp,tot | J37: fp,nren | K37: fp,ren
E38: Vettore energetico generatore tradizionale | I38: =+cti!T13 -> 1.05 | J38: =+cti!U13 -> 1.05 | K38: =+cti!V13 -> 0
E39: Energia elettrica per ausiliari | I39: =+cti!T12 -> 2.42 | J39: =+cti!U12 -> 1.95 | K39: =+cti!V12 -> 0.47
D41: Copertura rinnovabile fabbisogno energia primaria ACS: | I41: Ep,tot | J41: Ep,nren | K41: Ep,ren
E42: Vettore energetico generaotre tradizionale | I42: =+K34*I38 -> 2652.436647 | J42: =+K34*J38 -> 2652.436647 | K42: =+K34*K38 -> 0
E43: Vettore energia elettrica per ausiliari | I43: =+K35*I39 -> 164.8295105 | J43: =+K35*J39 -> 132.8171676 | K43: =+K35*K39 -> 32.01234295
E44: Vettore energetico solare | I44: =+K30 -> 1424.717624 | J44: 0 | K44: =+K30 -> 1424.717624
E45: =IF(cti!H14=TRUE,"Vettore energetico aria:","") ->  | I45: =IF(cti!H14=TRUE,cti!L31,"") ->  | J45: =IF(cti!H14=TRUE,0,"") ->  | K45: =IF(cti!H14=TRUE,cti!L31,"") -> 
I46: =SUM(I42:I45) -> 4241.983781 | J46: =SUM(J42:J45) -> 2785.253814 | K46: =SUM(K42:K45) -> 1456.729967
E48: Quota copertura rinnovabili per acs QR: | I48: QR = Ep,ren | J48: / Ep,tot | K48: =+K46/I46 -> 0.3434077173
D49: Nel calcolo, sono state considerate trascurabili le perdite di calore del circuito caldaia-bollitore (lungh. < 5 m ed isolate, secondo 6.9.4 UNI-TS). Le perdite di calore si considerano non recuperate. Nel calcolo dell'energia primaria, non viene considerato il consumo elettrico della pompa ricircolo.

Sheet relazione_amm
D4: Simulazione impianto solare
D5: Foglio previsione ammortamento
D7: Committente: | F7: =+Dati!E6 -> Nome committente
D8: Riferimento: | F8: =+Dati!E8 -> Riferimento impianto
D10: Data: | F10: =+TODAY() -> 2021-01-26
D12: Dati generali
D13: Località e dati climatici: | I13: =+Dati!N6 -> Ascoli Piceno
D14: Tipologia collettori: | I14: =+Dati!E11 -> AQUA PLASMA
D15: Superficie collettori: | I15: =+superficie -> 2.4 | J15: m2
D16: Inclinazione: | I16: =+Dati!E13 -> 45 | J16: °
D17: Azimut: | I17: =+Dati!N13 -> -5 | J17: °
D19: Risultati solari:
D20: Fornitura energia solare: | I20: =+pr_disp -> 2067.437273 | J20: kWh / anno
D21: =+riepilogo!C23 -> Resa dell'impianto solare: | I21: =+riepilogo!F23 -> 861.4321971 | J21: kWh/m2 anno
D23: Foglio economico:
D24: Costo stimato dell'investimento: | I24: =+costo2 -> 7000 | J24: euro
D25: Sgravi / Contributi: | I25: =+ammortamento!C12 -> 787.92 | J25: euro
D26: Costo annuo manutenzione: | I26: =+manut -> 0 | J26: euro
D27: Valore da ammortizzare: | I27: =+ammortamento!H14 -> 6212.08 | J27: euro
D29: Sulla base dei dati inseriti, l'investimento permetterà di risparmiare:
D30: =+Tabelle6!E20 -> 241 | E30: =+Tabelle6!F20&" di "&Tabelle6!E10&", pari a:" -> m3 di metano di metano, pari a:
D31: =+Tabelle6!E21 -> 204.85 | E31: euro nel primo anno di esercizio.
D33: Ammortamento impianto solare: | I33: =+ammortamento!C22 -> 20.25331332 | J33: anni
D35: Considerando una vita media dell'impianto pari a 20 anni, l'investimento in un impianto solare permetterà di guadagnare circa:
I37: =+cashflow!M39 -> 123.7669721 | J37: euro
C39: Non sono considerati i fenomeni di ombreggiamento e/o di ostruzione ai raggi solari dati da ostacoli presenti in sito o dal profilo orografico circostante. Paradigma non fornisce alcuna garanzia, né esplicita né implicita e non si assume alcuna responsabilità per i dati forniti dalla presente simulazione. Essi sono puramente indicativi e soggetti a calcolo più dettagliato. Paradigma non garantisce l'uso del software in tutte le situazioni.

Sheet incentivi (hidden)
E3: % sgravio | F3: massimale incentivo | G3: testo1 | H3: testo2 | I3: > 50 m2 | J3: < 50 m2
C4: 1 | D4: Detrazioni fiscali per efficienza energetica (65%) | E4: 65 | F4: 60000 | G4: Detrazioni fiscali = 65% | H4: Valore massimo detrazione = 60.000 € in 10 rate annuali.
C5: 2 | D5: Detrazioni fiscali per ristrutturazione (50%) | E5: 50 | F5: 48000 | G5: Detrazioni fiscali = 50% | H5: Valore massimo detrazione = 48.000 € in 10 rate annuali.
C6: 3 | D6: Conto energia 2.0 per ACS | G6: nel caso di Plasma, calcolo effettuato con AP 15/40 - nel caso di Star, con Star 15/39 | H6: il calcolo è approssimato nel caso in cui la superficie inserita non sia multriplo esatto | I6: 55 | J6: 170
C7: 4 | D7: Conto energia 2.0 per ACS, riscaldamento | G7: nel caso di Plasma, calcolo effettuato con AP 15/40 - nel caso di Star, con Star 15/39 | H7: il calcolo è approssimato nel caso in cui la superficie inserita non sia multriplo esatto | I7: 83 | J7: 255
C8: 5 | D8: Conto energia 2.0 per calore di processo | G8: nel caso di Plasma, calcolo effettuato con AP 15/40 - nel caso di Star, con Star 15/39 | H8: il calcolo è approssimato nel caso in cui la superficie inserita non sia multriplo esatto
C9: 6 | D9: Conto energia 2.0 per solar cooling | G9: nel caso di Plasma, calcolo effettuato con AP 15/40 - nel caso di Star, con Star 15/39 | H9: il calcolo è approssimato nel caso in cui la superficie inserita non sia multriplo esatto
C10: 7 | D10: Altro | G10: Immettere il valore del contributo in €
C11: 3 | D11: =+VLOOKUP(C11,C4:H10,2,FALSE) -> Conto energia 2.0 per ACS | E11: =+VLOOKUP(C11,C4:H10,3,FALSE) -> 0 | F11: =+VLOOKUP(C11,C4:H10,4,FALSE) -> 0 | G11: =+VLOOKUP(C11,C4:H10,5,FALSE) -> nel caso di Plasma, calcolo effettuato con AP 15/40 - nel caso di Star, con Star 15/39 | H11: =+VLOOKUP(C11,C4:H10,6,FALSE) -> il calcolo è approssimato nel caso in cui la superficie inserita non sia multriplo esatto | I11: =+VLOOKUP(C11,C4:J10,7,FALSE) -> 55 | J11: =+VLOOKUP(C11,C4:J10,8,FALSE) -> 170
C13: 0 | D13: valore inserito dall'utente nel caso di altro
B16: m2 | C16: =+superficie -> 2.4
B18: Calcolo incentivo per conto termico (dal foglio CT20)
D19: totale incentivo | E19: anni | F19: rata
B20: Considerata superficie: | D20: =+'CT20'!E25 -> 787.92 | E20: =+'CT20'!E24 -> 2 | F20: =+D20/E20 -> 393.96
C24: =+costo2 -> 7000 | D24: spesa inserita
B26: Calcolo incentivo detrazioni fiscali
C27: =+C24*E11/100 -> 0 | D27: detrazioni da %
C28: =+IF(C27<F11,C27,F11) -> 0 | D28: detrazioni da utilizzare (limitate superiormente)
B32: Riepilogo rata
B34: anno | C34: rata conto energia | D34: rata detrazioni | E34: rata da usare nell'ammortamento
B35: 1 | C35: =+IF(B35<=$E$20,$F$20,0) -> 393.96 | D35: =+$C$28/10 -> 0 | E35: =+IF(OR($C$11=1,$C$11=2),D35,IF(OR($C$11=3,$C$11=4,$C$11=5,$C$11=6),C35,IF($C$11=7,$C$13,0))) -> 393.96
B36: 2 | C36: =+IF(B36<=$E$20,$F$20,0) -> 393.96 | D36: =+$C$28/10 -> 0 | E36: =+IF(OR($C$11=1,$C$11=2),D36,IF(OR($C$11=3,$C$11=4,$C$11=5,$C$11=6),C36,IF($C$11=7,0,0))) -> 393.96
B37: 3 | C37: 0 | D37: 0 | E37: =+IF(OR($C$11=1,$C$11=2),D37,IF(OR($C$11=3,$C$11=4,$C$11=5,$C$11=6),C37,IF($C$11=7,0,0))) -> 0
B38: 4 | C38: 0 | D38: 0 | E38: 0
B39: 5 | C39: 0 | D39: 0 | E39: 0
B40: 6 | C40: 0 | D40: 0 | E40: 0
B41: 7 | C41: 0 | D41: 0 | E41: 0
B42: 8 | C42: 0 | D42: 0 | E42: 0
B43: 9 | C43: 0 | D43: 0 | E43: 0
B44: 10 | C44: 0 | D44: 0 | E44: 0
C45: =SUM(C35:C44) -> 787.92 | D45: =SUM(D35:D44) -> 0 | E45: =SUM(E35:E44) -> 787.92
D47: valore da mostrare nel foglio AMMORTAMENTO: | E47: =+IF(incentivoutente>0,incentivoutente,E45) -> 787.92

Sheet cti (hidden)
A2: erogazione | B2: eta,w,er | E2: 1 | F2: Valore precedente pari a 0,95 ed ora aggiornato a 1 secondo 11300 del 2014
D4: descrizione | E4: f l,d,w
A5: distribuzione | B5: eta, w,d | C5: 0 | D5: Sistemi installati prima dell'entrata in vigore della legge 373/76 | E5: 0.12
C6: 1 | D6: Sistemi installati dopo dell'entrata in vigore della legge 373/76 | E6: 0.08
C7: 1 | D7: =+VLOOKUP(C7,C5:E6,2) -> Sistemi installati dopo dell'entrata in vigore della legge 373/76 | E7: =+VLOOKUP(C7,C5:E6,3) -> 0.08 | F7: =1-E7 -> 0.92 | S7: potenza elettrica caldaia per acs | T7: 0.1 | U7: kW
S9: temperatura bollitore per calcolo dispersioni termiche secondo UNITS 11300/4 | T9: 60
E10: ?
T11: fp tot | U11: fp nren | V11: fp ren
O12: conversione energia elettrica in primaria | T12: 2.42 | U12: 1.95 | V12: 0.47 | W12: vedi decreto di agosto 2015
G13: ricircolo_sino | H13: =+ricircolo_sino -> TRUE | O13: conversione energia primaria comnbustibile | T13: =+Tabelle6!L10 -> 1.05 | U13: =+Tabelle6!N10 -> 1.05 | V13: =+Tabelle6!O10 -> 0 | W13: (da Tabelle6) | AA13: Fabbisogno elettrico solare
G14: generatore prinicpale PDC? | H14: =+Tabelle6!P10 -> FALSE
AA15: Waux,nom | AB15: =50+5*superficie -> 62 | AC15: Watt | AE15: Aquasys
A16: combustione | B16: eta, c | D16: Rendimento per ACS | E16: =+Tabelle6!D11/100 -> 0.9 | F16: dal foglio "tabelle 6" (nel caso di PDC, trattasi di COPN 55/7*C) | R16: energia | AE16: taux,w,m
I17: storage | K17: di cui | N17: perdite | P17: h caldaia acs | Q17: Qaux,gn,W | R17: primaria | W17: hwh = hwh,calc x 0,95 = f x COPN x 0,95 | AB17: Isol / Isol tot | AC17: ore/mese | AD17: taux,w,m | AE17: =+aquasys -> TRUE | AF17: nel caso di sistema Aqua, le ore di funzionamento vengono diminuite al 46,2% (vedi UT 05/2008)
E18: Qhw | F18: Qi,w,d ricircolo | G18: Ql,w,er | H18: Qi,w,d | I18: Qi,w,s | J18: TOTALE | K18: da solare | L18: da aria | M18: da generatore | N18: Ql, gn | O18: Qsol,aux | P18: h | Q18: kWh | R18: Qpw | S18: Qpw ren | T18: Qpw nonren | V18: t.esterna | W18: COPN (t.ext) x f x 0,95 | AA18: gen | AB18: =+fc!W35/SUM(fc!$W$35:$W$46) -> 0.04884148006 | AC18: =2000*AB18 -> 97.68296011 | AD18: =+AC18*fc!E35 -> 29.6641459 | AE18: =+IF(aquasys,AD18*0.462,AD18) -> 13.70483541
C19: 31 | D19: gen | E19: =+Tabelle5!E44 -> 225.2881944 | F19: =+Tabelle5!H44 -> 21.979 | G19: =+E19*(1-$E$2)/$E$2 -> 0 | H19: =+(E19+G19)*$E$7 -> 18.02305556 | I19: =+tab_bollitore!$J$58*24*C19*($T$9-tempcentr)/1000 -> 48.8064 | J19: =+E19+F19+G19+H19+I19 -> 314.09665 | K19: =+fc!AD35 -> 29.48390473 | L19: =(J19-K19)*(1-1/W19)*$H$14 -> 0 | M19: =+J19-K19-L19 -> 284.6127453 | N19: =+M19*(1-$E$16)/$E$16*(1-$H$14) -> 31.62363836 | O19: =+AE18*$AB$15/1000 -> 0.8496997951 | P19: =(E19+F19+G19+H19+I19+N19-fc!AD35)/potenza_gen_acs -> 35.13737596 | Q19: =+P19*$T$7 -> 3.513737596 | R19: =+(M19+N19)*$T$13+K19+L19+(Q19+O19)*$T$12 -> 372.091626 | S19: =+(M19+N19)*$V$13+(Q19+O19)*$V$12+K19+L19 -> 31.5347203 | T19: =+(M19+N19)*$U$13+(O19+Q19)*$U$12 -> 340.5569057 | V19: =+'Dettaglio mesi'!E37 -> 5.5 | W19: =+VLOOKUP(V19,Tabelle6!$K$18:$M$73,3,TRUE)/100*0.919*0.95 -> 0.7391096601 | AA19: feb | AB19: =+fc!W36/SUM(fc!$W$35:$W$46) -> 0.05832174511 | AC19: =2000*AB19 -> 116.6434902 | AD19: =+AC19*fc!E36 -> 34.86003328 | AE19: 16.10533537
C20: 28 | D20: feb | E20: =+Tabelle5!E45 -> 203.4861111 | F20: =+Tabelle5!H45 -> 19.852 | G20: =+E20*(1-$E$2)/$E$2 -> 0 | H20: =+(E20+G20)*$E$7 -> 16.27888889 | I20: =+tab_bollitore!$J$58*24*C20*($T$9-tempcentr)/1000 -> 44.0832 | J20: =+E20+F20+G20+H20+I20 -> 283.7002 | K20: =+fc!AD36 -> 37.13293867 | L20: =(J20-K20)*(1-1/W20)*$H$14 -> 0 | M20: 246.5672613 | N20: =+M20*(1-$E$16)/$E$16*(1-$H$14) -> 27.39636237 | O20: =+AE19*$AB$15/1000 -> 0.9985307932 | P20: =(E20+F20+G20+H20+I20+N20-fc!AD36)/potenza_gen_acs -> 30.44040263 | Q20: 3.044040263 | R20: =+(M20+N20)*$T$13+K20+L20+(Q20+O20)*$T$12 -> 334.5777655 | S20: =+(M20+N20)*$V$13+(Q20+O20)*$V$12+K20+L20 -> 39.03294706 | T20: =+(M20+N20)*$U$13+(O20+Q20)*$U$12 -> 295.5448185 | V20: =+'Dettaglio mesi'!F37 -> 6.6 | W20: =+VLOOKUP(V20,Tabelle6!$K$18:$M$73,3,TRUE)/100*0.919*0.95 -> 0.7624454176 | AA20: mar | AB20: =+fc!W37/SUM(fc!$W$35:$W$46) -> 0.08311350765 | AC20: 166.2270153 | AD20: =+AC20*fc!E37 -> 62.48144434 | AE20: 28.86642728
C21: 31 | D21: mar | E21: =+Tabelle5!E46 -> 225.2881944 | F21: =+Tabelle5!H46 -> 21.979 | G21: 0 | H21: 18.02305556 | I21: =+tab_bollitore!$J$58*24*C21*($T$9-tempcentr)/1000 -> 48.8064 | J21: =+E21+F21+G21+H21+I21 -> 314.09665 | K21: =+fc!AD37 -> 68.66356913 | L21: 0 | M21: 245.4330809 | N21: 27.27034232 | O21: 1.789718492 | P21: =(E21+F21+G21+H21+I21+N21-fc!AD37)/potenza_gen_acs -> 30.30038035 | Q21: 3.030038035 | R21: 366.6659743 | S21: 70.9288547 | T21: 295.7371196 | V21: =+'Dettaglio mesi'!G37 -> 9.5 | W21: =+VLOOKUP(V21,Tabelle6!$K$18:$M$73,3,TRUE)/100*0.919*0.95 -> 0.8486112556 | AA21: apr | AB21: =+fc!W38/SUM(fc!$W$35:$W$46) -> 0.09126042077 | AC21: 182.5208415 | AD21: =+AC21*fc!E38 -> 87.12942525 | AE21: 40.25379447
C22: 30 | D22: apr | E22: =+Tabelle5!E47 -> 218.0208333 | F22: =+Tabelle5!H47 -> 21.27 | G22: 0 | H22: 17.44166667 | I22: =+tab_bollitore!$J$58*24*C22*($T$9-tempcentr)/1000 -> 47.232 | J22: =+E22+F22+G22+H22+I22 -> 303.9645 | K22: =+fc!AD38 -> 95.69445618 | L22: 0 | M22: 208.2700438 | N22: 23.14111598 | O22: 2.495735257 | P22: =(E22+F22+G22+H22+I22+N22-fc!AD38)/potenza_gen_acs -> 25.71235109 | Q22: 2.571235109 | R22: 350.9382423 | S22: 98.07593225 | T22: 252.86231 | V22: =+'Dettaglio mesi'!H37 -> 13.3 | W22: =+VLOOKUP(V22,Tabelle6!$K$18:$M$73,3,TRUE)/100*0.919*0.95 -> 0.9912360234 | AA22: mag | AB22: =+fc!W39/SUM(fc!$W$35:$W$46) -> 0.09981877782 | AC22: 199.6375556 | AD22: =+AC22*fc!E39 -> 138.3701345 | AE22: 63.92700215
C23: 31 | D23: mag | E23: =+Tabelle5!E48 -> 225.2881944 | F23: =+Tabelle5!H48 -> 21.979 | G23: 0 | H23: 18.02305556 | I23: =+tab_bollitore!$J$58*24*C23*($T$9-tempcentr)/1000 -> 48.8064 | J23: =+E23+F23+G23+H23+I23 -> 314.09665 | K23: =+fc!AD39 -> 146.7150565 | L23: 0 | M23: 167.3815935 | N23: 18.59795483 | O23: 3.963474133 | P23: =(E23+F23+G23+H23+I23+N23-fc!AD39)/potenza_gen_acs -> 20.66439426 | Q23: 2.066439426 | R23: 356.5859731 | S23: 149.5491159 | T23: 207.0368572 | V23: =+'Dettaglio mesi'!I37 -> 17.2 | W23: =+VLOOKUP(V23,Tabelle6!$K$18:$M$73,3,TRUE)/100*0.919*0.95 -> 1.157522282 | AA23: giu | AB23: =+fc!W40/SUM(fc!$W$35:$W$46) -> 0.1033918362 | AC23: 206.7836725 | AD23: =+AC23*fc!E40 -> 206.7836725 | AE23: 95.53405669
C24: 30 | D24: giu | E24: =+Tabelle5!E49 -> 218.0208333 | F24: =+Tabelle5!H49 -> 21.27 | G24: 0 | H24: 17.44166667 | I24: =+tab_bollitore!$J$58*24*C24*($T$9-tempcentr)/1000 -> 47.232 | J24: =+E24+F24+G24+H24+I24 -> 303.9645 | K24: =+fc!AD40 -> 205.6677259 | L24: 0 | M24: 98.29677412 | N24: 10.92186379 | O24: 5.923111515 | P24: =(E24+F24+G24+H24+I24+N24-fc!AD40)/potenza_gen_acs -> 12.13540421 | Q24: 1.213540421 | R24: 337.6179934 | S24: 209.0219523 | T24: 128.5960411 | V24: =+'Dettaglio mesi'!J37 -> 21.7 | W24: =+VLOOKUP(V24,Tabelle6!$K$18:$M$73,3,TRUE)/100*0.919*0.95 -> 1.349180429 | AA24: lug | AB24: =+fc!W41/SUM(fc!$W$35:$W$46) -> 0.1182596826 | AC24: 236.5193653 | AD24: =+AC24*fc!E41 -> 236.5193653 | AE24: 109.2719468
C25: 31 | D25: lug | E25: =+Tabelle5!E50 -> 225.2881944 | F25: =+Tabelle5!H50 -> 21.979 | G25: 0 | H25: 18.02305556 | I25: =+tab_bollitore!$J$58*24*C25*($T$9-tempcentr)/1000 -> 48.8064 | J25: 314.09665 | K25: =+fc!AD41 -> 233.0589481 | L25: 0 | M25: 81.03770191 | N25: 9.004189101 | O25: 6.774860699 | P25: =(E25+F25+G25+H25+I25+N25-fc!AD41)/potenza_gen_acs -> 10.00465456 | Q25: 1.000465456 | R25: 346.4192229 | S25: 236.7133514 | T25: 109.7058716 | V25: =+'Dettaglio mesi'!K37 -> 24.4 | W25: =+VLOOKUP(V25,Tabelle6!$K$18:$M$73,3,TRUE)/100*0.919*0.95 -> 1.510944169 | AA25: ago | AB25: =+fc!W42/SUM(fc!$W$35:$W$46) -> 0.1167954157 | AC25: 233.5908313 | AD25: =+AC25*fc!E42 -> 233.5908313 | AE25: 107.9189641
C26: 31 | D26: ago | E26: =+Tabelle5!E51 -> 225.2881944 | F26: =+Tabelle5!H51 -> 21.979 | G26: 0 | H26: 18.02305556 | I26: =+tab_bollitore!$J$58*24*C26*($T$9-tempcentr)/1000 -> 48.8064 | J26: 314.09665 | K26: =+fc!AD42 -> 230.6481489 | L26: 0 | M26: 83.44850111 | N26: 9.272055679 | O26: 6.690975772 | P26: =(E26+F26+G26+H26+I26+N26-fc!AD42)/potenza_gen_acs -> 10.30228409 | Q26: 1.030228409 | R26: 346.6900476 | S26: 234.2771149 | T26: 112.4129328 | V26: =+'Dettaglio mesi'!L37 -> 24.3 | W26: =+VLOOKUP(V26,Tabelle6!$K$18:$M$73,3,TRUE)/100*0.919*0.95 -> 1.510944169 | AA26: set | AB26: =+fc!W43/SUM(fc!$W$35:$W$46) -> 0.09909724791 | AC26: 198.1944958 | AD26: =+AC26*fc!E43 -> 198.1944958 | AE26: 91.56585707
C27: 30 | D27: set | E27: =+Tabelle5!E52 -> 218.0208333 | F27: =+Tabelle5!H52 -> 21.27 | G27: 0 | H27: 17.44166667 | I27: =+tab_bollitore!$J$58*24*C27*($T$9-tempcentr)/1000 -> 47.232 | J27: 303.9645 | K27: =+fc!AD43 -> 197.9578427 | L27: 0 | M27: 106.0066573 | N27: 11.77851748 | O27: 5.677083138 | P27: =(E27+F27+G27+H27+I27+N27-fc!AD43)/potenza_gen_acs -> 13.08724165 | Q27: 1.308724165 | R27: 338.5379299 | S27: 201.2411721 | T27: 137.2967578 | V27: =+'Dettaglio mesi'!M37 -> 21.1 | W27: =+VLOOKUP(V27,Tabelle6!$K$18:$M$73,3,TRUE)/100*0.919*0.95 -> 1.349180429 | AA27: ott | AB27: =+fc!W44/SUM(fc!$W$35:$W$46) -> 0.07947983113 | AC27: 158.9596623 | AD27: =+AC27*fc!E44 -> 95.51895126 | AE27: 44.12975548
C28: 31 | D28: ott | E28: =+Tabelle5!E53 -> 225.2881944 | F28: =+Tabelle5!H53 -> 21.979 | G28: 0 | H28: 18.02305556 | I28: =+tab_bollitore!$J$58*24*C28*($T$9-tempcentr)/1000 -> 48.8064 | J28: 314.09665 | K28: =+fc!AD44 -> 102.923497 | L28: 0 | M28: 211.173153 | N28: 23.46368366 | O28: 2.73604484 | P28: =(E28+F28+G28+H28+I28+N28-fc!AD44)/potenza_gen_acs -> 26.07075963 | Q28: 2.607075963 | R28: 362.2225278 | S28: 105.4347638 | T28: 256.787764 | V28: =+'Dettaglio mesi'!N37 -> 15.8 | W28: =+VLOOKUP(V28,Tabelle6!$K$18:$M$73,3,TRUE)/100*0.919*0.95 -> 1.071326661 | AA28: nov | AB28: =+fc!W45/SUM(fc!$W$35:$W$46) -> 0.05571968143 | AC28: 111.4393629 | AD28: =+AC28*fc!E45 -> 44.80874641 | AE28: 20.70164084
C29: 30 | D29: nov | E29: =+Tabelle5!E54 -> 218.0208333 | F29: =+Tabelle5!H54 -> 21.27 | G29: 0 | H29: 17.44166667 | I29: =+tab_bollitore!$J$58*24*C29*($T$9-tempcentr)/1000 -> 47.232 | J29: 303.9645 | K29: =+fc!AD45 -> 47.19268673 | L29: 0 | M29: 256.7718133 | N29: 28.53020147 | O29: 1.283501732 | P29: =(E29+F29+G29+H29+I29+N29-fc!AD45)/potenza_gen_acs -> 31.70022386 | Q29: 3.170022386 | R29: 357.5373306 | S29: 49.28584307 | T29: 308.2514875 | V29: =+'Dettaglio mesi'!O37 -> 10.9 | W29: =+VLOOKUP(V29,Tabelle6!$K$18:$M$73,3,TRUE)/100*0.919*0.95 -> 0.8821247364 | AA29: dic | AB29: =+fc!W46/SUM(fc!$W$35:$W$46) -> 0.04590037358 | AC29: 91.80074715 | AD29: =+AC29*fc!E46 -> 30.04186399 | AE29: 13.87934116
C30: 31 | D30: dic | E30: =+Tabelle5!E55 -> 225.2881944 | F30: =+Tabelle5!H55 -> 21.979 | G30: 0 | H30: 18.02305556 | I30: =+tab_bollitore!$J$58*24*C30*($T$9-tempcentr)/1000 -> 48.8064 | J30: 314.09665 | K30: =+fc!AD46 -> 29.57884984 | L30: 0 | M30: 284.5178002 | N30: 31.61308891 | O30: 0.8605191521 | P30: =(E30+F30+G30+H30+I30+N30-fc!AD46)/potenza_gen_acs -> 35.12565434 | Q30: 3.512565434 | R30: 372.0991481 | S30: 31.63419959 | T30: 340.4649485 | V30: =+'Dettaglio mesi'!P37 -> 7 | W30: =+VLOOKUP(V30,Tabelle6!$K$18:$M$73,3,TRUE)/100*0.919*0.95 -> 0.785745
E31: =SUM(E19:E30) -> 2652.586806 | F31: 258.785 | G31: 0 | H31: 212.2069444 | I31: 574.656 | J31: 3698.23475 | K31: 1424.717624 | L31: 0 | M31: 2273.517126 | N31: 252.613014 | O31: 40.04325532 | Q31: =SUM(Q19:Q30) -> 28.06811266 | R31: =SUM(R19:R30) -> 4241.983781 | S31: =SUM(S19:S30) -> 1456.729967 | T31: =SUM(T19:T30) -> 2785.253814 | U31: =+S31/R31 -> 0.3434077173 | AB31: =SUM(AB18:AB30) -> 1 | AC31: 2000 | AD31: =SUM(AD18:AD29) -> 1397.96311 | AE31: =SUM(AE18:AE29) -> 645.8589568 | AF31: =+AE31*AB15 -> 40043.25532 | AG31: =+AF31/1000 -> 40.04325532
F32: =+F31/E31 -> 0.09755948399 | G32: =+G31/E31 -> 0 | H32: =+H31/E31 -> 0.08 | I32: =+I31/E31 -> 0.2166398471 | AF32: Wh | AG32: kWh
A34: rendimento globale ACS | E34: ?
D36: ADOTTA IL CALCOLO CTI | E36: ?
D37: COPERTURA SOLARE EN.PRIM.ACS | E37: ?
A41: Rendimenti per riscaldamento:
A43: emissione | D43: descrizione | E43: eta
C44: 1 | D44: Ad aria (termoconv., venticonv.) | E44: 0.98
C45: 2 | D45: Radiatori | E45: 0.96
C46: 3 | D46: Pannelli radianti | E46: 0.96
C47: 4 | D47: --- non presente riscaldamento --- | E47: 1
C48: 4 | D48: =+VLOOKUP(C48,C44:E47,2) -> --- non presente riscaldamento --- | E48: =+VLOOKUP(C48,C44:E47,3) -> 1
A51: regolazione | E51: 98 | G51: %
E52: =+regolaz_risc/100 -> 0.98
A54: distribuzione | E54: 92 | G54: %
E55: =+distrib_risc/100 -> 0.92
A57: combustione | B57: eta, c | D57: dal foglio TABELLE6 | E57: =+Tabelle6!C11/100 -> 0.91
A60: rendimento globale RISC | E60: =+E48*E52*E55*E57 -> 0.820456

Sheet fc (hidden)
B3: Fabbisogno applicato all'impianto solare per acqua calda sanitaria | I3: QW,gn,out | J3: =+S47 -> 3698.23475 | K3: kWh/anno | U3: XH | V3: XW | W3: YH | X3: YW
B4: Fabbisogno applicato all'impianto solare per riscaldamento | I4: QH,gn,out | J4: =+R47 -> 3685.5 | K4: kWh/anno
U5: =+$F35*$D$20*$D$22*Q35*$J35*M35/(R35*1000) -> 0.4241789203 | V5: =+$G35*$D$20*$D$22*P35*$K35*M35/(S35*1000) -> 0.4665519257 | W5: =+$F35*$J$10*$J$7*$D$22*W35/(R35*1000) -> 0.1239309652 | X5: =+$G35*$J$10*$J$7*$D$22*W35/(S35*1000) -> 0.1239309652
B6: Superficie di apertura collettore solare | I6: A | J6: =+superficie -> 2.4 | K6: m2 | U6: 0.4125897214 | V6: =+$G36*$D$20*$D$22*P36*$K36*M36/(S36*1000) -> 0.4478763027 | W6: 0.1612424704 | X6: =+$G36*$J$10*$J$7*$D$22*W36/(S36*1000) -> 0.1612424704
B7: Coefficienti collettore solare | I7: h0 | J7: =+eta0 -> 0.687 | U7: 0.5028081049 | V7: 0.52592061 | W7: 0.2610351814 | X7: 0.2610351814
I8: a1 | J8: =+kappa1 -> 0.613 | U8: 0.6117524555 | V8: 0.6057125466 | W8: 0.3761432494 | X8: 0.3761432494
I9: a2 | J9: =+kappa2 -> 0.003 | U9: 0.8482711431 | V9: 0.7867612404 | W9: 0.578083198 | X9: 0.578083198
I10: IAM | J10: =+IAM -> 1 | V10: 0.9808089846 | X10: 0.8926982162
B11: Coerrifiente di scambio termico dello scambiatore di calore | I11: (Ust)hx | J11: 2300 | K11: W/K | V11: 0.888220711 | X11: 0.9881313735
B12: Volume serbatoio riscaldato dal solare | I12: Vnom | J12: =+tab_bollitore!C58 -> 543 | K12: litri | V12: 0.8916499064 | X12: 0.9758965348
V13: 1.001384156 | X13: 0.8556181962
U14: 0.7478576537 | V14: 0.7109443947 | W14: 0.3990593852 | X14: 0.3990593852
U15: 0.5295489542 | V15: 0.5432898878 | W15: 0.1934421974 | X15: 0.1934421974
U16: 0.4498501248 | V16: 0.4859348767 | W16: 0.1255089971 | X16: 0.1255089971
B17: Rapporto | C17: PW | D17: ??
C18: PH | D18: ??
C20: Uloop | D20: =+J8+40*J9+(5+0.5*J6)/IF(J6=0,0.0000000000000000001,J6) -> 3.316333333 | E20: W/m2 K | L20: Temperatura di riferimento, imp.acs | M20: vedi calcolo mensile
C21: Dh | D21: =+J7*J6*J8/J11 -> 0.0004394410435 | L21: Temperatura di riferimento, imp.risc | M21: 100 | N21: °C
C22: hloop | D22: =+IF(aquasys,1,0.8) -> 1 | E22: =1-D21 -> 0.999560559
P24: Vsol
L25: Vsol | M25: =+VLOOKUP(N25,O25:P28,2,FALSE) -> 476.4 | N25: =+IF(preriscaldo,1,2) -> 2 | O25: 1 | P25: =+J12 -> 543 | Q25: 1 = preriscaldo
O26: 2 | P26: =+J12*(1-R27) -> 476.4 | Q26: 2 = bollitore con solare tradiz. (solare sotto, caldaia sopra)
Q27: f aux = | R27: =+tab_bollitore!D59*U27 -> 0.1226519337 | T27: x = | U27: =+IF(aquasys,0.3,1) -> 0.3
R30: PDC?
R31: =+Tabelle6!P10 -> FALSE
D33: pH | E33: pW | F33: A*pH | G33: A*pW | H33: Vol_H | I33: Vol_W | J33: fst_H | K33: fst_W | M33: tm | N33: Te,avg | O33: Tref, acs | P33: DTW | Q33: DTH | R33: QH,gn,out | S33: QW,gn,out | T33: Qgn,out | U33: XH | V33: XW | W33: Im | Y33: YH | Z33: YW | AA33: Qsol,out H | AB33: Qsol,out W | AC33: Qsol,out H | AD33: Qsol,out W | AE33: Qsol,out | AF33: f | AG33: fH | AH33: fW
M34: ore | N34: °C | O34: °C | P34: K | R34: [kWh] | S34: [kWh] | T34: [kWh] | W34: Wh/m2 | X34: kWh/m2 | AA34: kWh | AB34: kWh | AC34: kWh | AD34: kWh | AE34: kWh
C35: gen | D35: =+R35/(R35+S35) -> 0.6963222054 | E35: =+S35/(R35+S35) -> 0.3036777946 | F35: =+$J$6*D35 -> 1.671173293 | G35: =+$J$6*E35 -> 0.7288267071 | H35: =+$M$25*D35 -> 331.7278986 | I35: =+$M$25*E35 -> 144.6721014 | J35: =+(F35*75/H35)^0.25 -> 0.7840164736 | K35: =+(G35*75/I35)^0.25 -> 0.7840164736 | M35: =31*24 -> 744 | N35: =+'Dettaglio mesi'!E37 -> 5.5 | O35: =11.6+1.18*40+3.86*15-1.32*N35 -> 109.44 | P35: =+O35-N35 -> 103.94 | Q35: =+$M$21-N35 -> 94.5 | R35: =IF(INTEGRAZ,fabb_risc!D36,0)*IF($R$31=TRUE,1,(Tabelle6!$C$11/100)) -> 720.2122642 | S35: =IF(ACS,cti!E19+cti!F19+cti!G19+cti!H19+cti!I19,0) -> 314.09665 | T35: =+S35+R35 -> 1034.308914 | U35: =+IF(U5<0,0,IF(U5>18,18,U5)) -> 0.4241789203 | V35: =+IF(V5<0,0,IF(V5>18,18,V5)) -> 0.4665519257 | W35: =1000*X35 -> 77743.14778 | X35: =+'UNI8477'!E18 -> 77.74314778 | Y35: =+IF(W5<0,0,IF(W5>3,3,W5)) -> 0.1239309652 | Z35: =+IF(X5<0,0,IF(X5>3,3,X5)) -> 0.1239309652 | AA35: =+($E$50*Y35+$E$51*U35+$E$52*Y35^2+$E$53*U35^2+$E$54*Y35^3+$E$55*U35^3)*R35 -> 69.54023973 | AB35: =+($E$50*Z35+$E$51*V35+$E$52*Z35^2+$E$53*V35^2+$E$54*Z35^3+$E$55*V35^3)*S35 -> 29.48390473 | AC35: =+IF(R35=0,0,IF(AA35<0,0,IF(AA35>R35,R35,AA35))) -> 69.54023973 | AD35: =+IF(S35=0,0,IF(AB35<0,0,IF(AB35>S35,S35,AB35))) -> 29.48390473 | AE35: =+AD35+AC35 -> 99.02414445 | AF35: =+AE35/T35 -> 0.09573942862 | AG35: =+AC35/R35 -> 0.09655520072 | AH35: =+AD35/S35 -> 0.09386889267
C36: feb | D36: 0.7011403447 | E36: 0.2988596553 | F36: 1.682736827 | G36: 0.7172631726 | H36: =+$M$25*D36 -> 334.0232602 | I36: 142.3767398 | J36: 0.7840164736 | K36: 0.7840164736 | M36: =28*24 -> 672 | N36: =+'Dettaglio mesi'!F37 -> 6.6 | O36: 107.988 | P36: 101.388 | Q36: 93.4 | R36: =IF(INTEGRAZ,fabb_risc!E36,0)*IF($R$31=TRUE,1,(Tabelle6!$C$11/100)) -> 665.5754717 | S36: =IF(ACS,cti!E20+cti!F20+cti!G20+cti!H20+cti!I20,0) -> 283.7002 | T36: 949.2756717 | U36: =+IF(U6<0,0,IF(U6>18,18,U6)) -> 0.4125897214 | V36: 0.4478763027 | W36: 92833.3057 | X36: =+'UNI8477'!F18 -> 92.8333057 | Y36: =+IF(W6<0,0,IF(W6>3,3,W6)) -> 0.1612424704 | Z36: =+IF(X6<0,0,IF(X6>3,3,X6)) -> 0.1612424704 | AA36: 88.60601812 | AB36: 37.13293867 | AC36: 88.60601812 | AD36: 37.13293867 | AE36: 125.7389568 | AF36: 0.1324577892 | AG36: 0.1331269283 | AH36: 0.1308879538
C37: mar | D37: 0.6241197965 | E37: 0.3758802035 | F37: 1.497887512 | G37: 0.9021124884 | H37: =+$M$25*D37 -> 297.330671 | I37: 179.069329 | J37: 0.7840164736 | K37: 0.7840164736 | M37: =31*24 -> 744 | N37: =+'Dettaglio mesi'!G37 -> 9.5 | O37: 104.16 | P37: 94.66 | Q37: 90.5 | R37: =IF(INTEGRAZ,fabb_risc!F36,0)*IF($R$31=TRUE,1,(Tabelle6!$C$11/100)) -> 521.5330189 | S37: =IF(ACS,cti!E21+cti!F21+cti!G21+cti!H21+cti!I21,0) -> 314.09665 | T37: 835.6296689 | U37: 0.5028081049 | V37: 0.52592061 | W37: 132295.4526 | X37: =+'UNI8477'!G18 -> 132.2954526 | Y37: 0.2610351814 | Z37: 0.2610351814 | AA37: 114.7716929 | AB37: 68.66356913 | AC37: 114.7716929 | AD37: 68.66356913 | AE37: 183.435262 | AF37: 0.2195174117 | AG37: 0.2200660145 | AH37: 0.2186064994
C38: apr | D38: 0.5226330072 | E38: 0.4773669928 | F38: 1.254319217 | G38: 1.145680783 | H38: =+$M$25*D38 -> 248.9823646 | I38: 227.4176354 | J38: 0.7840164736 | K38: 0.7840164736 | M38: =30*24 -> 720 | N38: =+'Dettaglio mesi'!H37 -> 13.3 | O38: 99.144 | P38: 85.844 | Q38: 86.7 | R38: =IF(INTEGRAZ,fabb_risc!G36,0)*IF($R$31=TRUE,1,(Tabelle6!$C$11/100)) -> 332.7877358 | S38: =IF(ACS,cti!E22+cti!F22+cti!G22+cti!H22+cti!I22,0) -> 303.9645 | T38: 636.7522358 | U38: 0.6117524555 | V38: 0.6057125466 | W38: 145263.2551 | X38: =+'UNI8477'!H18 -> 145.2632551 | Y38: 0.3761432494 | Z38: 0.3761432494 | AA38: 104.642375 | AB38: 95.69445618 | AC38: 104.642375 | AD38: 95.69445618 | AE38: 200.3368312 | AF38: 0.314622894 | AG38: 0.314441801 | AH38: 0.314821159
C39: mag | D39: 0.3068932643 | E39: 0.6931067357 | F39: 0.7365438342 | G39: 1.663456166 | H39: =+$M$25*D39 -> 146.2039511 | I39: 330.1960489 | J39: 0.7840164736 | K39: 0.7840164736 | M39: =31*24 -> 744 | N39: =+'Dettaglio mesi'!I37 -> 17.2 | O39: 93.996 | P39: 76.796 | Q39: 82.8 | R39: =IF(INTEGRAZ,fabb_risc!H36,0)*IF($R$31=TRUE,1,(Tabelle6!$C$11/100)) -> 139.0754717 | S39: =IF(ACS,cti!E23+cti!F23+cti!G23+cti!H23+cti!I23,0) -> 314.09665 | T39: 453.1721217 | U39: 0.8482711431 | V39: =+IF(V9<0,0,IF(V9>18,18,V9)) -> 0.7867612404 | W39: 158885.9712 | X39: =+'UNI8477'!I18 -> 158.8859712 | Y39: 0.578083198 | Z39: 0.578083198 | AA39: 64.43151196 | AB39: 146.7150565 | AC39: 64.43151196 | AD39: 146.7150565 | AE39: 211.1465685 | AF39: 0.4659301805 | AG39: 0.4632845114 | AH39: 0.4671016279
C40: giu | D40: 0 | E40: 1 | F40: 0 | G40: 2.4 | H40: 0 | I40: 476.4 | K40: 0.7840164736 | M40: =30*24 -> 720 | N40: =+'Dettaglio mesi'!J37 -> 21.7 | O40: 88.056 | P40: 66.356 | Q40: 78.3 | R40: =IF(INTEGRAZ,fabb_risc!I36,0)*IF($R$31=TRUE,1,(Tabelle6!$C$11/100)) -> 0 | S40: =IF(ACS,cti!E24+cti!F24+cti!G24+cti!H24+cti!I24,0) -> 303.9645 | T40: 303.9645 | V40: 0.9808089846 | W40: 164573.3666 | X40: =+'UNI8477'!J18 -> 164.5733666 | Z40: 0.8926982162 | AB40: 205.6677259 | AC40: 0 | AD40: 205.6677259 | AE40: 205.6677259 | AF40: 0.6766175849 | AH40: 0.6766175849
C41: lug | D41: 0 | E41: 1 | F41: 0 | G41: 2.4 | H41: 0 | I41: 476.4 | K41: 0.7840164736 | M41: =31*24 -> 744 | N41: =+'Dettaglio mesi'!K37 -> 24.4 | O41: 84.492 | P41: 60.092 | Q41: 75.6 | R41: =IF(INTEGRAZ,fabb_risc!J36,0)*IF($R$31=TRUE,1,(Tabelle6!$C$11/100)) -> 0 | S41: =IF(ACS,cti!E25+cti!F25+cti!G25+cti!H25+cti!I25,0) -> 314.09665 | T41: 314.09665 | V41: 0.888220711 | W41: 188239.1765 | X41: =+'UNI8477'!K18 -> 188.2391765 | Z41: 0.9881313735 | AB41: 233.0589481 | AC41: 0 | AD41: 233.0589481 | AE41: 233.0589481 | AF41: 0.7419975606 | AH41: 0.7419975606
C42: ago | D42: 0 | E42: 1 | F42: 0 | G42: 2.4 | H42: 0 | I42: 476.4 | K42: 0.7840164736 | M42: =31*24 -> 744 | N42: =+'Dettaglio mesi'!L37 -> 24.3 | O42: 84.624 | P42: 60.324 | Q42: 75.7 | R42: =IF(INTEGRAZ,fabb_risc!K36,0)*IF($R$31=TRUE,1,(Tabelle6!$C$11/100)) -> 0 | S42: =IF(ACS,cti!E26+cti!F26+cti!G26+cti!H26+cti!I26,0) -> 314.09665 | T42: 314.09665 | V42: 0.8916499064 | W42: 185908.4379 | X42: =+'UNI8477'!L18 -> 185.9084379 | Z42: 0.9758965348 | AB42: 230.6481489 | AC42: 0 | AD42: 230.6481489 | AE42: 230.6481489 | AF42: 0.7343222186 | AH42: 0.7343222186
C43: set | D43: 0 | E43: 1 | F43: 0 | G43: 2.4 | H43: 0 | I43: 476.4 | K43: 0.7840164736 | M43: =30*24 -> 720 | N43: =+'Dettaglio mesi'!M37 -> 21.1 | O43: 88.848 | P43: 67.748 | Q43: 78.9 | R43: =IF(INTEGRAZ,fabb_risc!L36,0)*IF($R$31=TRUE,1,(Tabelle6!$C$11/100)) -> 0 | S43: =IF(ACS,cti!E27+cti!F27+cti!G27+cti!H27+cti!I27,0) -> 303.9645 | T43: 303.9645 | V43: 1.001384156 | W43: 157737.4801 | X43: =+'UNI8477'!M18 -> 157.7374801 | Z43: 0.8556181962 | AB43: 197.9578427 | AC43: 0 | AD43: 197.9578427 | AE43: 197.9578427 | AF43: 0.651253165 | AH43: 0.651253165
C44: ott | D44: 0.3990994326 | E44: 0.6009005674 | F44: 0.9578386382 | G44: 1.442161362 | H44: 190.1309697 | I44: 286.2690303 | J44: 0.7840164736 | K44: 0.7840164736 | M44: =31*24 -> 744 | N44: =+'Dettaglio mesi'!N37 -> 15.8 | O44: 95.844 | P44: 80.044 | Q44: 84.2 | R44: =IF(INTEGRAZ,fabb_risc!M36,0)*IF($R$31=TRUE,1,(Tabelle6!$C$11/100)) -> 208.6132075 | S44: =IF(ACS,cti!E28+cti!F28+cti!G28+cti!H28+cti!I28,0) -> 314.09665 | T44: 522.7098575 | U44: =+IF(U14<0,0,IF(U14>18,18,U14)) -> 0.7478576537 | V44: 0.7109443947 | W44: 126511.5687 | X44: =+'UNI8477'!N18 -> 126.5115687 | Y44: 0.3990593852 | Z44: 0.3990593852 | AA44: 67.87826157 | AB44: 102.923497 | AC44: 67.87826157 | AD44: 102.923497 | AE44: 170.8017586 | AF44: 0.3267620768 | AG44: 0.3253785432 | AH44: 0.3276809766
C45: nov | D45: 0.5979091655 | E45: 0.4020908345 | F45: 1.434981997 | G45: 0.9650180028 | H45: 284.8439264 | I45: 191.5560736 | J45: 0.7840164736 | K45: 0.7840164736 | M45: =30*24 -> 720 | N45: =+'Dettaglio mesi'!O37 -> 10.9 | O45: 102.312 | P45: 91.412 | Q45: 89.1 | R45: =IF(INTEGRAZ,fabb_risc!N36,0)*IF($R$31=TRUE,1,(Tabelle6!$C$11/100)) -> 451.995283 | S45: =IF(ACS,cti!E29+cti!F29+cti!G29+cti!H29+cti!I29,0) -> 303.9645 | T45: 755.959783 | U45: 0.5295489542 | V45: 0.5432898878 | W45: 88691.48565 | X45: =+'UNI8477'!O18 -> 88.69148565 | Y45: 0.1934421974 | Z45: 0.1934421974 | AA45: 70.56724688 | AB45: 47.19268673 | AC45: 70.56724688 | AD45: 47.19268673 | AE45: 117.7599336 | AF45: 0.1557753947 | AG45: 0.1561238569 | AH45: 0.1552572315
C46: dic | D46: 0.6727492431 | E46: 0.3272507569 | F46: 1.614598183 | G46: 0.7854018166 | H46: 320.4977394 | I46: 155.9022606 | J46: 0.7840164736 | K46: 0.7840164736 | M46: =31*24 -> 744 | N46: =+'Dettaglio mesi'!P37 -> 7 | O46: 107.46 | P46: 100.46 | Q46: 93 | R46: =IF(INTEGRAZ,fabb_risc!O36,0)*IF($R$31=TRUE,1,(Tabelle6!$C$11/100)) -> 645.7075472 | S46: =IF(ACS,cti!E30+cti!F30+cti!G30+cti!H30+cti!I30,0) -> 314.09665 | T46: 959.8041972 | U46: 0.4498501248 | V46: 0.4859348767 | W46: 73061.65829 | X46: =+'UNI8477'!P18 -> 73.06165829 | Y46: 0.1255089971 | Z46: 0.1255089971 | AA46: 62.28230249 | AB46: 29.57884984 | AC46: 62.28230249 | AD46: 29.57884984 | AE46: 91.86115233 | AF46: 0.09570822111 | AG46: 0.09645589984 | AH46: 0.09417117258
R47: =SUM(R35:R46) -> 3685.5 | S47: =SUM(S35:S46) -> 3698.23475 | T47: =SUM(T35:T46) -> 7383.73475 | AC47: =SUM(AC35:AC46) -> 642.7196487 | AD47: =SUM(AD35:AD46) -> 1424.717624 | AE47: 2067.437273 | AF47: =+SUM(AE35:AE46)/T47 -> 0.2799988546 | AG47: =+AC47/R47 -> 0.1743914391 | AH47: =+AD47/S47 -> 0.3852426146
U48: X limitate a 18 | Y48: Y limitate a 3
D50: a | E50: 1.029
D51: b | E51: -0.065
D52: c | E52: -0.245
D53: d | E53: 0.0018
D54: e | E54: 0.0215
D55: f | E55: 0

Sheet Tabelle (hidden)
I1: ** | J1: **
A2: Rendimento pannellli | C2: eta0 | D2: a1 | E2: a2 | F2: RADdiff | G2: IAM (50) | H2: TIPO | I2: R.app.inv. | J2: R.app.est
A3: 1 | B3: --- Scegliere tipo pannello --- | C3: 0 | D3: 0 | E3: 0 | F3: 0 | G3: 0 | H3: CPC | I3: 0 | J3: 0
A4: 2 | B4: Star | C4: 0.644 | D4: 0.749 | E4: 0.005 | F4: 1 | G4: 1 | H4: CPC | I4: 0.5 | J4: 0.61 | M4: Ex pannelli:
A5: 3 | B5: CSO 21 | C5: 0.745 | D5: 2.007 | E5: 0.005 | F5: 0.9 | G5: 1 | H5: CSO | I5: 0.5 | J5: 0.61
A6: 4 | B6: AQUA PLASMA | C6: 0.687 | D6: 0.613 | E6: 0.003 | F6: 1 | G6: 1 | H6: CPC | I6: 0.5 | J6: 0.61 | M6: Rendimento pannellli | O6: eta0 | P6: a1 | Q6: a2 | R6: RADdiff | S6: IAM (50) | T6: TIPO | U6: R.app.inv. | V6: R.app.est
A7: 5 | B7: EasySun PLUS | C7: 0.7937875 | D7: 3.773916667 | E7: 0.01370416667 | F7: 0.85 | G7: 0.92 | H7: PIANO | I7: 0.4 | J7: 0.6 | M7: 5 | N7: EasySun II | O7: 0.801 | P7: 3.65 | Q7: 0.0169 | R7: 0.85 | S7: 0.94 | T7: PIANO | U7: 0.4 | V7: 0.6
A8: 6
A9: 7
A10: 8
A11: 9
A12: 10
A13: Scelto | B13: =+pannelloscelto -> 4
B14: =VLOOKUP(pannelloscelto,A3:E12,2,FALSE) -> AQUA PLASMA | C14: =VLOOKUP(pannelloscelto,A3:E12,3,FALSE) -> 0.687 | D14: =VLOOKUP(pannelloscelto,A3:E12,4,FALSE) -> 0.613 | E14: =VLOOKUP(pannelloscelto,A3:E12,5,FALSE) -> 0.003 | F14: =VLOOKUP(pannelloscelto,A3:F12,6,FALSE) -> 1 | G14: =VLOOKUP(pannelloscelto,A3:G12,7,FALSE) -> 1 | H14: =VLOOKUP(pannelloscelto,A3:H12,8,FALSE) -> CPC | I14: =VLOOKUP(pannelloscelto,A3:J12,9,FALSE) -> 0.5 | J14: =VLOOKUP(pannelloscelto,A3:J12,10,FALSE) -> 0.61
A15: Non modificare la posizione pannelli, vedi fogli "Dettaglio Solar o CPC", prime celle con rendimenti
A16: usato nel folgio DETTAGLIO, riga 213
A20: Latitudine | D20: L | E20: gradi ° | F20: =VLOOKUP(localitascelta,Tab_UNI!Z5:AG105,5,FALSE) -> 42
E21: rad | F21: =F20/180*PI() -> 0.7330382858
A22: Costante solare | D22: Ics | E22: W/m2 | F22: 1353
A23: Inclinazione del collettore b | E23: rad | F23: =F24/180*PI() -> 0.7853981634
E24: ° | F24: =+inclinazione -> 45 | H24: =+ABS(Tabelle!F24)+ABS(Tabelle!F26) -> 50
A25: Azimut del collettore | E25: rad | F25: =F26/180*PI() -> -0.0872664626 | H25: =+IF(H24>130,H26,"") -> 
E26: ° | F26: =+azimut -> -5 | H26: Attenzione: dati di input non adatti per la simulazione. Diminuire l'inclinazione del pannello oppure l'esposizione.
A27: Altitudine località | E27: m | F27: =VLOOKUP(localitascelta,Tab_UNI!Z5:AG105,4,FALSE) -> 154
A31: Elenco per azimut | C31: -90 | E31: Inclinazione | F31: 0
C32: -80 | F32: 5
C33: -70 | F33: 10
C34: -60 | F34: 15
C35: -50 | F35: 20
C36: -40 | F36: 30
C37: -30 | F37: 45
C38: -20 | F38: 60
C39: -15 | F39: 75
C40: -10 | F40: 90
C41: -5
C42: 0
C43: 5
C44: 10
C45: 15
C46: 20
C47: 30
C48: 40
C49: 50
C50: 60
C51: 70
C52: 80
C53: 90
A56: Non spostare queste celle qui sotto, perché sono usate anche nel web con i riferimenti alle celle
B57: Profili di utilizzo | C57: gen | D57: feb | E57: mar | F57: apr | G57: mag | H57: giu | I57: lug | J57: ago | K57: set | L57: ott | M57: nov | N57: dic
A58: 1 | B58: condominio | C58: 100 | D58: 100 | E58: 90 | F58: 90 | G58: 80 | H58: 80 | I58: 75 | J58: 80 | K58: 80 | L58: 90 | M58: 90 | N58: 100
A59: 2 | B59: casa | C59: 100 | D59: 100 | E59: 90 | F59: 90 | G59: 80 | H59: 80 | I59: 75 | J59: 80 | K59: 80 | L59: 90 | M59: 100 | N59: 100
A60: 3 | B60: uffici | C60: 100 | D60: 100 | E60: 100 | F60: 100 | G60: 90 | H60: 85 | I60: 80 | J60: 85 | K60: 90 | L60: 100 | M60: 100 | N60: 100
A61: 4 | B61: negozi | C61: 90 | D61: 90 | E61: 85 | F61: 75 | G61: 75 | H61: 65 | I61: 60 | J61: 65 | K61: 70 | L61: 75 | M61: 80 | N61: 100
A62: 5 | B62: sempre 100% | C62: 100 | D62: 100 | E62: 100 | F62: 100 | G62: 100 | H62: 100 | I62: 100 | J62: 100 | K62: 100 | L62: 100 | M62: 100 | N62: 100
A63: 6 | B63: personalizzato
A64: 5 | B64: =VLOOKUP($A$64,$A$58:$N$63,2,FALSE) -> sempre 100% | C64: =VLOOKUP($A$64,$A$58:$N$62,3,FALSE) -> 100 | D64: =VLOOKUP($A$64,$A$58:$N$62,4,FALSE) -> 100 | E64: =VLOOKUP($A$64,$A$58:$N$62,5,FALSE) -> 100 | F64: =VLOOKUP($A$64,$A$58:$N$62,6,FALSE) -> 100 | G64: =VLOOKUP($A$64,$A$58:$N$62,7,FALSE) -> 100 | H64: =VLOOKUP($A$64,$A$58:$N$62,8,FALSE) -> 100 | I64: =VLOOKUP($A$64,$A$58:$N$62,9,FALSE) -> 100 | J64: =VLOOKUP($A$64,$A$58:$N$62,10,FALSE) -> 100 | K64: =VLOOKUP($A$64,$A$58:$N$62,11,FALSE) -> 100 | L64: =VLOOKUP($A$64,$A$58:$N$62,12,FALSE) -> 100 | M64: =VLOOKUP($A$64,$A$58:$N$62,13,FALSE) -> 100 | N64: =VLOOKUP($A$64,$A$58:$N$62,14,FALSE) -> 100
B67: =+IF(A64=6,TRUE,FALSE) -> FALSE

Sheet Tabelle5 (hidden)
B1: Tipo | C1: UnitàMisura | D1: Litri | F1: litri * UM | J1: testo nel foglio FABB ACS
A2: 0 | B2: abitazione S < 35 m2 | C2: m2 | D2: =+ROUND(F2/unita_misura,2) -> 0.63 | E2: litri/G m2 | F2: =+(0*unita_misura+50)*num_alloggi -> 50 | J2: ="m2/alloggio"&" ("&num_alloggi&" alloggi)" -> m2/alloggio (1 alloggi) | M2: 1 | N2: Abitazioni | O2: =+IF(tipologia_sanitario=1,TRUE,FALSE) -> TRUE | R2: si | S2: TRUE | T2: elenco possibilità di casella scelta in parasol web
A3: 1 | B3: abitazione 35 < S < 50 m2 | C3: m2 | D3: =+ROUND(F3/unita_misura,2) -> 2.13 | E3: litri/G m2 | F3: =+(2.667*unita_misura-43.33)*num_alloggi -> 170.03 | G3: 1 | H3: numero alloggi | J3: ="m2/alloggio"&" ("&num_alloggi&" alloggi)" -> m2/alloggio (1 alloggi) | M3: 2 | N3: Altri utilizzi | O3: =+IF(tipologia_sanitario=2,TRUE,FALSE) -> FALSE | R3: no | S3: FALSE
A4: 2 | B4: abitazione 50 < S < 200 m2 | C4: m2 | D4: =+ROUND(F4/unita_misura,2) -> 1.53 | E4: litri/G m2 | F4: =+(1.067*unita_misura+36.67)*num_alloggi -> 122.03 | J4: ="m2/alloggio"&" ("&num_alloggi&" alloggi)" -> m2/alloggio (1 alloggi) | M4: 1
A5: 3 | B5: abitazione S > 200 m2 | C5: m2 | D5: =+ROUND(F5/unita_misura,2) -> 3.13 | E5: litri/G m2 | F5: =+(0*unita_misura+250)*num_alloggi -> 250 | J5: ="m2/alloggio"&" ("&num_alloggi&" alloggi)" -> m2/alloggio (1 alloggi)
A6: 4 | F6: =+D6*unita_misura -> 0
A7: 5 | B7: Dormitori, residence, B&B | C7: letti | D7: 40 | E7: litri/G per letto | F7: 3200 | J7: letti | M7: =+B7&" - "&D7&" "&E7&" - inserire "&C7 -> Dormitori, residence, B&B - 40 litri/G per letto - inserire letti | S7: FALSE | T7: usato in web per non visualizzare una domanda
A8: 6 | B8: Hotel fino a 3 stelle | C8: letti | D8: 60 | E8: litri/G per letto | F8: 4800 | J8: letti | M8: =+B8&" - "&D8&" "&E8&" - inserire "&C8 -> Hotel fino a 3 stelle - 60 litri/G per letto - inserire letti
A9: 7 | B9: Hotel 4 stelle | C9: letti | D9: 80 | E9: litri/G per letto | F9: 6400 | J9: letti | M9: =+B9&" - "&D9&" "&E9&" - inserire "&C9 -> Hotel 4 stelle - 80 litri/G per letto - inserire letti
A10: 8 | B10: Ospedale day hospital | C10: letti | D10: 10 | E10: litri/G per letto | F10: 800 | J10: letti | M10: =+B10&" - "&D10&" "&E10&" - inserire "&C10 -> Ospedale day hospital - 10 litri/G per letto - inserire letti
A11: 9 | B11: Ospedale con pernottamento | C11: letti | D11: 90 | E11: litri/G per letto | F11: 7200 | J11: letti | M11: =+B11&" - "&D11&" "&E11&" - inserire "&C11 -> Ospedale con pernottamento - 90 litri/G per letto - inserire letti
A12: 10 | B12: Scuole e istruzione | C12: alunni | D12: 0.2 | E12: litri/G per alunno | F12: 16 | J12: alunni | M12: =+B12&" - "&D12&" "&E12&" - inserire "&C12 -> Scuole e istruzione - 0,2 litri/G per alunno - inserire alunni
A13: 11 | B13: Scuole materne e asili nido | C13: bambini | D13: 8 | E13: litri/G per bambino | F13: 640 | J13: bambini | M13: =+B13&" - "&D13&" "&E13&" - inserire "&C13 -> Scuole materne e asili nido - 8 litri/G per bambino - inserire bambini
A14: 12 | B14: Attività sportive / palestre | C14: docce installate | D14: 50 | E14: litri/G doccia installata | F14: 4000 | J14: docce | M14: =+B14&" - "&D14&" "&E14&" - inserire "&C14 -> Attività sportive / palestre - 50 litri/G doccia installata - inserire docce installate
A15: 13 | B15: Spogliatori di stabilimenti | C15: docce installate | D15: 10 | E15: litri/G doccia installata | F15: 800 | J15: docce | M15: =+B15&" - "&D15&" "&E15&" - inserire "&C15 -> Spogliatori di stabilimenti - 10 litri/G doccia installata - inserire docce installate
A16: 14 | B16: Uffici | C16: m2 | D16: 0.2 | E16: litri/G m2 | F16: 16 | J16: m2 | M16: =+B16&" - "&D16&" "&E16&" - inserire "&C16 -> Uffici - 0,2 litri/G m2 - inserire m2
A17: 15 | B17: Esercizio commerciale con servizi igienici | C17: m2 | D17: 0.2 | E17: litri/G m2 | F17: 16 | J17: m2 | M17: Esercizio commerciale con servizi igienici - 0,2 litri/G m2 - inserire m2
A18: 16 | B18: Ristoranti | C18: coperti | D18: 65 | E18: litri/G coperto | F18: 5200 | J18: coperti | M18: Ristoranti - 65 litri/G coperto - inserire coperti
A19: 17 | B19: Catering, self service, bar | C19: coperti | D19: 25 | E19: litri/G coperto | F19: 2000 | J19: coperti | M19: Catering, self service, bar - 25 litri/G coperto - inserire coperti
A20: 18 | B20: Servizio lavanderia | C20: letti | D20: 50 | E20: litri/G per letto | F20: 4000 | J20: letti | M20: Servizio lavanderia - 50 litri/G per letto - inserire letti
A21: 19 | B21: Centri benessere | C21: ospiti | D21: 200 | E21: litri/G per ospite | F21: 16000 | J21: ospiti | M21: Centri benessere - 200 litri/G per ospite - inserire ospiti
A22: 20 | F22: 0
A23: 21 | B23: ALTRO UTILIZZO | C23: litri/giorno | D23: 1 | E23: litri/giorno | F23: 80 | J23: litri/giorno | M23: =+B23&" - "&" - inserire "&C23 -> ALTRO UTILIZZO - - inserire litri/giorno
A24: 22 | F24: 0
A25: 23 | F25: 0
A26: 24 | F26: 0
A27: 25 | F27: 0
A28: =+acs_scelto -> 3 | B28: =VLOOKUP(variabili!C29,A2:D27,2,FALSE) -> abitazione S > 200 m2 | C28: =VLOOKUP(acs_scelto,A2:D27,3,FALSE) -> m2 | D28: =VLOOKUP(acs_scelto,A2:D27,4,FALSE) -> 3.13 | E28: =VLOOKUP(acs_scelto,A2:E27,5,FALSE) -> litri/G m2 | F28: =VLOOKUP(acs_scelto,A2:F27,6,FALSE) -> 250 | G28: 80 | H28: NO | J28: =VLOOKUP(variabili!C29,A2:J27,10,FALSE) -> m2/alloggio (1 alloggi)
F29: litri * UM | G29: UM
B31: K tubo | C31: 0.4
B32: Tamb. | C32: 18.45833333 | D32: dato fisso!
B33: Tdistrib. | C33: 48 | D33: dato fisso!
B34: Lunghezza ricircolo | C34: 10 | G34: Valore da usare: | H34: =+F28 -> 250 | I34: litri/giorno
B35: Ore ricircolo | C35: 6
B36: Ricircolo | C36: TRUE | D36: Fabbisogno giornaliero per ricircolo: | G36: =k_ricircolo*lung_ricircolo*(tdistrib_ricircolo-tamb_ricircolo)*ore_ricircolo -> 709 | H36: Wh al giorno
D37: Fabbisogno per ricircolo da usare: | G37: =+G36*C36 -> 709 | H37: Wh
B38: temperature utilizzo | C38: =+fabb_ACS!L5 -> 40 | E38: Energia necessaria
B39: temperature entrata | C39: =+ROUND(AVERAGE('UNI8477'!E20:P20),0) -> 15 | D39: est | E39: =H34*(C38-C39)*4186/3600/1000 -> 7.267361111 | F39: kWh | G39: =+'UNI8477'!E20 -> 5.5
C40: =+C39 -> 15 | D40: inv. | E40: =H34*(C38-C40)*4186/3600/1000 -> 7.267361111 | F40: kWh
C41: =+C40&"°C / "&tcalda&"°C" -> 15°C / 40°C | D41: testoweb3
B43: Energia | C43: gg | D43: % | G43: en/gg | H43: ricircolo | I43: litri/giorno
B44: gen | C44: 31 | D44: =+fabb_ACS!C14 -> 100 | E44: =+D44*C44*$E$40/100 -> 225.2881944 | F44: kWh | G44: =E44/C44 -> 7.267361111 | H44: =+$G$37/1000*C44*D44/100 -> 21.979 | I44: =+$H$34*D44/100 -> 250
B45: feb | C45: 28 | D45: =+fabb_ACS!D14 -> 100 | E45: =+D45*C45*$E$40/100 -> 203.4861111 | F45: kWh | G45: =E45/C45 -> 7.267361111 | H45: =+$G$37/1000*C45*D45/100 -> 19.852 | I45: =+$H$34*D45/100 -> 250
B46: mar | C46: 31 | D46: =+fabb_ACS!E14 -> 100 | E46: =+D46*C46*$E$40/100 -> 225.2881944 | F46: kWh | G46: 7.267361111 | H46: 21.979 | I46: 250
B47: apr | C47: 30 | D47: =+fabb_ACS!F14 -> 100 | E47: =+D47*C47*$E$39/100 -> 218.0208333 | F47: kWh | G47: 7.267361111 | H47: 21.27 | I47: 250
B48: mag | C48: 31 | D48: =+fabb_ACS!G14 -> 100 | E48: 225.2881944 | F48: kWh | G48: 7.267361111 | H48: 21.979 | I48: 250
B49: giu | C49: 30 | D49: =+fabb_ACS!H14 -> 100 | E49: =+D49*C49*$E$39/100 -> 218.0208333 | F49: kWh | G49: 7.267361111 | H49: 21.27 | I49: 250
B50: lug | C50: 31 | D50: =+fabb_ACS!I14 -> 100 | E50: 225.2881944 | F50: kWh | G50: 7.267361111 | H50: 21.979 | I50: 250
B51: ago | C51: 31 | D51: =+fabb_ACS!J14 -> 100 | E51: 225.2881944 | F51: kWh | G51: 7.267361111 | H51: 21.979 | I51: 250
B52: set | C52: 30 | D52: =+fabb_ACS!K14 -> 100 | E52: 218.0208333 | F52: kWh | G52: 7.267361111 | H52: 21.27 | I52: 250
B53: ott | C53: 31 | D53: =+fabb_ACS!L14 -> 100 | E53: =+D53*C53*$E$40/100 -> 225.2881944 | F53: kWh | G53: 7.267361111 | H53: 21.979 | I53: 250
B54: nov | C54: 30 | D54: =+fabb_ACS!M14 -> 100 | E54: =+D54*C54*$E$40/100 -> 218.0208333 | F54: kWh | G54: 7.267361111 | H54: 21.27 | I54: 250
B55: dic | C55: 31 | D55: =+fabb_ACS!N14 -> 100 | E55: =+D55*C55*$E$40/100 -> 225.2881944 | F55: kWh | G55: 7.267361111 | H55: 21.979 | I55: =+$H$34*D55/100 -> 250
H56: =SUM(H44:H55) -> 258.785

Sheet Tabelle6 (hidden)
A1: verificato
L2: Fattore conversione in energia primaia
B3: Tipo | C3: Rend. | D3: Rend. ACS | E3: Combust. | F3: prezzo | I3: potere | K3: kg CO2 su unità | L3: fp tot | M3: €/kWh | N3: fp nren | O3: fp ren | P3: PDC?
A4: 1 | B4: Caldaia a condens. 4* | C4: 91 | D4: 90 | E4: metano | F4: 0.85 | G4: € / m3 | H4: m3 di metano | I4: 9500 | J4: Wh/m3 | K4: 1.97 | L4: 1.05 | M4: =+F4/I4*1000 -> 0.08947368421 | N4: 1.05 | O4: 0 | P4: FALSE
A5: 2 | B5: Caldaia 3* | C5: 87 | D5: 86 | E5: metano | F5: 0.85 | G5: € / m3 | H5: m3 di metano | I5: 9500 | J5: Wh/m3 | K5: 1.97 | L5: 1.05 | M5: 0.08947368421 | N5: 1.05 | O5: 0 | P5: FALSE
A6: 3 | B6: Pompa di calore aria-acqua | C6: 390 | D6: 210 | E6: elettricità | F6: 0.2 | G6: € / kWh el | H6: kWh el | I6: 1000 | J6: Wh/kWh el | K6: 0.41 | L6: 2.42 | M6: 0.2 | N6: 1.95 | O6: 0.47 | P6: TRUE
A7: 4 | B7: Caldaia a gasolio, monostadio | C7: 85 | D7: 80 | E7: gasolio | F7: 1.25 | G7: € / litro | H7: litri di gasolio | I7: 9800 | J7: Wh/litro | K7: 2.66 | L7: 1.07 | M7: 0.1275510204 | N7: 1.07 | O7: 0 | P7: FALSE
A8: 5 | B8: Caldaia a GPL | C8: 85 | D8: 80 | E8: gpl | F8: 1.15 | G8: € / litro | H8: litri di GPL | I8: 6900 | J8: Wh/litro | K8: 1.73 | L8: 1.05 | M8: 0.1666666667 | N8: 1.05 | O8: 0 | P8: FALSE
A9: 6 | B9: Caldaia a pellet | C9: 85 | D9: 85 | E9: pellet | F9: 0.2 | G9: € / kg | H9: kilogrammi di pellet | I9: 4800 | J9: Wh/kilogr. | K9: 0 | L9: 1 | M9: 0.04166666667 | N9: 0.2 | O9: 0.8 | P9: FALSE
A10: 1 | B10: =VLOOKUP(A10,A4:D9,2,FALSE) -> Caldaia a condens. 4* | C10: =VLOOKUP(A10,A4:D9,3,FALSE) -> 91 | D10: =VLOOKUP(A10,A4:D9,4,FALSE) -> 90 | E10: =VLOOKUP(A10,A4:E9,5,FALSE) -> metano | F10: =VLOOKUP(A10,A4:F9,6,FALSE) -> 0.85 | G10: =VLOOKUP(A10,A4:G9,7,FALSE) -> € / m3 | H10: proposte dal programma | I10: =VLOOKUP(A10,A4:I9,9,FALSE) -> 9500 | K10: =VLOOKUP(A10,A4:K9,11,FALSE) -> 1.97 | L10: =VLOOKUP(A10,A4:L9,12,FALSE) -> 1.05 | N10: =VLOOKUP(A10,A4:O9,14,FALSE) -> 1.05 | O10: =VLOOKUP(A10,A4:O9,15,FALSE) -> 0 | P10: =VLOOKUP(A10,A4:P9,16,FALSE) -> FALSE
B11: Inserito | C11: 91 | D11: 90 | F11: 0,85 | H11: usate nel calcolo: inserite dall'utente oppure proposte dal programma
A13: tasso | B13: tasso
A14: proposto | B14: inserito
A15: 4 | B15: 4 | K15: per COP acs da usare nel foglio "cti", l'utente inserisce il COPN a 55/7
K16: con questi coefficienti (tratti dalle nostre pdc) si trasfroma questo COP alle altre temperature esterne
K17: t.ext | L17: coeff | M17: COPN(t.ext)
B18: energia ACS | C18: =+riepilogo!J21 -> 1424.717624 | D18: kWh / anno | E18: =+C18*1000/I10/(cti!E16) -> 166.6336403 | K18: -15 | L18: 0.5243822691 | M18: =+L18*$D$11 -> 47.19440422
B19: energia RISC+PISC | C19: =+riepilogo!L21 -> 642.7196487 | D19: kWh / anno | E19: =+C19*1000/I10/(cti!E57) -> 74.34582402 | G19: CO2 kg | K19: -14 | L19: 0.5365022584 | M19: =+L19*$D$11 -> 48.28520325
E20: =ROUND(SUM(E18:E19),0) -> 241 | F20: =VLOOKUP(A10,A4:H9,8,FALSE) -> m3 di metano | G20: =+comb_evitato*K10 -> 474.77 | K20: -13 | L20: 0.549030968 | M20: 49.41278712
E21: =+E20*F11 -> 204.85 | F21: euro | K21: -12 | L21: 0.5619612349 | M21: 50.57651114
K22: -11 | L22: 0.5752875627 | M22: 51.77588064
K23: -10 | L23: 0.5885678739 | M23: 52.97110865
B24: potenza caldaia per poduzione acs | C24: 9 | D24: kW | K24: -9 | L24: 0.6018958531 | M24: 54.17062678
K25: -8 | L25: 0.6150789642 | M25: 55.35710678
K26: -7 | L26: 0.6312303818 | M26: 56.81073436
K27: -6 | L27: 0.6426114825 | M27: 57.83503343
K28: -5 | L28: 0.6569820834 | M28: 59.12838751
K29: -4 | L29: 0.6712399771 | M29: 60.41159794
K30: -3 | L30: 0.7013659646 | M30: 63.12293681
K31: -2 | L31: 0.731443337 | M31: 65.82990033
K32: -1 | L32: 0.76147239 | M32: 68.5325151
K33: 0 | L33: 0.7914534167 | M33: 71.2308075
K34: 1 | L34: 0.8213867079 | M34: 73.92480371
K35: 2 | L35: 0.8512725519 | M35: 76.61452967
K36: 3 | L36: 0.881111235 | M36: 79.30001115
K37: 4 | L37: 0.9109030409 | M37: 81.98127368
K38: 5 | L38: 0.9406482512 | M38: 84.65834261
K39: 6 | L39: 0.9703471452 | M39: 87.33124307
K40: 7 | L40: 1 | M40: 90
K41: 8 | L41: 1.039136118 | M41: 93.52225063
K42: 9 | L42: 1.08000847 | M42: 97.20076234
K43: 10 | L43: 1.122660324 | M43: 101.0394292
K44: 11 | L44: 1.167113879 | M44: 105.0402491
K45: 12 | L45: 1.213393092 | M45: 109.2053783
K46: 13 | L46: 1.261523807 | M46: 113.5371426
K47: 14 | L47: 1.311533883 | M47: 118.0380495
K48: 15 | L48: 1.36345336 | M48: 122.7108024
K49: 16 | L49: 1.417314621 | M49: 127.5583159
K50: 17 | L50: 1.47315259 | M50: 132.5837331
K51: 18 | L51: 1.531004943 | M51: 137.7904449
K52: 19 | L52: 1.59091235 | M52: 143.1821115
K53: 20 | L53: 1.652918741 | M53: 148.7626867
K54: 21 | L54: 1.717071607 | M54: 154.5364446
K55: 22 | L55: 1.783422331 | M55: 160.5080098
K56: 23 | L56: 1.852026571 | M56: 166.6823914
K57: 24 | L57: 1.922944682 | M57: 173.0650213
K58: 25 | L58: 1.996242188 | M58: 179.661797
K59: 26 | L59: 2.07199033 | M59: 186.4791297
K60: 27 | L60: 2.150266667 | M60: 193.5240001
K61: 28 | L61: 2.231155772 | M61: 200.8040195
K62: 29 | L62: 2.314750018 | M62: 208.3275016
K63: 30 | L63: 2.401150469 | M63: 216.1035422
K64: 31 | L64: 2.490467912 | M64: 224.1421121
K65: 32 | L65: 2.582824023 | M65: 232.4541621
K66: 33 | L66: 2.678352722 | M66: 241.051745
K67: 34 | L67: 2.777201725 | M67: 249.9481553
K68: 35 | L68: 2.879534353 | M68: 259.1580917
K69: 36 | L69: 2.985531618 | M69: 268.6978456
K70: 37 | L70: 3.095394672 | M70: 278.5855205
K71: 38 | L71: 3.209347663 | M71: 288.8412897
K72: 39 | L72: 3.327641096 | M72: 299.4876986
K73: 40 | L73: 3.450555806 | M73: 310.5500225

Sheet CT20 (hidden)
C1: Ag | D1: Qcol (kWh) | F1: Qu (kWh/m2) | H1: Sl | J1: Qu * Sl (kWh)
C2: Sup lorda m2 | D2: 50°C | E2: 75°C | F2: 50°C | G2: 75°C | H2: nr | I2: m2 | J2: 50°C | K2: 75°C | P2: Dal foglio "Tabelle"
A3: 1 | B3: STAR 15/39 | C3: 3.93 | D3: 2313 | E3: 1997 | F3: =D3/C3 -> 588.5496183 | G3: =E3/C3 -> 508.1424936 | H3: =+superficie/L3 -> 0.6857142857 | I3: =H3*C3 -> 2.694857143 | J3: =+I3*F3 -> 1586.057143 | K3: =+I3*G3 -> 1369.371429 | L3: 3.5 | P3: 1 | Q3: Star
A4: 2 | B4: CSO21 | C4: 2.38 | D4: 1201 | E4: 1004 | F4: =D4/C4 -> 504.6218487 | G4: =E4/C4 -> 421.8487395 | H4: =+superficie/L4 -> 1.804511278 | I4: =H4*C4 -> 4.294736842 | J4: =+I4*F4 -> 2167.218045 | K4: =+I4*G4 -> 1811.729323 | L4: 1.33 | P4: 2 | Q4: CSO 21
A5: 3 | B5: PLASMA 15/40 | C5: 3.99 | D5: 2568 | E5: 2316 | F5: =D5/C5 -> 643.6090226 | G5: =E5/C5 -> 580.4511278 | H5: =+superficie/L5 -> 0.6857142857 | I5: =H5*C5 -> 2.736 | J5: =+I5*F5 -> 1760.914286 | K5: =+I5*G5 -> 1588.114286 | L5: 3.5 | P5: 3 | Q5: AQUA PLASMA
A6: 4 | B6: EasySun II | C6: 2.15 | D6: 938 | E6: 544 | F6: =D6/C6 -> 436.2790698 | G6: =E6/C6 -> 253.0232558 | H6: =+superficie/L6 -> 1.2 | I6: =H6*C6 -> 2.58 | J6: =+I6*F6 -> 1125.6 | K6: =+I6*G6 -> 652.8 | L6: 2 | P6: 4 | Q6: EasySun II
A7: =+pannelloscelto -> 4 | I7: =+VLOOKUP(A7,A3:I6,9,FALSE) -> 2.58 | J7: =+VLOOKUP(A7,A3:K6,10,FALSE) -> 1125.6 | K7: =+VLOOKUP(A7,A3:K6,11,FALSE) -> 652.8 | P7: =+pannelloscelto -> 4 | R7: pannello scelto
C9: superficie lorda | P9: Dal foglio "Incentivi"
B10: Ci incentivo annuo €/kWh | C10: fino a 12 | D10: da 12,1 a 50 | E10: da 50,1 a 200 | F10: da 200,1 a 500 | G10: oltre 500 | P10: 1 | Q10: Detrazioni fiscali per efficienza energetica (65%)
B11: Per ACS @50°C | C11: 0.35 | D11: 0.32 | E11: 0.1 | F11: 0.09 | G11: 0.08 | P11: 2 | Q11: Detrazioni fiscali per ristrutturazione (50%)
B12: Per ACS, Risc @50°C | C12: 0.36 | D12: 0.33 | E12: 0.11 | F12: 0.1 | G12: 0.09 | P12: 3 | Q12: Conto energia 2.0 per ACS
B13: Per Processo BT, TLR @75°C | C13: 0.36 | D13: 0.33 | E13: 0.11 | F13: 0.1 | G13: 0.09 | P13: 4 | Q13: Conto energia 2.0 per ACS, riscaldamento
B14: Per Solar Cooling @75°C | C14: 0.43 | D14: 0.39 | E14: 0.13 | F14: 0.12 | G14: 0.11 | P14: 5 | Q14: Conto energia 2.0 per calore di processo
P15: 6 | Q15: Conto energia 2.0 per solar cooling
E16: incentivo annuo totale | P16: 7 | Q16: Altro
D17: Ci | E17: Qu | F17: Ia tot | P17: =+incentivi!C11 -> 3 | R17: incentivo scelto
B18: 1 | C18: Per ACS | D18: =+IF($I$7<=12,C11,IF($I$7<=50,D11,IF($I$7<=200,E11,IF($I$7<=500,F11,G11)))) -> 0.35 | E18: =+J7 -> 1125.6
B19: 2 | C19: Per ACS e riscaldamento | D19: =+IF($I$7<=12,C12,IF($I$7<=50,D12,IF($I$7<=200,E12,IF($I$7<=500,F12,G12)))) -> 0.36 | E19: =+J7 -> 1125.6
B20: 3 | C20: Per calore processo BT | D20: =+IF($I$7<=12,C13,IF($I$7<=50,D13,IF($I$7<=200,E13,IF($I$7<=500,F13,G13)))) -> 0.36 | E20: =+K7 -> 652.8
B21: 4 | C21: Per Solar Cooling | D21: =+IF($I$7<=12,C14,IF($I$7<=50,D14,IF($I$7<=200,E14,IF($I$7<=500,F14,G14)))) -> 0.43 | E21: =+K7 -> 652.8
B22: =+P17-2 -> 1 | C22: =+VLOOKUP(B22,B18:C21,2,FALSE) -> Per ACS | D22: =+VLOOKUP(B22,B18:D21,3,FALSE) -> 0.35 | E22: =+VLOOKUP(B22,B18:E21,4,FALSE) -> 1125.6 | F22: =+E22*D22 -> 393.96
D24: Numero rate: | E24: =+IF(I7<=50,2,5) -> 2
D25: Incentivo totale | E25: =+E24*F22 -> 787.92

Sheet tab_bollitore (hidden)
C3: V (litri) | D3: K (W/K) | E3: Vbu/Vnom | G3: Vbu
A4: 0 | B4: Aqua 200 | C4: 216 | D4: 1.22 | E4: =+G4/C4 -> 0.3287037037 | G4: 71
A5: 1 | B5: Aqua 300 | C5: 310 | D5: 1.47 | E5: =+G5/C5 -> 0.4193548387 | G5: 130
A6: 2 | B6: Aqua 400 | C6: 428 | D6: 1.56 | E6: =+G6/C6 -> 0.3901869159 | G6: 167
A7: 3 | B7: Aqua 500 | C7: 543 | D7: 1.64 | E7: =+G7/C7 -> 0.408839779 | G7: 222
A8: 4 | B8: AquaSunPlus 200 | C8: 212 | D8: 1.49 | E8: =+G8/C8 -> 0.4481132075 | G8: 95
A9: 5 | B9: AquaSunPlus 300 | C9: 297 | D9: 1.82 | E9: 0.3939393939 | G9: 117
A10: 6 | B10: AquaSunPlus 400 | C10: 419 | D10: 2.13 | E10: 0.3651551313 | G10: 153
A11: 7 | B11: AquaSunPlus 500 | C11: 513 | D11: 2.27 | E11: 0.4249512671 | G11: 218
A12: 8 | B12: AquaSunPlus 900 | C12: 885 | D12: 2.69 | E12: 0.5186440678 | G12: 459
A13: 9 | B13: AquaSun 1500 | C13: 1494 | D13: 3.11 | E13: 0.4625167336 | G13: 691
A14: 10 | B14: AquaSun 2000 | C14: 2013 | D14: 3.64 | E14: 0.4669647293 | G14: 940
A15: 11 | B15: AquaSun 300 A | C15: 297 | D15: 1.07 | E15: =+G15/C15 -> 0.2996632997 | G15: 89
A16: 12
A17: 13 | B17: AquaSun PDC 300 | C17: 299 | D17: 1.93 | E17: =+G17/C17 -> 1 | G17: 299
A18: 14 | B18: AquaSun PDC 500 | C18: 509 | D18: 2.56 | E18: =+G18/C18 -> 1 | G18: 509
A19: 15 | B19: AquaSun PDC 900 | C19: 883 | D19: 2.73 | E19: =+G19/C19 -> 1 | G19: 883
A20: 16 | B20: RLH 300 B | C20: 315 | D20: 1.42 | E20: =+G20/C20 -> 0.926984127 | G20: 292
A21: 17 | B21: RLH 500 B | C21: 465 | D21: 1.6 | E21: =+G21/C21 -> 0.9182795699 | G21: 427
A22: 18
A23: 19 | B23: Bollitore SR 500 | C23: 496 | D23: 2.38 | E23: =+G23/C23 -> 0.9818548387 | G23: 487
A24: 20 | B24: Bollitore SR 1000 | C24: 910 | D24: 3.13 | E24: =+G24/C24 -> 0.9824175824 | G24: 894
A25: 21 | B25: Bollitore SR 1500 | C25: 1526 | D25: 3.8 | E25: =+G25/C25 -> 0.9370904325 | G25: 1430
A26: 22
A27: 23 | B27: Aqua Expresso III 500 | C27: 500 | D27: 1.82 | E27: =+G27/C27 -> 0.604 | G27: 302
A28: 24 | B28: Aqua Expresso III 650 | C28: 636 | D28: 2 | E28: =+G28/C28 -> 0.5094339623 | G28: 324
A29: 25 | B29: Aqua Expresso III 800 | C29: 815 | D29: 2.18 | E29: =+G29/C29 -> 0.509202454 | G29: 415
A30: 26 | B30: Aqua Expresso III 1000 | C30: 1047 | D30: 2.38 | E30: =+G30/C30 -> 0.4680038204 | G30: 490
A31: 27 | B31: Aqua Expresso III 800 HF | C31: 805 | D31: 2.18 | E31: =+G31/C31 -> 0.7105590062 | G31: 572
A32: 28
A33: 29 | B33: Titan 400 Aqua | C33: 394 | D33: 2.29 | E33: =+G33/C33 -> 0.6421319797 | G33: 253
A34: 30 | B34: Titan 400 | C34: 394 | D34: 2.33 | E34: =+G34/C34 -> 0.6421319797 | G34: 253
A35: 31
A36: 32 | B36: R / RR 500 | C36: 512 | D36: 2.31 | E36: =+G36/C36 -> 0.525390625 | G36: 269
A37: 33 | B37: R / RR 750 | C37: 772 | D37: 2.87 | E37: =+G37/C37 -> 0.5569948187 | G37: 430
A38: 34 | B38: R / RR 1000 | C38: 926 | D38: 3.16 | E38: =+G38/C38 -> 0.5291576674 | G38: 490
A39: 35 | B39: R / RR 1500 | C39: 1526 | D39: 3.8 | E39: =+G39/C39 -> 0.5563564875 | G39: 849
A40: 36
A41: 37 | B41: Accumulo P / PR 500 | C41: 512 | D41: 2.31 | E41: =+G41/C41 -> 0.525390625 | G41: 269
A42: 38 | B42: Accumulo P / PR 800 | C42: 772 | D42: 2.87 | E42: =+G42/C42 -> 0.5569948187 | G42: 430
A43: 39 | B43: Accumulo P / PR 1000 | C43: 926 | D43: 3.16 | E43: =+G43/C43 -> 0.5291576674 | G43: 490
A44: 40 | B44: Accumulo P / PR 1500 | C44: 1526 | D44: 3.8 | E44: =+G44/C44 -> 0.5563564875 | G44: 849
A45: 41
A46: 42 | B46: PS 1500 | C46: 1489 | D46: 3.78 | E46: =+G46/C46 -> 0.7038280725 | G46: 1048 | H46: =+G46/C46 -> 0.7038280725
A47: 43 | B47: PS 2000 | C47: 2015 | D47: 4.2 | E47: 0.703 | G47: =0.703*C47 -> 1416.545
A48: 44 | B48: PS 3000 | C48: 3000 | D48: 4.6 | E48: 0.703 | G48: 2109
A49: 45 | B49: PS 4000 | C49: 4000 | D49: 5.3 | E49: 0.703 | G49: 2812
A50: 46 | B50: PS 5000 | C50: 5000 | D50: 6.3 | E50: 0.703 | G50: 3515
A51: 47 | B51: PS 6000 | C51: 6000 | D51: 6.7 | E51: 0.703 | G51: 4218
A52: 48 | B52: PS 7000 | C52: 7000 | D52: 7.1 | E52: 0.703 | G52: 4921
A53: 49 | B53: PS 8000 | C53: 8000 | D53: 7.5 | E53: 0.703 | G53: 5624
A54: 50
A55: 51 | B55: Bollitore Libravario Aqua | C55: 178 | D55: 1.33 | E55: =+G55/C55 -> 0.6179775281 | G55: 110
A56: 52
A58: =+numbollscelto -> 3 | B58: =VLOOKUP(numbollscelto,A4:D56,2,FALSE) -> Aqua 500 | C58: =VLOOKUP(numbollscelto,A4:D56,3,FALSE) -> 543 | D58: =VLOOKUP(numbollscelto,A4:D56,4,FALSE) -> 1.64 | E58: =+numerobollitori -> 1 | F58: =numerobollitori*C58 -> 543 | G58: =+sceltobollitore -> FALSE | H58: =+volumeinseritoboll -> 1500 | I58: =+IF(sceltobollitore=FALSE,F58,volumeinseritoboll*numerobollitori) -> 543 | J58: =+IF(sceltobollitore=FALSE,D58,k_bollitore) -> 1.64 | K58: =+IF(sceltobollitore=FALSE,B58,"Altro bollitore") -> Aqua 500
C59: Vbu/Vnom | D59: =VLOOKUP(numbollscelto,A4:E56,5,FALSE) -> 0.408839779 | E59: numero | F59: volume | G59: altro | H59: volume | I59: volume | J59: K | K59: descrizione
E60: bollitori | H60: inserito | I60: da usare | J60: da usare | K60: da usare

Sheet Tab_UNI (hidden)
A1: Prospetto VI - Valori medi mensili della temperatura media giornaliera dell'aria esterna | R1: Prospetto XIV - Velocità giornaliera del vento - Media annuale | Z1: Latitudine
AM2: GEN. | AO2: FEB. | AQ2: MAR. | AS2: APR. | AU2: MAG. | AW2: GIU. | AY2: LUG. | BA2: AGO. | BC2: SET. | BE2: OTT. | BG2: NOV. | BI2: DIC.
A3: N° | B3: Sigla | C3: Località | D3: Altitudine | E3: GEN. | F3: FEB. | G3: MAR. | H3: APR. | I3: MAG. | J3: GIU. | K3: LUG. | L3: AGO. | M3: SET. | N3: OTT. | O3: NOV. | P3: DIC. | R3: N° | S3: Sigla | T3: Località | U3: Altitudine | V3: Zona di | W3: w | X3: Direzione | Z3: N° | AA3: Sigla | AB3: Località | AC3: Altitudine | AD3: Latitudine | AF3: Longitudine | AH3: T min ext | AJ3: N° | AK3: Sigla | AL3: Località | AM3: Hd h | AN3: Hb h | AO3: Hd h | AP3: Hb h | AQ3: Hd h | AR3: Hb h | AS3: Hd h | AT3: Hb h | AU3: Hd h | AV3: Hb h | AW3: Hd h | AX3: Hb h | AY3: Hd h | AZ3: Hb h | BA3: Hd h | BB3: Hb h | BC3: Hd h | BD3: Hb h | BE3: Hd h | BF3: Hb h | BG3: Hd h | BH3: Hb h | BI3: Hd h | BJ3: Hb h
B4: Provincia | D4: m | E4: °C | F4: °C | G4: °C | H4: °C | I4: °C | J4: °C | K4: °C | L4: °C | M4: °C | N4: °C | O4: °C | P4: °C | S4: Provincia | U4: m | V4: vento | W4: m/s | X4: prevalente | AA4: Provincia | AC4: m | AD4: ° | AE4: ' | AF4: ° | AG4: ' | AK4: Prov | AM4: MJ/m2 | AN4: MJ/m2 | AO4: MJ/m2 | AP4: MJ/m2 | AQ4: MJ/m2 | AR4: MJ/m2 | AS4: MJ/m2 | AT4: MJ/m2 | AU4: MJ/m2 | AV4: MJ/m2 | AW4: MJ/m2 | AX4: MJ/m2 | AY4: MJ/m2 | AZ4: MJ/m2 | BA4: MJ/m2 | BB4: MJ/m2 | BC4: MJ/m2 | BD4: MJ/m2 | BE4: MJ/m2 | BF4: MJ/m2 | BG4: MJ/m2 | BH4: MJ/m2 | BI4: MJ/m2 | BJ4: MJ/m2 | BL4: COMUNE | BM4: ZonaClimat | BN4: PeriodoRis | BO4: GradGiorno | BQ4: COMUNE | BR4: ProvSigla | BS4: UmRelEST | BV4: TEMP.MAX.ESTIVA
A5: 1 | B5: AG | C5: Agrigento | D5: 230 | E5: 10.4 | F5: 10.8 | G5: 12.7 | H5: 15.6 | I5: 19.4 | J5: 24.1 | K5: 26.9 | L5: 26.5 | M5: 24 | N5: 19.9 | O5: 15.9 | P5: 12.2 | R5: 1 | S5: AG | T5: Agrigento | U5: 230 | V5: 3 | W5: 4.5 | X5: NW | Z5: 1 | AA5: AG | AB5: Agrigento | AC5: 230 | AD5: 37 | AE5: 18 | AF5: 13 | AG5: 35 | AH5: 3 | AJ5: 1 | AK5: AG | AL5: Agrigento | AM5: 3.4 | AN5: 5,4 | AO5: 4,2 | AP5: 8,3 | AQ5: 5,3 | AR5: 11,6 | AS5: 6,2 | AT5: 16,0 | AU5: 6,3 | AV5: 20,6 | AW5: 6,0 | AX5: 23,5 | AY5: 5,4 | AZ5: 24,2 | BA5: 4,8 | BB5: 22,2 | BC5: 4,9 | BD5: 16,0 | BE5: 4,3 | BF5: 10,3 | BG5: 3,5 | BH5: 6,6 | BI5: 3,0 | BJ5: 5,2 | BK5: 1 | BL5: AGRIGENTO | BM5: B | BN5: 121 | BO5: 729 | BP5: 1 | BQ5: AGRIGENTO | BR5: AG | BS5: 59.8 | BV5: 1 | BW5: AG | BX5: Agrigento | BY5: 33,0
A6: 2 | B6: AL | C6: Alessandria | D6: 95 | E6: 0 | F6: 2.8 | G6: 8.1 | H6: 13.1 | I6: 17.3 | J6: 22 | K6: 24.7 | L6: 23.6 | M6: 19.9 | N6: 13.1 | O6: 6.9 | P6: 1.9 | R6: 2 | S6: AL | T6: Alessandria | U6: 95 | V6: 1 | W6: 1.2 | X6: SE | Z6: 2 | AA6: AL | AB6: Alessandria | AC6: 95 | AD6: 44 | AE6: 54 | AF6: 8 | AG6: 36 | AH6: -8 | AJ6: 2 | AK6: AL | AL6: Alessandria | AM6: 2.4 | AN6: 2,3 | AO6: 3,5 | AP6: 4,0 | AQ6: 5,1 | AR6: 6,5 | AS6: 6,7 | AT6: 9,1 | AU6: 7,9 | AV6: 10,6 | AW6: 8,4 | AX6: 12,1 | AY6: 7,7 | AZ6: 14,9 | BA6: 7,0 | BB6: 11,0 | BC6: 5,6 | BD6: 7,8 | BE6: 4,0 | BF6: 4,5 | BG6: 2,7 | BH6: 2,6 | BI6: 2,1 | BJ6: 2,1 | BK6: 2 | BL6: ALESSANDRIA | BM6: E | BN6: 183 | BO6: 2559 | BP6: 2 | BQ6: ALESSANDRIA | BR6: AL | BS6: 44.4 | BV6: 2 | BW6: AL | BX6: Alessandria | BY6: 30,5
A7: 3 | B7: AN | C7: Ancona | D7: 16 | E7: 6.3 | F7: 7.1 | G7: 9.9 | H7: 13.4 | I7: 17 | J7: 21.8 | K7: 24.4 | L7: 24.1 | M7: 21.3 | N7: 16.5 | O7: 12.1 | P7: 7.8 | R7: 3 | S7: AN | T7: Ancona | U7: 16 | V7: 2 | W7: 3.2 | X7: W | Z7: 3 | AA7: AN | AB7: Ancona | AC7: 16 | AD7: 43 | AE7: 36 | AF7: 16 | AG7: 30 | AH7: -2 | AJ7: 3 | AK7: AN | AL7: Ancona | AM7: 2.5 | AN7: 1,8 | AO7: 3,7 | AP7: 3,9 | AQ7: 5,2 | AR7: 6,9 | AS7: 6,6 | AT7: 11,7 | AU7: 7,4 | AV7: 15,7 | AW7: 7,9 | AX7: 16,2 | AY7: 6,9 | AZ7: 19,1 | BA7: 6,4 | BB7: 15,6 | BC7: 5,4 | BD7: 10,6 | BE7: 4,1 | BF7: 6,4 | BG7: 2,8 | BH7: 2,7 | BI7: 2,3 | BJ7: 1,8 | BK7: 3 | BL7: ANCONA | BM7: D | BN7: 166 | BO7: 1688 | BP7: 3 | BQ7: ANCONA | BR7: AN | BS7: 37 | BV7: 3 | BW7: AN | BX7: Ancona | BY7: 30,1
A8: 4 | B8: AO | C8: Aosta | D8: 583 | E8: -0.3 | F8: 2.6 | G8: 6.7 | H8: 11 | I8: 14.7 | J8: 18.7 | K8: 20.5 | L8: 19.4 | M8: 15.9 | N8: 10.3 | O8: 4.8 | P8: 0.8 | R8: 4 | S8: AO | T8: Aosta | U8: 583 | V8: 2 | W8: 2.6 | X8: N | Z8: 4 | AA8: AO | AB8: Aosta | AC8: 583 | AD8: 45 | AE8: 44 | AF8: 7 | AG8: 18 | AH8: -10 | AJ8: 4 | AK8: AO | AL8: Aosta | AM8: 2.4 | AN8: 2,9 | AO8: 3,4 | AP8: 4,6 | AQ8: 4,9 | AR8: 7,2 | AS8: 6,7 | AT8: 9,0 | AU8: 7,9 | AV8: 10,3 | AW8: 8,4 | AX8: 11,5 | AY8: 8,0 | AZ8: 13,0 | BA8: 7,1 | BB8: 10,4 | BC8: 5,6 | BD8: 7,6 | BE8: 3,9 | BF8: 4,8 | BG8: 2,6 | BH8: 3,5 | BI8: 2,1 | BJ8: 2,7 | BK8: 4 | BL8: AOSTA | BM8: E | BN8: 183 | BO8: 2850 | BP8: 4 | BQ8: AOSTA | BR8: AO | BS8: 44.4 | BV8: 4 | BW8: AO | BX8: Aosta | BY8: 28,7
A9: 5 | B9: AR | C9: Arezzo | D9: 246 | E9: 5.1 | F9: 5.9 | G9: 9.2 | H9: 12.6 | I9: 16.4 | J9: 20.9 | K9: 24 | L9: 23.4 | M9: 20.3 | N9: 15 | O9: 10.2 | P9: 6.1 | R9: 5 | S9: AR | T9: Arezzo | U9: 246 | V9: 2 | W9: 4.5 | X9: NE | Z9: 5 | AA9: AR | AB9: Arezzo | AC9: 246 | AD9: 43 | AE9: 27 | AF9: 11 | AG9: 52 | AH9: 0 | AJ9: 5 | AK9: AR | AL9: Arezzo | AM9: 2.6 | AN9: 2,5 | AO9: 3,7 | AP9: 3,9 | AQ9: 5,2 | AR9: 6,0 | AS9: 6,9 | AT9: 8,2 | AU9: 8,0 | AV9: 11,2 | AW9: 8,2 | AX9: 14,0 | AY9: 7,7 | AZ9: 15,4 | BA9: 7,0 | BB9: 12,2 | BC9: 5,6 | BD9: 9,3 | BE9: 4,2 | BF9: 5,2 | BG9: 2,9 | BH9: 2,9 | BI9: 2,3 | BJ9: 1,8 | BK9: 5 | BL9: AREZZO | BM9: E | BN9: 183 | BO9: 2104 | BP9: 5 | BQ9: AREZZO | BR9: AR | BS9: 28.3 | BV9: 5 | BW9: AR | BX9: Arezzo | BY9: 31,5
A10: 6 | B10: AP | C10: Ascoli Piceno | D10: 154 | E10: 5.5 | F10: 6.6 | G10: 9.5 | H10: 13.3 | I10: 17.2 | J10: 21.7 | K10: 24.4 | L10: 24.3 | M10: 21.1 | N10: 15.8 | O10: 10.9 | P10: 7 | R10: 6 | S10: AP | T10: Ascoli Piceno | U10: 154 | V10: 1 | W10: 1.7 | X10: W | Z10: 6 | AA10: AP | AB10: Ascoli Piceno | AC10: 154 | AD10: 42 | AE10: 51 | AF10: 13 | AG10: 34 | AH10: -2 | AJ10: 6 | AK10: AP | AL10: Ascoli Piceno | AM10: 2.8 | AN10: 2,6 | AO10: 3,8 | AP10: 4,4 | AQ10: 5,3 | AR10: 7,3 | AS10: 6,8 | AT10: 10,4 | AU10: 7,8 | AV10: 13,0 | AW10: 8,0 | AX10: 15,7 | AY10: 7,1 | AZ10: 18,5 | BA10: 6,3 | BB10: 16,0 | BC10: 5,5 | BD10: 10,8 | BE10: 4,2 | BF10: 6,2 | BG10: 3,0 | BH10: 3,4 | BI10: 2,5 | BJ10: 2,3 | BK10: 6 | BL10: ASCOLI PICENO | BM10: D | BN10: 166 | BO10: 1698 | BP10: 6 | BQ10: ASCOLI PICENO | BR10: AP | BS10: 39.8 | BV10: 6 | BW10: AP | BX10: Ascoli Piceno | BY10: 32,9
A11: 7 | B11: AT | C11: Asti | D11: 123 | E11: -0.4 | F11: 2.7 | G11: 7.9 | H11: 13 | I11: 17 | J11: 21.6 | K11: 24.2 | L11: 22.9 | M11: 18.9 | N11: 12.7 | O11: 6.1 | P11: 1.3 | R11: 7 | S11: AT | T11: Asti | U11: 123 | V11: 1 | W11: 1.5 | X11: SW | Z11: 7 | AA11: AT | AB11: Asti | AC11: 123 | AD11: 44 | AE11: 53 | AF11: 8 | AG11: 12 | AH11: -8 | AJ11: 7 | AK11: AT | AL11: Asti | AM11: 2.5 | AN11: 2,7 | AO11: 3,5 | AP11: 4,4 | AQ11: 5,1 | AR11: 6,9 | AS11: 6,7 | AT11: 9,6 | AU11: 7,9 | AV11: 10,7 | AW11: 8,4 | AX11: 12,2 | AY11: 7,8 | AZ11: 14,7 | BA11: 7,1 | BB11: 10,7 | BC11: 5,6 | BD11: 7,5 | BE11: 4,0 | BF11: 5,1 | BG11: 2,7 | BH11: 2,9 | BI11: 2,1 | BJ11: 2,7 | BK11: 7 | BL11: ASTI | BM11: E | BN11: 183 | BO11: 2617 | BP11: 7 | BQ11: ASTI | BR11: AT | BS11: 44.4 | BV11: 7 | BW11: AT | BX11: Asti | BY11: 32,1
A12: 8 | B12: AV | C12: Avellino | D12: 348 | E12: 5.5 | F12: 6.5 | G12: 8.8 | H12: 12.4 | I12: 16 | J12: 20.3 | K12: 23.1 | L12: 22.6 | M12: 19.6 | N12: 14.8 | O12: 10.4 | P12: 6.8 | R12: 8 | S12: AV | T12: Avellino | U12: 348 | V12: 2 | W12: 4.4 | X12: W | Z12: 8 | AA12: AV | AB12: Avellino | AC12: 348 | AD12: 40 | AE12: 54 | AF12: 14 | AG12: 47 | AH12: -2 | AJ12: 8 | AK12: AV | AL12: Avellino | AM12: 2.9 | AN12: 2,5 | AO12: 4,0 | AP12: 4,4 | AQ12: 5,5 | AR12: 7,2 | AS12: 6,8 | AT12: 11,3 | AU12: 7,6 | AV12: 14,7 | AW12: 7,8 | AX12: 16,9 | AY12: 6,6 | AZ12: 20,3 | BA12: 6,0 | BB12: 17,9 | BC12: 5,4 | BD12: 12,3 | BE12: 4,3 | BF12: 7,7 | BG12: 3,2 | BH12: 3,8 | BI12: 2,6 | BJ12: 2,3 | BK12: 8 | BL12: AVELLINO | BM12: D | BN12: 166 | BO12: 1742 | BP12: 8 | BQ12: AVELLINO | BR12: AV | BS12: 48.8 | BV12: 8 | BW12: AV | BX12: Avellino | BY12: 30,1
A13: 9 | B13: BA | C13: Bari | D13: 5 | E13: 8.6 | F13: 9.2 | G13: 11.1 | H13: 14.2 | I13: 18 | J13: 22.3 | K13: 24.7 | L13: 24.5 | M13: 22 | N13: 17.9 | O13: 14 | P13: 10.2 | R13: 9 | S13: BA | T13: Bari | U13: 5 | V13: 2 | W13: 3.5 | X13: W | Z13: 9 | AA13: BA | AB13: Bari | AC13: 5 | AD13: 41 | AE13: 08 | AF13: 16 | AG13: 50 | AH13: 0 | AJ13: 9 | AK13: BA | AL13: Bari | AM13: 3,0 | AN13: 3,6 | AO13: 3,9 | AP13: 6,2 | AQ13: 5,3 | AR13: 9,2 | AS13: 6,3 | AT13: 14,3 | AU13: 6,8 | AV13: 18,5 | AW13: 6,7 | AX13: 21,3 | AY13: 5,9 | AZ13: 22,7 | BA13: 5,4 | BB13: 19,8 | BC13: 5,0 | BD13: 14,0 | BE13: 4,0 | BF13: 9,2 | BG13: 3,1 | BH13: 4,9 | BI13: 2,7 | BJ13: 3,0 | BK13: 9 | BL13: BARI | BM13: C | BN13: 137 | BO13: 1185 | BP13: 9 | BQ13: BARI | BR13: BA | BS13: 41.7 | BV13: 9 | BW13: BA | BX13: Bari | BY13: 32,3
A14: 10 | B14: BL | C14: Belluno | D14: 383 | E14: 0.1 | F14: 2.3 | G14: 6.8 | H14: 11.2 | I14: 14.9 | J14: 18.9 | K14: 21.2 | L14: 20.8 | M14: 17.7 | N14: 12.4 | O14: 6.5 | P14: 1.7 | R14: 10 | S14: BL | T14: Belluno | U14: 383 | V14: 1 | W14: 0.9 | X14: E | Z14: 10 | AA14: BL | AB14: Belluno | AC14: 383 | AD14: 46 | AE14: 08 | AF14: 12 | AG14: 13 | AH14: -10 | AJ14: 10 | AK14: BL | AL14: Belluno | AM14: 2.3 | AN14: 2,0 | AO14: 3,4 | AP14: 4,1 | AQ14: 4,9 | AR14: 7,0 | AS14: 6,7 | AT14: 8,6 | AU14: 7,9 | AV14: 11,4 | AW14: 8,4 | AX14: 12,1 | AY14: 7,9 | AZ14: 14,0 | BA14: 7,0 | BB14: 10,8 | BC14: 5,5 | BD14: 8,4 | BE14: 3,8 | BF14: 5,3 | BG14: 2,5 | BH14: 2,3 | BI14: 2,0 | BJ14: 1,9 | BK14: 10 | BL14: BELLUNO | BM14: E | BN14: 183 | BO14: 2936 | BP14: 10 | BQ14: BELLUNO | BR14: BL | BS14: 38.9 | BV14: 10 | BW14: BL | BX14: Belluno | BY14: 31,1
A15: 11 | B15: BN | C15: Benevento | D15: 135 | E15: 6.8 | F15: 7.7 | G15: 10.3 | H15: 13.7 | I15: 17.5 | J15: 22.1 | K15: 24.8 | L15: 24.3 | M15: 21.4 | N15: 16.5 | O15: 12.1 | P15: 8 | R15: 11 | S15: BN | T15: Benevento | U15: 135 | V15: 2 | W15: 4.4 | X15: W | Z15: 11 | AA15: BN | AB15: Benevento | AC15: 135 | AD15: 41 | AE15: 07 | AF15: 14 | AG15: 46 | AH15: -2 | AJ15: 11 | AK15: BN | AL15: Benevento | AM15: 2.9 | AN15: 2,8 | AO15: 4,0 | AP15: 4,7 | AQ15: 5,5 | AR15: 7,4 | AS15: 6,9 | AT15: 10,3 | AU15: 7,8 | AV15: 13,1 | AW15: 7,8 | AX15: 16,8 | AY15: 6,8 | AZ15: 19,6 | BA15: 6,3 | BB15: 16,6 | BC15: 5,7 | BD15: 10,7 | BE15: 4,3 | BF15: 6,8 | BG15: 3,2 | BH15: 3,4 | BI15: 2,6 | BJ15: 2,3 | BK15: 11 | BL15: BENEVENTO | BM15: C | BN15: 137 | BO15: 1316 | BP15: 11 | BQ15: BENEVENTO | BR15: BN | BS15: 48.8 | BV15: 11 | BW15: BN | BX15: Benevento | BY15: 32,2
A16: 12 | B16: BG | C16: Bergamo | D16: 249 | E16: 3.1 | F16: 4.9 | G16: 8.9 | H16: 13.3 | I16: 17 | J16: 21.3 | K16: 23.7 | L16: 23.2 | M16: 19.9 | N16: 14.2 | O16: 8.6 | P16: 4.5 | R16: 12 | S16: BG | T16: Bergamo | U16: 249 | V16: 1 | W16: 1.9 | X16: NE | Z16: 12 | AA16: BG | AB16: Bergamo | AC16: 249 | AD16: 45 | AE16: 41 | AF16: 9 | AG16: 40 | AH16: -5 | AJ16: 12 | AK16: BG | AL16: Bergamo | AM16: 2.3 | AN16: 1,9 | AO16: 3,4 | AP16: 3,5 | AQ16: 5,0 | AR16: 6,3 | AS16: 6,7 | AT16: 8,9 | AU16: 7,9 | AV16: 11,2 | AW16: 8,4 | AX16: 12,2 | AY16: 7,8 | AZ16: 14,6 | BA16: 6,9 | BB16: 11,9 | BC16: 5,5 | BD16: 8,5 | BE16: 3,9 | BF16: 5,2 | BG16: 2,6 | BH16: 2,1 | BI16: 2,1 | BJ16: 1,8 | BK16: 12 | BL16: BERGAMO | BM16: E | BN16: 183 | BO16: 2533 | BP16: 12 | BQ16: BERGAMO | BR16: BG | BS16: 38.7 | BV16: 12 | BW16: BG | BX16: Bergamo | BY16: 31,0
A17: 13 | B17: BO | C17: Bologna | D17: 54 | E17: 2.1 | F17: 4.6 | G17: 9.4 | H17: 14.2 | I17: 18.2 | J17: 22.9 | K17: 25.4 | L17: 24.9 | M17: 21.2 | N17: 14.9 | O17: 8.7 | P17: 4 | R17: 13 | S17: BO | T17: Bologna | U17: 54 | V17: 1 | W17: 1.6 | X17: SW | Z17: 13 | AA17: BO | AB17: Bologna | AC17: 54 | AD17: 44 | AE17: 29 | AF17: 11 | AG17: 20 | AH17: -5 | AJ17: 13 | AK17: BO | AL17: Bologna | AM17: 2.5 | AN17: 2,0 | AO17: 3,6 | AP17: 4,3 | AQ17: 5,1 | AR17: 7,0 | AS17: 6,6 | AT17: 10,7 | AU17: 7,7 | AV17: 13,3 | AW17: 8,0 | AX17: 15,6 | AY17: 7,1 | AZ17: 18,5 | BA17: 6,6 | BB17: 14,4 | BC17: 5,4 | BD17: 10,0 | BE17: 4,0 | BF17: 5,9 | BG17: 2,7 | BH17: 2,6 | BI17: 2,2 | BJ17: 1,9 | BK17: 13 | BL17: BOLOGNA | BM17: E | BN17: 183 | BO17: 2259 | BP17: 13 | BQ17: BOLOGNA | BR17: BO | BS17: 37 | BV17: 13 | BW17: BO | BX17: Bologna | BY17: 33,0
A18: 14 | B18: BZ | C18: Bolzano | D18: 262 | E18: 1.2 | F18: 4.2 | G18: 9 | H18: 13.4 | I18: 16.9 | J18: 21 | K18: 22.7 | L18: 22 | M18: 18.8 | N18: 12.9 | O18: 6.7 | P18: 2.2 | R18: 14 | S18: BZ | T18: Bolzano | U18: 262 | V18: 1 | W18: 0.9 | X18: S | Z18: 14 | AA18: BZ | AB18: Bolzano | AC18: 262 | AD18: 46 | AE18: 29 | AF18: 11 | AG18: 21 | AH18: -15 | AJ18: 14 | AK18: BZ | AL18: Bolzano | AM18: 2.3 | AN18: 2,2 | AO18: 3,3 | AP18: 4,9 | AQ18: 4,9 | AR18: 7,8 | AS18: 6,6 | AT18: 9,9 | AU18: 7,8 | AV18: 12,5 | AW18: 8,4 | AX18: 12,9 | AY18: 7,8 | AZ18: 14,7 | BA18: 6,9 | BB18: 11,6 | BC18: 5,4 | BD18: 8,8 | BE18: 3,8 | BF18: 5,5 | BG18: 2,5 | BH18: 2,6 | BI18: 2,0 | BJ18: 1,9 | BK18: 14 | BL18: BOLZANO | BM18: E | BN18: 183 | BO18: 2791 | BP18: 14 | BQ18: BOLZANO | BR18: BZ | BS18: 38.9 | BV18: 14 | BW18: BZ | BX18: Bolzano | BY18: 31,4
A19: 15 | B19: BS | C19: Brescia | D19: 149 | E19: 1.5 | F19: 4.2 | G19: 9.3 | H19: 13.5 | I19: 17.7 | J19: 22 | K19: 24.4 | L19: 23.7 | M19: 19.9 | N19: 14 | O19: 7.8 | P19: 3.5 | R19: 15 | S19: BS | T19: Brescia | U19: 149 | V19: 1 | W19: 1.5 | X19: E | Z19: 15 | AA19: BS | AB19: Brescia | AC19: 149 | AD19: 45 | AE19: 32 | AF19: 10 | AG19: 12 | AH19: -7 | AJ19: 15 | AK19: BS | AL19: Brescia | AM19: 2.4 | AN19: 2,2 | AO19: 3,5 | AP19: 4,3 | AQ19: 5,0 | AR19: 7,4 | AS19: 6,7 | AT19: 9,4 | AU19: 7,8 | AV19: 12,6 | AW19: 8,2 | AX19: 14,3 | AY19: 7,4 | AZ19: 17,0 | BA19: 6,7 | BB19: 13,5 | BC19: 5,4 | BD19: 9,3 | BE19: 3,9 | BF19: 5,3 | BG19: 2,6 | BH19: 2,7 | BI19: 2,1 | BJ19: 2,2 | BK19: 15 | BL19: BRESCIA | BM19: E | BN19: 183 | BO19: 2410 | BP19: 15 | BQ19: BRESCIA | BR19: BS | BS19: 38.7 | BV19: 15 | BW19: BS | BX19: Brescia | BY19: 31,8
A20: 16 | B20: BR | C20: Brindisi | D20: 15 | E20: 9.3 | F20: 9.6 | G20: 11.4 | H20: 14.2 | I20: 18 | J20: 22 | K20: 24.5 | L20: 24.5 | M20: 22.1 | N20: 18.3 | O20: 14.4 | P20: 10.9 | R20: 16 | S20: BR | T20: Brindisi | U20: 15 | V20: 2 | W20: 5.1 | X20: NW | Z20: 16 | AA20: BR | AB20: Brindisi | AC20: 15 | AD20: 40 | AE20: 38 | AF20: 17 | AG20: 56 | AH20: 0 | AJ20: 16 | AK20: BR | AL20: Brindisi | AM20: 3,0 | AN20: 4,0 | AO20: 4,0 | AP20: 5,3 | AQ20: 5,4 | AR20: 8,7 | AS20: 6,6 | AT20: 13,0 | AU20: 7,4 | AV20: 16,1 | AW20: 7,1 | AX20: 19,9 | AY20: 6,4 | AZ20: 21,0 | BA20: 6,0 | BB20: 17,9 | BC20: 5,3 | BD20: 13,1 | BE20: 4,1 | BF20: 8,9 | BG20: 3,2 | BH20: 4,7 | BI20: 2,7 | BJ20: 3,2 | BK20: 16 | BL20: BRINDISI | BM20: C | BN20: 137 | BO20: 1083 | BP20: 16 | BQ20: BRINDISI | BR20: BR | BS20: 41.7 | BV20: 16 | BW20: BR | BX20: Brindisi | BY20: 31,5
A21: 17 | B21: CA | C21: Cagliari | D21: 4 | E21: 10.3 | F21: 10.8 | G21: 12.8 | H21: 15.1 | I21: 18.4 | J21: 22.9 | K21: 25.5 | L21: 25.5 | M21: 23.3 | N21: 19.4 | O21: 15.5 | P21: 11.7 | R21: 17 | S21: CA | T21: Cagliari | U21: 4 | V21: 3 | W21: 4,0 | X21: NW | Z21: 17 | AA21: CA | AB21: Cagliari | AC21: 4 | AD21: 39 | AE21: 13 | AF21: 9 | AG21: 07 | AH21: 3 | AJ21: 17 | AK21: CA | AL21: Cagliari | AM21: 3.2 | AN21: 4,1 | AO21: 4,2 | AP21: 5,6 | AQ21: 5,5 | AR21: 8,9 | AS21: 6,9 | AT21: 11,6 | AU21: 7,6 | AV21: 14,9 | AW21: 7,7 | AX21: 17,3 | AY21: 6,5 | AZ21: 20,8 | BA21: 6,2 | BB21: 17,7 | BC21: 5,7 | BD21: 11,9 | BE21: 4,5 | BF21: 7,7 | BG21: 3,4 | BH21: 4,7 | BI21: 2,9 | BJ21: 3,5 | BK21: 17 | BL21: CAGLIARI | BM21: C | BN21: 137 | BO21: 990 | BP21: 17 | BQ21: CAGLIARI | BR21: CA | BS21: 59.5 | BV21: 17 | BW21: CA | BX21: Cagliari | BY21: 32,1
A22: 18 | B22: CL | C22: Caltanissetta | D22: 568 | E22: 7.2 | F22: 7.8 | G22: 9.9 | H22: 13.1 | I22: 17.3 | J22: 22.5 | K22: 25.7 | L22: 25.2 | M22: 22.1 | N22: 17.3 | O22: 12.8 | P22: 8.9 | R22: 18 | S22: CL | T22: Caltanissetta | U22: 568 | V22: 3 | W22: 2,4 | X22: W | Z22: 18 | AA22: CL | AB22: Caltanissetta | AC22: 568 | AD22: 37 | AE22: 29 | AF22: 14 | AG22: 03 | AH22: 0 | AJ22: 18 | AK22: CL | AL22: Caltanissetta | AM22: 3.3 | AN22: 5,7 | AO22: 4,2 | AP22: 7,7 | AQ22: 5,5 | AR22: 10,5 | AS22: 6,6 | AT22: 14,2 | AU22: 6,9 | AV22: 18,6 | AW22: 6,6 | AX22: 21,6 | AY22: 6,1 | AZ22: 22,1 | BA22: 5,6 | BB22: 19,8 | BC22: 5,4 | BD22: 14,1 | BE22: 4,5 | BF22: 9,3 | BG22: 3,4 | BH22: 6,6 | BI22: 3,0 | BJ22: 5,0 | BK22: 18 | BL22: CALTANISSETTA | BM22: D | BN22: 166 | BO22: 1550 | BP22: 18 | BQ22: CALTANISSETTA | BR22: CL | BS22: 59.8 | BV22: 18 | BW22: CL | BX22: Caltanissetta | BY22: 34,0
A23: 19 | B23: CB | C23: Campobasso | D23: 701 | E23: 3.7 | F23: 4.8 | G23: 7.3 | H23: 11.1 | I23: 14.8 | J23: 19.6 | K23: 22.5 | L23: 22.2 | M23: 18.9 | N23: 13.5 | O23: 9 | P23: 5 | R23: 19 | S23: CB | T23: Campobasso | U23: 701 | V23: 2 | W23: 4.3 | X23: W | Z23: 19 | AA23: CB | AB23: Campobasso | AC23: 701 | AD23: 41 | AE23: 33 | AF23: 14 | AG23: 40 | AH23: -4 | AJ23: 19 | AK23: CB | AL23: Campobasso | AM23: 2.9 | AN23: 3,3 | AO23: 3,9 | AP23: 5,6 | AQ23: 5,4 | AR23: 8,1 | AS23: 6,7 | AT23: 12,0 | AU23: 7,4 | AV23: 16,1 | AW23: 7,6 | AX23: 17,7 | AY23: 6,9 | AZ23: 19,6 | BA23: 6,2 | BB23: 16,9 | BC23: 5,4 | BD23: 12,0 | BE23: 4,2 | BF23: 7,8 | BG23: 3,1 | BH23: 4,2 | BI23: 2,6 | BJ23: 3,0 | BK23: 19 | BL23: CAMPOBASSO | BM23: E | BN23: 183 | BO23: 2346 | BP23: 19 | BQ23: CAMPOBASSO | BR23: CB | BS23: 48.8 | BV23: 19 | BW23: CB | BX23: Campobasso | BY23: 29,6
A24: 20 | B24: CE | C24: Caserta | D24: 68 | E24: 8.7 | F24: 9.4 | G24: 12 | H24: 15.3 | I24: 19.1 | J24: 23.5 | K24: 26.2 | L24: 26.1 | M24: 23 | N24: 18.2 | O24: 13.9 | P24: 10.3 | R24: 20 | S24: CE | T24: Caserta | U24: 68 | V24: 2 | W24: 1.6 | X24: S | Z24: 20 | AA24: CE | AB24: Caserta | AC24: 68 | AD24: 41 | AE24: 04 | AF24: 14 | AG24: 19 | AH24: 0 | AJ24: 20 | AK24: CE | AL24: Caserta | AM24: 2.9 | AN24: 3,9 | AO24: 3,9 | AP24: 5,8 | AQ24: 5,3 | AR24: 9,2 | AS24: 6,6 | AT24: 12,8 | AU24: 7,3 | AV24: 16,5 | AW24: 7,0 | AX24: 20,1 | AY24: 6,2 | AZ24: 21,6 | BA24: 5,9 | BB24: 18,3 | BC24: 5,2 | BD24: 13,1 | BE24: 4,0 | BF24: 8,9 | BG24: 3,1 | BH24: 4,7 | BI24: 2,6 | BJ24: 3,3 | BK24: 20 | BL24: CASERTA | BM24: C | BN24: 137 | BO24: 1013 | BP24: 20 | BQ24: CASERTA | BR24: CE | BS24: 48.8 | BV24: 20 | BW24: CE | BX24: Caserta | BY24: 32,1
A25: 21 | B25: CT | C25: Catania | D25: 7 | E25: 10.7 | F25: 11.2 | G25: 12.9 | H25: 15.5 | I25: 19.1 | J25: 23.5 | K25: 26.5 | L25: 26.5 | M25: 24.1 | N25: 19.9 | O25: 15.9 | P25: 12.3 | R25: 21 | S25: CT | T25: Catania | U25: 7 | V25: 3 | W25: 4,4 | X25: W | Z25: 21 | AA25: CT | AB25: Catania | AC25: 7 | AD25: 37 | AE25: 30 | AF25: 15 | AG25: 05 | AH25: 5 | AJ25: 21 | AK25: CT | AL25: Catania | AM25: 3.3 | AN25: 5,7 | AO25: 4,2 | AP25: 7,7 | AQ25: 5,5 | AR25: 10,5 | AS25: 6,6 | AT25: 14,1 | AU25: 6,9 | AV25: 18,6 | AW25: 6,6 | AX25: 21,6 | AY25: 6,1 | AZ25: 22,1 | BA25: 5,6 | BB25: 19,8 | BC25: 5,4 | BD25: 14,1 | BE25: 4,5 | BF25: 9,2 | BG25: 3,4 | BH25: 6,6 | BI25: 3,0 | BJ25: 5,0 | BK25: 21 | BL25: CATANIA | BM25: B | BN25: 121 | BO25: 833 | BP25: 21 | BQ25: CATANIA | BR25: CT | BS25: 59.8 | BV25: 21 | BW25: CT | BX25: Catania | BY25: 33,6
A26: 22 | B26: CZ | C26: Catanzaro | D26: 320 | E26: 8.3 | F26: 8.7 | G26: 10.4 | H26: 13.4 | I26: 17 | J26: 21.7 | K26: 24.4 | L26: 24.8 | M26: 22.3 | N26: 17.9 | O26: 13.7 | P26: 10.1 | R26: 22 | S26: CZ | T26: Catanzaro | U26: 320 | V26: 2 | W26: 3,2 | X26: W | Z26: 22 | AA26: CZ | AB26: Catanzaro | AC26: 320 | AD26: 38 | AE26: 54 | AF26: 16 | AG26: 35 | AH26: -2 | AJ26: 22 | AK26: CZ | AL26: Catanzaro | AM26: 3.2 | AN26: 4,1 | AO26: 4,1 | AP26: 7,1 | AQ26: 5,7 | AR26: 7,1 | AS26: 6,9 | AT26: 12,0 | AU26: 7,5 | AV26: 15,6 | AW26: 7,1 | AX26: 19,8 | AY26: 6,5 | AZ26: 20,9 | BA26: 5,6 | BB26: 19,6 | BC26: 5,9 | BD26: 10,9 | BE26: 4,5 | BF26: 8,0 | BG26: 3,5 | BH26: 4,4 | BI26: 2,9 | BJ26: 3,6 | BK26: 22 | BL26: CATANZARO | BM26: C | BN26: 137 | BO26: 1328 | BP26: 22 | BQ26: CATANZARO | BR26: CZ | BS26: 59.8 | BV26: 22 | BW26: CZ | BX26: Catanzaro | BY26: 33,0
A27: 23 | B27: CH | C27: Chieti | D27: 330 | E27: 5.8 | F27: 6.8 | G27: 9.6 | H27: 13.5 | I27: 17.2 | J27: 22 | K27: 24.7 | L27: 24.3 | M27: 21.2 | N27: 15.9 | O27: 11.3 | P27: 7.2 | R27: 23 | S27: CH | T27: Chieti | U27: 330 | V27: 2 | W27: 2,0 | X27: SW | Z27: 23 | AA27: CH | AB27: Chieti | AC27: 330 | AD27: 42 | AE27: 21 | AF27: 14 | AG27: 10 | AH27: 0 | AJ27: 23 | AK27: CH | AL27: Chieti | AM27: 2.8 | AN27: 3,1 | AO27: 3,9 | AP27: 4,9 | AQ27: 5,3 | AR27: 7,8 | AS27: 6,6 | AT27: 12,1 | AU27: 7,3 | AV27: 16,0 | AW27: 7,8 | AX27: 17,0 | AY27: 6,8 | AZ27: 19,6 | BA27: 6,4 | BB27: 16,1 | BC27: 5,3 | BD27: 11,8 | BE27: 4,0 | BF27: 7,8 | BG27: 3,0 | BH27: 3,8 | BI27: 2,5 | BJ27: 2,6 | BK27: 23 | BL27: CHIETI | BM27: D | BN27: 166 | BO27: 1556 | BP27: 23 | BQ27: CHIETI | BR27: CH | BS27: 39.8 | BV27: 23 | BW27: CH | BX27: Chieti | BY27: 29,4
A28: 24 | B28: CO | C28: Como | D28: 201 | E28: 2.9 | F28: 5 | G28: 8.8 | H28: 12.7 | I28: 16.7 | J28: 21.1 | K28: 23.6 | L28: 23.1 | M28: 19.6 | N28: 13.7 | O28: 8.4 | P28: 4.4 | R28: 24 | S28: CO | T28: Como | U28: 201 | V28: 1 | W28: 0,9 | X28: S | Z28: 24 | AA28: CO | AB28: Como | AC28: 201 | AD28: 45 | AE28: 48 | AF28: 9 | AG28: 05 | AH28: -5 | AJ28: 24 | AK28: CO | AL28: Como | AM28: 2.4 | AN28: 2,2 | AO28: 3,4 | AP28: 3,4 | AQ28: 5,0 | AR28: 6,1 | AS28: 6,7 | AT28: 8,9 | AU28: 7,9 | AV28: 10,2 | AW28: 8,4 | AX28: 12,1 | AY28: 7,9 | AZ28: 14,2 | BA28: 7,0 | BB28: 11,0 | BC28: 5,6 | BD28: 7,5 | BE28: 3,9 | BF28: 5,1 | BG28: 2,6 | BH28: 2,3 | BI28: 2,1 | BJ28: 1,9 | BK28: 24 | BL28: COMO | BM28: E | BN28: 183 | BO28: 2228 | BP28: 24 | BQ28: COMO | BR28: CO | BS28: 38.7 | BV28: 24 | BW28: CO | BX28: Como | BY28: 32,0
A29: 25 | B29: CS | C29: Cosenza | D29: 238 | E29: 8.1 | F29: 8.8 | G29: 11.3 | H29: 14.4 | I29: 18.1 | J29: 23.1 | K29: 26 | L29: 25.8 | M29: 22.7 | N29: 17.8 | O29: 13.4 | P29: 9.4 | R29: 25 | S29: CS | T29: Cosenza | U29: 238 | V29: 2 | W29: 2,4 | X29: W | Z29: 25 | AA29: CS | AB29: Cosenza | AC29: 238 | AD29: 39 | AE29: 18 | AF29: 16 | AG29: 15 | AH29: -3 | AJ29: 25 | AK29: CS | AL29: Cosenza | AM29: 3.2 | AN29: 4,5 | AO29: 3,9 | AP29: 7,9 | AQ29: 4,9 | AR29: 12,4 | AS29: 6,2 | AT29: 15,6 | AU29: 6,8 | AV29: 18,9 | AW29: 6,0 | AX29: 23,6 | AY29: 5,8 | AZ29: 23,1 | BA29: 5,2 | BB29: 20,8 | BC29: 4,9 | BD29: 15,1 | BE29: 4,3 | BF29: 8,6 | BG29: 3,2 | BH29: 6,2 | BI29: 2,8 | BJ29: 4,9 | BK29: 25 | BL29: COSENZA | BM29: C | BN29: 137 | BO29: 1317 | BP29: 25 | BQ29: COSENZA | BR29: CS | BS29: 59.8 | BV29: 25 | BW29: CS | BX29: Cosenza | BY29: 33,6
A30: 26 | B30: CR | C30: Cremona | D30: 45 | E30: 0.7 | F30: 3.3 | G30: 8.4 | H30: 13.3 | I30: 17.4 | J30: 21.9 | K30: 24.3 | L30: 23.4 | M30: 19.7 | N30: 13.4 | O30: 7.2 | P30: 2.5 | R30: 26 | S30: CR | T30: Cremona | U30: 45 | V30: 1 | W30: 1,4 | X30: E | Z30: 26 | AA30: CR | AB30: Cremona | AC30: 45 | AD30: 45 | AE30: 08 | AF30: 10 | AG30: 01 | AH30: -5 | AJ30: 26 | AK30: CR | AL30: Cremona | AM30: 2.3 | AN30: 1,6 | AO30: 3,5 | AP30: 3,3 | AQ30: 5,1 | AR30: 6,4 | AS30: 6,7 | AT30: 10,1 | AU30: 7,8 | AV30: 12,7 | AW30: 8,0 | AX30: 15,8 | AY30: 7,2 | AZ30: 17,8 | BA30: 6,7 | BB30: 13,5 | BC30: 5,5 | BD30: 8,8 | BE30: 4,0 | BF30: 4,4 | BG30: 2,6 | BH30: 1,9 | BI30: 2,0 | BJ30: 1,3 | BK30: 26 | BL30: CREMONA | BM30: E | BN30: 183 | BO30: 2389 | BP30: 26 | BQ30: CREMONA | BR30: CR | BS30: 38.7 | BV30: 26 | BW30: CR | BX30: Cremona | BY30: 33,0
A31: 27 | B31: KR | C31: Crotone | D31: 8 | E31: 9.5 | F31: 9.8 | G31: 11.5 | H31: 14.7 | I31: 18.4 | J31: 22.9 | K31: 26.2 | L31: 26 | M31: 23.5 | N31: 19.3 | O31: 15.1 | P31: 11.2 | R31: 27 | S31: KR | T31: Crotone | U31: 8 | V31: 3 | W31: 3,5 | X31: N | Z31: 27 | AA31: KR | AB31: Crotone | AC31: 8 | AD31: 39 | AE31: 04 | AF31: 17 | AG31: 07 | AH31: 3 | AJ31: 27 | AK31: KR | AL31: Crotone | AM31: 3,2 | AN31: 4,2 | AO31: 4,2 | AP31: 6,5 | AQ31: 5,5 | AR31: 9,0 | AS31: 6,8 | AT31: 12,5 | AU31: 7,4 | AV31: 16,1 | AW31: 7,4 | AX31: 18,7 | AY31: 6,8 | AZ31: 19,8 | BA31: 6,0 | BB31: 18,3 | BC31: 5,6 | BD31: 12,3 | BE31: 4,4 | BF31: 8,6 | BG31: 3,4 | BH31: 5,2 | BI31: 2,9 | BJ31: 3,5 | BK31: 27 | BL31: CROTONE | BM31: B | BN31: 121 | BO31: 899 | BP31: 27 | BQ31: CROTONE | BR31: KR | BS31: 59.8 | BV31: 27 | BW31: KR | BX31: Crotone | BY31: 34,5
A32: 28 | B32: CN | C32: Cuneo | D32: 534 | E32: 1.1 | F32: 2.9 | G32: 6.9 | H32: 11.3 | I32: 14.8 | J32: 19.4 | K32: 21.9 | L32: 21 | M32: 17.7 | N32: 11.7 | O32: 6.2 | P32: 2.5 | R32: 28 | S32: CN | T32: Cuneo | U32: 534 | V32: 2 | W32: 1,6 | X32: NE | Z32: 28 | AA32: CN | AB32: Cuneo | AC32: 534 | AD32: 44 | AE32: 22 | AF32: 7 | AG32: 32 | AH32: -10 | AJ32: 28 | AK32: CN | AL32: Cuneo | AM32: 2.5 | AN32: 3,0 | AO32: 3,6 | AP32: 4,5 | AQ32: 5,2 | AR32: 6,3 | AS32: 6,8 | AT32: 7,8 | AU32: 8,0 | AV32: 8,4 | AW32: 8,5 | AX32: 10,1 | AY32: 8,1 | AZ32: 12,2 | BA32: 7,2 | BB32: 8,8 | BC32: 5,7 | BD32: 6,7 | BE32: 4,1 | BF32: 4,6 | BG32: 2,8 | BH32: 3,1 | BI32: 2,2 | BJ32: 2,8 | BK32: 28 | BL32: CUNEO | BM32: F | BN32: 217 | BO32: 3012 | BP32: 28 | BQ32: CUNEO | BR32: CN | BS32: 44.4 | BV32: 28 | BW32: CN | BX32: Cuneo | BY32: 29,0
A33: 29 | B33: EN | C33: Enna | D33: 931 | E33: 4.5 | F33: 5.1 | G33: 7.1 | H33: 10.7 | I33: 14.9 | J33: 20.6 | K33: 23.9 | L33: 23.2 | M33: 19.9 | N33: 14.5 | O33: 9.8 | P33: 6.4 | R33: 29 | S33: EN | T33: Enna | U33: 931 | V33: 3 | W33: 3,8 | X33: W | Z33: 29 | AA33: EN | AB33: Enna | AC33: 931 | AD33: 37 | AE33: 33 | AF33: 14 | AG33: 16 | AH33: -3 | AJ33: 29 | AK33: EN | AL33: Enna | AM33: 3.3 | AN33: 5,6 | AO33: 4,2 | AP33: 7,7 | AQ33: 5,5 | AR33: 10,6 | AS33: 6,5 | AT33: 14,6 | AU33: 6,8 | AV33: 18,9 | AW33: 6,5 | AX33: 22,1 | AY33: 6,0 | AZ33: 22,6 | BA33: 5,4 | BB33: 20,5 | BC33: 5,3 | BD33: 14,5 | BE33: 4,5 | BF33: 9,4 | BG33: 3,4 | BH33: 6,7 | BI33: 3,0 | BJ33: 4,9 | BK33: 29 | BL33: ENNA | BM33: E | BN33: 183 | BO33: 2248 | BP33: 29 | BQ33: ENNA | BR33: EN | BS33: 59.8 | BV33: 29 | BW33: EN | BX33: Enna | BY33: 29,2
A34: 30 | B34: FE | C34: Ferrara | D34: 9 | E34: 1.4 | F34: 3.3 | G34: 7.8 | H34: 12.8 | I34: 17.3 | J34: 21.6 | K34: 23.9 | L34: 23.5 | M34: 20.1 | N34: 14 | O34: 8.2 | P34: 3.2 | R34: 30 | S34: FE | T34: Ferrara | U34: 9 | V34: 1 | W34: 2,4 | X34: W | Z34: 30 | AA34: FE | AB34: Ferrara | AC34: 9 | AD34: 44 | AE34: 50 | AF34: 11 | AG34: 37 | AH34: -5 | AJ34: 30 | AK34: FE | AL34: Ferrara | AM34: 2.5 | AN34: 2,1 | AO34: 3,6 | AP34: 4,1 | AQ34: 5,2 | AR34: 5,7 | AS34: 6,7 | AT34: 10,7 | AU34: 7,7 | AV34: 13,4 | AW34: 8,2 | AX34: 14,2 | AY34: 7,5 | AZ34: 16,4 | BA34: 7,0 | BB34: 12,2 | BC34: 5,4 | BD34: 10,2 | BE34: 3,9 | BF34: 6,8 | BG34: 2,7 | BH34: 2,0 | BI34: 2,1 | BJ34: 1,3 | BK34: 30 | BL34: FERRARA | BM34: E | BN34: 183 | BO34: 2326 | BP34: 30 | BQ34: FERRARA | BR34: FE | BS34: 37 | BV34: 30 | BW34: FE | BX34: Ferrara | BY34: 32,2
A35: 31 | B35: FI | C35: Firenze | D35: 40 | E35: 5.3 | F35: 6.5 | G35: 9.9 | H35: 13.8 | I35: 17.8 | J35: 22.2 | K35: 25 | L35: 24.3 | M35: 20.9 | N35: 15.3 | O35: 10.2 | P35: 6.3 | R35: 31 | S35: FI | T35: Firenze | U35: 40 | V35: 2 | W35: 1,4 | X35: NE | Z35: 31 | AA35: FI | AB35: Firenze | AC35: 40 | AD35: 43 | AE35: 41 | AF35: 11 | AG35: 15 | AH35: 0 | AJ35: 31 | AK35: FI | AL35: Firenze | AM35: 2.6 | AN35: 2,7 | AO35: 3,7 | AP35: 4,5 | AQ35: 5,2 | AR35: 7,0 | AS35: 6,7 | AT35: 10,7 | AU35: 7,6 | AV35: 14,3 | AW35: 7,9 | AX35: 16,2 | AY35: 7,0 | AZ35: 18,6 | BA35: 6,5 | BB35: 15,2 | BC35: 5,3 | BD35: 11,0 | BE35: 4,0 | BF35: 6,9 | BG35: 2,9 | BH35: 3,2 | BI35: 2,3 | BJ35: 2,3 | BK35: 31 | BL35: FIRENZE | BM35: D | BN35: 166 | BO35: 1821 | BP35: 31 | BQ35: FIRENZE | BR35: FI | BS35: 28.3 | BV35: 31 | BW35: FI | BX35: Firenze | BY35: 33,6
A36: 32 | B36: FG | C36: Foggia | D36: 76 | E36: 6.4 | F36: 7.3 | G36: 10 | H36: 13.8 | I36: 17.9 | J36: 23.2 | K36: 26 | L36: 25.5 | M36: 22.1 | N36: 16.9 | O36: 12.2 | P36: 7.9 | R36: 32 | S36: FG | T36: Foggia | U36: 76 | V36: 1 | W36: 3,5 | X36: NW | Z36: 32 | AA36: FG | AB36: Foggia | AC36: 76 | AD36: 41 | AE36: 27 | AF36: 15 | AG36: 33 | AH36: 0 | AJ36: 32 | AK36: FG | AL36: Foggia | AM36: 2,9 | AN36: 3,5 | AO36: 3,9 | AP36: 5,8 | AQ36: 5,3 | AR36: 8,6 | AS36: 6,5 | AT36: 13,0 | AU36: 7,3 | AV36: 16,5 | AW36: 7,5 | AX36: 18,2 | AY36: 6,8 | AZ36: 19,8 | BA36: 6,2 | BB36: 17,0 | BC36: 5,3 | BD36: 12,5 | BE36: 4,1 | BF36: 8,4 | BG36: 3,1 | BH36: 4,6 | BI36: 2,6 | BJ36: 3,1 | BK36: 32 | BL36: FOGGIA | BM36: D | BN36: 166 | BO36: 1530 | BP36: 32 | BQ36: FOGGIA | BR36: FG | BS36: 41.7 | BV36: 32 | BW36: FG | BX36: Foggia | BY36: 33,9
A37: 33 | B37: FO | C37: Forlì | D37: 34 | E37: 3 | F37: 4.6 | G37: 9 | H37: 13.7 | I37: 17.8 | J37: 22.6 | K37: 25.3 | L37: 24.8 | M37: 21.1 | N37: 15.1 | O37: 9.3 | P37: 4.4 | R37: 33 | S37: FO | T37: Forlì | U37: 34 | V37: 1 | W37: 2,3 | X37: NW | Z37: 33 | AA37: FO | AB37: Forlì | AC37: 34 | AD37: 44 | AE37: 13 | AF37: 12 | AG37: 02 | AH37: -5 | AJ37: 33 | AK37: FO | AL37: Forlì | AM37: 2.5 | AN37: 2,3 | AO37: 3,6 | AP37: 4,3 | AQ37: 5,1 | AR37: 7,5 | AS37: 6,6 | AT37: 11,1 | AU37: 7,5 | AV37: 14,7 | AW37: 7,7 | AX37: 17,6 | AY37: 6,7 | AZ37: 19,9 | BA37: 6,3 | BB37: 15,9 | BC37: 5,2 | BD37: 11,4 | BE37: 4,0 | BF37: 6,3 | BG37: 2,8 | BH37: 2,7 | BI37: 2,2 | BJ37: 1,9 | BK37: 33 | BL37: FORLì | BM37: D | BN37: 166 | BO37: 2087 | BP37: 33 | BQ37: FORLI' | BR37: FO | BS37: 37 | BV37: 33 | BW37: FO | BX37: Forlì | BY37: 32,0
A38: 34 | B38: FR | C38: Frosinone | D38: 291 | E38: 5.8 | F38: 6.2 | G38: 8 | H38: 11 | I38: 15.2 | J38: 18.5 | K38: 21.5 | L38: 20.9 | M38: 18.8 | N38: 13.4 | O38: 9.2 | P38: 5 | R38: 34 | S38: FR | T38: Frosinone | U38: 291 | V38: 2 | W38: 1,7 | X38: S | Z38: 34 | AA38: FR | AB38: Frosinone | AC38: 291 | AD38: 41 | AE38: 38 | AF38: 13 | AG38: 20 | AH38: 0 | AJ38: 34 | AK38: FR | AL38: Frosinone | AM38: 2.9 | AN38: 3,6 | AO38: 3,9 | AP38: 5,3 | AQ38: 5,3 | AR38: 8,5 | AS38: 6,7 | AT38: 10,7 | AU38: 7,7 | AV38: 13,2 | AW38: 7,6 | AX38: 17,0 | AY38: 6,9 | AZ38: 19,0 | BA38: 6,4 | BB38: 15,9 | BC38: 5,4 | BD38: 11,8 | BE38: 4,2 | BF38: 7,4 | BG38: 3,1 | BH38: 4,3 | BI38: 2,5 | BJ38: 3,1 | BK38: 34 | BL38: FROSINONE | BM38: E | BN38: 183 | BO38: 2196 | BP38: 34 | BQ38: FROSINONE | BR38: FR | BS38: 39.8 | BV38: 34 | BW38: FR | BX38: Frosinone | BY38: 30,7
A39: 35 | B39: GE | C39: Genova | D39: 19 | E39: 7.9 | F39: 8.9 | G39: 11.6 | H39: 14.7 | I39: 17.8 | J39: 21.9 | K39: 24.5 | L39: 24.6 | M39: 22.3 | N39: 17.1 | O39: 12.9 | P39: 9.3 | R39: 35 | S39: GE | T39: Genova | U39: 19 | V39: 3 | W39: 3,8 | X39: NE | Z39: 35 | AA39: GE | AB39: Genova | AC39: 19 | AD39: 44 | AE39: 25 | AF39: 8 | AG39: 53 | AH39: 0 | AJ39: 35 | AK39: GE | AL39: Genova | AM39: 2.5 | AN39: 2.8 | AO39: 3,6 | AP39: 4,6 | AQ39: 5,1 | AR39: 7,4 | AS39: 6,7 | AT39: 10,2 | AU39: 7,8 | AV39: 12,8 | AW39: 8,2 | AX39: 14,5 | AY39: 7,4 | AZ39: 17,4 | BA39: 6,8 | BB39: 13,7 | BC39: 5,5 | BD39: 9,9 | BE39: 4,0 | BF39: 6,6 | BG39: 2,8 | BH39: 3,0 | BI39: 2,2 | BJ39: 2,7 | BK39: 35 | BL39: GENOVA | BM39: D | BN39: 166 | BO39: 1435 | BP39: 35 | BQ39: GENOVA | BR39: GE | BS39: 63.2 | BV39: 35 | BW39: GE | BX39: Genova | BY39: 29,9
A40: 36 | B40: GO | C40: Gorizia | D40: 84 | E40: 4.7 | F40: 5.6 | G40: 8.2 | H40: 11.9 | I40: 16.7 | J40: 19.9 | K40: 22 | L40: 22.2 | M40: 18.6 | N40: 13.2 | O40: 9.2 | P40: 4.7 | R40: 36 | S40: GO | T40: Gorizia | U40: 84 | V40: 2 | W40: 1,5 | X40: E | Z40: 36 | AA40: GO | AB40: Gorizia | AC40: 84 | AD40: 45 | AE40: 56 | AF40: 13 | AG40: 37 | AH40: -5 | AJ40: 36 | AK40: GO | AL40: Gorizia | AM40: 2,4 | AN40: 2,2 | AO40: 3,4 | AP40: 3,7 | AQ40: 5,0 | AR40: 6,4 | AS40: 6,7 | AT40: 9,5 | AU40: 7,9 | AV40: 11,7 | AW40: 8,3 | AX40: 13,1 | AY40: 7.7 | AZ40: 15,3 | BA40: 6,7 | BB40: 13,4 | BC40: 5,5 | BD40: 9,1 | BE40: 3,9 | BF40: 5,4 | BG40: 2,6 | BH40: 2,7 | BI40: 2,0 | BJ40: 1,9 | BK40: 36 | BL40: GORIZIA | BM40: E | BN40: 183 | BO40: 2333 | BP40: 36 | BQ40: GORIZIA | BR40: GO | BS40: 57.5 | BV40: 36 | BW40: GO | BX40: Gorizia | BY40: 30,5
A41: 37 | B41: GR | C41: Grosseto | D41: 10 | E41: 6.8 | F41: 8.1 | G41: 10.3 | H41: 13.2 | I41: 17.1 | J41: 21.2 | K41: 24.1 | L41: 23.9 | M41: 21.3 | N41: 16.4 | O41: 11.7 | P41: 8.1 | R41: 37 | S41: GR | T41: Grosseto | U41: 10 | V41: 3 | W41: 2,4 | X41: NE | Z41: 37 | AA41: GR | AB41: Grosseto | AC41: 10 | AD41: 42 | AE41: 45 | AF41: 11 | AG41: 06 | AH41: 0 | AJ41: 37 | AK41: GR | AL41: Grosseto | AM41: 2,8 | AN41: 3,2 | AO41: 3,8 | AP41: 4,9 | AQ41: 5,3 | AR41: 7,5 | AS41: 6,7 | AT41: 11,5 | AU41: 7,4 | AV41: 15,9 | AW41: 7,6 | AX41: 17,9 | AY41: 6.6 | AZ41: 20,5 | BA41: 6,1 | BB41: 17,2 | BC41: 5,4 | BD41: 11,6 | BE41: 4,0 | BF41: 7,7 | BG41: 3,0 | BH41: 3,7 | BI41: 2,4 | BJ41: 2,6 | BK41: 37 | BL41: GROSSETO | BM41: D | BN41: 166 | BO41: 1550 | BP41: 37 | BQ41: GROSSETO | BR41: GR | BS41: 28.3 | BV41: 37 | BW41: GR | BX41: Grosseto | BY41: 33,0
A42: 38 | B42: IM | C42: Imperia | D42: 10 | E42: 8.6 | F42: 9.4 | G42: 11.6 | H42: 14.7 | I42: 17.9 | J42: 21.7 | K42: 24.5 | L42: 24.1 | M42: 21.8 | N42: 17.4 | O42: 12.7 | P42: 9.5 | R42: 38 | S42: IM | T42: Imperia | U42: 10 | V42: 3 | W42: 3,7 | X42: NE | Z42: 38 | AA42: IM | AB42: Imperia | AC42: 10 | AD42: 43 | AE42: 53 | AF42: 8 | AG42: 1 | AH42: 0 | AJ42: 38 | AK42: IM | AL42: Imperia | AM42: 2,6 | AN42: 3,4 | AO42: 3,6 | AP42: 5,4 | AQ42: 5,1 | AR42: 8,2 | AS42: 6,5 | AT42: 12,0 | AU42: 7,6 | AV42: 14,5 | AW42: 7,8 | AX42: 16,9 | AY42: 6.8 | AZ42: 19,6 | BA42: 6,5 | BB42: 15,2 | BC42: 5,3 | BD42: 11,2 | BE42: 3,9 | BF42: 7,7 | BG42: 2,8 | BH42: 4,1 | BI42: 2,3 | BJ42: 3,3 | BK42: 38 | BL42: IMPERIA | BM42: C | BN42: 137 | BO42: 1201 | BP42: 38 | BQ42: IMPERIA | BR42: IM | BS42: 63.2 | BV42: 38 | BW42: IM | BX42: Imperia | BY42: 29,0
A43: 39 | B43: IS | C43: Isernia | D43: 423 | E43: 5.5 | F43: 5.7 | G43: 8.6 | H43: 11.2 | I43: 15.5 | J43: 20.1 | K43: 23.1 | L43: 22.8 | M43: 19.7 | N43: 14.7 | O43: 10.3 | P43: 6.9 | R43: 39 | S43: IS | T43: Isernia | U43: 423 | V43: 2 | W43: 4,0 | X43: NW | Z43: 39 | AA43: IS | AB43: Isernia | AC43: 423 | AD43: 41 | AE43: 35 | AF43: 14 | AG43: 13 | AH43: -2 | AJ43: 39 | AK43: IS | AL43: Isernia | AM43: 2,9 | AN43: 3,1 | AO43: 3,9 | AP43: 4,8 | AQ43: 5,4 | AR43: 7,5 | AS43: 6,9 | AT43: 9,5 | AU43: 7,9 | AV43: 11,8 | AW43: 8,0 | AX43: 15,3 | AY43: 7,2 | AZ43: 18,0 | BA43: 6,6 | BB43: 15,1 | BC43: 5,6 | BD43: 10,6 | BE43: 4,3 | BF43: 6,5 | BG43: 3,1 | BH43: 3,7 | BI43: 2,5 | BJ43: 2,7 | BK43: 39 | BL43: ISERNIA | BM43: D | BN43: 166 | BO43: 1866 | BP43: 39 | BQ43: ISERNIA | BR43: IS | BS43: 48.8 | BV43: 39 | BW43: IS | BX43: Isernia | BY43: 29,9
A44: 40 | B44: SP | C44: La Spezia | D44: 3 | E44: 6.7 | F44: 7.3 | G44: 10.1 | H44: 13.4 | I44: 16.7 | J44: 20.9 | K44: 23.8 | L44: 23.7 | M44: 21.2 | N44: 16.4 | O44: 11.9 | P44: 8.3 | R44: 40 | S44: SP | T44: La Spezia | U44: 3 | V44: 3 | W44: 5,5 | X44: N | Z44: 40 | AA44: SP | AB44: La Spezia | AC44: 3 | AD44: 44 | AE44: 06 | AF44: 9 | AG44: 49 | AH44: 0 | AJ44: 40 | AK44: SP | AL44: La Spezia | AM44: 2,6 | AN44: 2,7 | AO44: 3,6 | AP44: 4,9 | AQ44: 5,1 | AR44: 7,8 | AS44: 6,7 | AT44: 10,4 | AU44: 7,8 | AV44: 12,4 | AW44: 8,0 | AX44: 15,5 | AY44: 7,0 | AZ44: 18,8 | BA44: 6,6 | BB44: 14,7 | BC44: 5,4 | BD44: 10,5 | BE44: 4,0 | BF44: 6,3 | BG44: 2,8 | BH44: 3,0 | BI44: 2,3 | BJ44: 2,5 | BK44: 40 | BL44: LA SPEZIA | BM44: D | BN44: 166 | BO44: 1413 | BP44: 40 | BQ44: LA SPEZIA | BR44: SP | BS44: 63.2 | BV44: 40 | BW44: SP | BX44: La Spezia | BY44: 30,2
A45: 41 | B45: AQ | C45: L'Aquila | D45: 714 | E45: 2 | F45: 3.6 | G45: 7.1 | H45: 11.4 | I45: 15 | J45: 19.1 | K45: 22 | L45: 21.8 | M45: 18.6 | N45: 13.1 | O45: 8.2 | P45: 3.8 | R45: 41 | S45: AQ | T45: L'Aquila | U45: 714 | V45: 2 | W45: 1.7 | X45: SE | Z45: 41 | AA45: AQ | AB45: L'Aquila | AC45: 714 | AD45: 42 | AE45: 21 | AF45: 13 | AG45: 23 | AH45: -5 | AJ45: 41 | AK45: AQ | AL45: L'Aquila | AM45: 2.8 | AN45: 3,2 | AO45: 3,8 | AP45: 4,6 | AQ45: 5,3 | AR45: 6,7 | AS45: 6,9 | AT45: 7,9 | AU45: 8,0 | AV45: 11,3 | AW45: 8,4 | AX45: 12,7 | AY45: 7,7 | AZ45: 15,9 | BA45: 7,0 | BB45: 13,1 | BC45: 5,7 | BD45: 10,0 | BE45: 4,2 | BF45: 6,4 | BG45: 3,0 | BH45: 3,4 | BI45: 2,5 | BJ45: 2,6 | BK45: 41 | BL45: L'AQUILA | BM45: E | BN45: 183 | BO45: 2514 | BP45: 41 | BQ45: L'AQUILA | BR45: AQ | BS45: 39.8 | BV45: 41 | BW45: AQ | BX45: L'Aquila | BY45: 29,1
A46: 42 | B46: LT | C46: Latina | D46: 21 | E46: 8.3 | F46: 9 | G46: 10.9 | H46: 13.5 | I46: 16.9 | J46: 20.9 | K46: 23.7 | L46: 23.8 | M46: 21.5 | N46: 17.3 | O46: 12.9 | P46: 9.5 | R46: 42 | S46: LT | T46: Latina | U46: 21 | V46: 3 | W46: 2,4 | X46: W | Z46: 42 | AA46: LT | AB46: Latina | AC46: 21 | AD46: 41 | AE46: 27 | AF46: 12 | AG46: 54 | AH46: 2 | AJ46: 42 | AK46: LT | AL46: Latina | AM46: 2,9 | AN46: 3,8 | AO46: 3,9 | AP46: 5,7 | AQ46: 5,2 | AR46: 9,2 | AS46: 6,6 | AT46: 12,9 | AU46: 7,2 | AV46: 16,6 | AW46: 7,0 | AX46: 20,0 | AY46: 6,2 | AZ46: 21,7 | BA46: 5,9 | BB46: 18,1 | BC46: 5,2 | BD46: 13,1 | BE46: 4,0 | BF46: 8,7 | BG46: 3,1 | BH46: 4,7 | BI46: 2,6 | BJ46: 3,3 | BK46: 42 | BL46: LATINA | BM46: C | BN46: 137 | BO46: 1220 | BP46: 42 | BQ46: LATINA | BR46: LT | BS46: 39.8 | BV46: 42 | BW46: LT | BX46: Latina | BY46: 33,2
A47: 43 | B47: LE | C47: Lecce | D47: 49 | E47: 9 | F47: 9.3 | G47: 11.4 | H47: 14.7 | I47: 18.9 | J47: 23.4 | K47: 26.1 | L47: 25.9 | M47: 23 | N47: 18.5 | O47: 14.3 | P47: 10.7 | R47: 43 | S47: LE | T47: Lecce | U47: 49 | V47: 2 | W47: 4,0 | X47: N | Z47: 43 | AA47: LE | AB47: Lecce | AC47: 49 | AD47: 40 | AE47: 21 | AF47: 18 | AG47: 10 | AH47: 0 | AJ47: 43 | AK47: LE | AL47: Lecce | AM47: 3,0 | AN47: 3,8 | AO47: 4,0 | AP47: 5,8 | AQ47: 5,5 | AR47: 8,1 | AS47: 6,8 | AT47: 12,1 | AU47: 7,3 | AV47: 16,3 | AW47: 7,4 | AX47: 18,7 | AY47: 6,5 | AZ47: 20,7 | BA47: 6,0 | BB47: 18,0 | BC47: 5,4 | BD47: 12,5 | BE47: 4,2 | BF47: 8,1 | BG47: 3,3 | BH47: 4,1 | BI47: 2,7 | BJ47: 3,2 | BK47: 43 | BL47: LECCE | BM47: C | BN47: 137 | BO47: 1153 | BP47: 43 | BQ47: LECCE | BR47: LE | BS47: 41.7 | BV47: 43 | BW47: LE | BX47: Lecce | BY47: 33,0
A48: 44 | B48: LC | C48: Lecco | D48: 214 | E48: 3.9 | F48: 5.7 | G48: 9.6 | H48: 13.3 | I48: 16 | J48: 20.1 | K48: 22.6 | L48: 22.1 | M48: 19.2 | N48: 14.3 | O48: 9.2 | P48: 5.3 | R48: 44 | S48: LC | T48: Lecco | U48: 214 | V48: 1 | W48: 0,9 | X48: S | Z48: 44 | AA48: LC | AB48: Lecco | AC48: 214 | AD48: 45 | AE48: 51 | AF48: 9 | AG48: 24 | AH48: -5 | AJ48: 44 | AK48: LC | AL48: Lecco | AM48: 2,4 | AN48: 2,3 | AO48: 3,4 | AP48: 3,6 | AQ48: 5,0 | AR48: 6,4 | AS48: 6,7 | AT48: 9,1 | AU48: 7,9 | AV48: 10,5 | AW48: 8,4 | AX48: 12,3 | AY48: 7,9 | AZ48: 14,2 | BA48: 7,0 | BB48: 11,2 | BC48: 5,6 | BD48: 7,8 | BE48: 3,9 | BF48: 5,2 | BG48: 2,6 | BH48: 2,5 | BI48: 2,1 | BJ48: 2,0 | BK48: 44 | BL48: LECCO | BM48: E | BN48: 183 | BO48: 2383 | BP48: 44 | BQ48: LECCO | BR48: LC | BS48: 38.7 | BV48: 44 | BW48: LC | BX48: Lecco | BY48: 31,9
A49: 45 | B49: LI | C49: Livorno | D49: 3 | E49: 7.5 | F49: 8.2 | G49: 11.1 | H49: 13.9 | I49: 17.3 | J49: 21.8 | K49: 24.4 | L49: 24.1 | M49: 21.5 | N49: 17.1 | O49: 12.7 | P49: 9 | R49: 45 | S49: LI | T49: Livorno | U49: 3 | V49: 3 | W49: 2,4 | X49: E | Z49: 45 | AA49: LI | AB49: Livorno | AC49: 3 | AD49: 43 | AE49: 33 | AF49: 10 | AG49: 19 | AH49: 0 | AJ49: 45 | AK49: LI | AL49: Livorno | AM49: 2,6 | AN49: 2,8 | AO49: 3,7 | AP49: 4,6 | AQ49: 5,2 | AR49: 7,2 | AS49: 6,7 | AT49: 11,2 | AU49: 7,5 | AV49: 15,0 | AW49: 7,9 | AX49: 16,7 | AY49: 6,9 | AZ49: 19,3 | BA49: 6,4 | BB49: 15,9 | BC49: 5,3 | BD49: 11,3 | BE49: 4,0 | BF49: 7,3 | BG49: 2,9 | BH49: 3,3 | BI49: 2,3 | BJ49: 2,4 | BK49: 45 | BL49: LIVORNO | BM49: D | BN49: 166 | BO49: 1408 | BP49: 45 | BQ49: LIVORNO | BR49: LI | BS49: 28.3 | BV49: 45 | BW49: LI | BX49: Livorno | BY49: 31,0
A50: 46 | B50: LD | C50: Lodi | D50: 87 | E50: 0.9 | F50: 3.3 | G50: 8.6 | H50: 13.5 | I50: 17.8 | J50: 22.5 | K50: 24.5 | L50: 23.4 | M50: 19.6 | N50: 13.4 | O50: 7.3 | P50: 2.5 | R50: 46 | S50: LD | T50: Lodi | U50: 87 | V50: 1 | W50: 1,1 | X50: SW | Z50: 46 | AA50: LD | AB50: Lodi | AC50: 87 | AD50: 45 | AE50: 18 | AF50: 9 | AG50: 30 | AH50: -5 | AJ50: 46 | AK50: LD | AL50: Lodi | AM50: 2,3 | AN50: 1,4 | AO50: 3,5 | AP50: 3,1 | AQ50: 5,1 | AR50: 6,2 | AS50: 6,7 | AT50: 9,7 | AU50: 7,8 | AV50: 12,2 | AW50: 8,1 | AX50: 14,9 | AY50: 7,4 | AZ50: 17,1 | BA50: 6,8 | BB50: 12,8 | BC50: 5,6 | BD50: 8,2 | BE50: 4,0 | BF50: 4,2 | BG50: 2,6 | BH50: 1,8 | BI50: 2,0 | BJ50: 1,2 | BK50: 46 | BL50: LODI | BM50: E | BN50: 183 | BO50: 2592 | BP50: 46 | BQ50: LODI | BR50: LD | BS50: 38.7 | BV50: 46 | BW50: LD | BX50: Lodi | BY50: 32,4
A51: 47 | B51: LU | C51: Lucca | D51: 19 | E51: 6.1 | F51: 7.2 | G51: 10.1 | H51: 13.3 | I51: 17.1 | J51: 21.2 | K51: 23.8 | L51: 23.6 | M51: 20.9 | N51: 15.8 | O51: 10.9 | P51: 7.3 | R51: 47 | S51: LU | T51: Lucca | U51: 19 | V51: 2 | W51: 1,5 | X51: E | Z51: 47 | AA51: LU | AB51: Lucca | AC51: 19 | AD51: 43 | AE51: 50 | AF51: 10 | AG51: 03 | AH51: 0 | AJ51: 47 | AK51: LU | AL51: Lucca | AM51: 2,6 | AN51: 2,7 | AO51: 3,7 | AP51: 4,2 | AQ51: 5,2 | AR51: 7,1 | AS51: 6,8 | AT51: 9,9 | AU51: 7,9 | AV51: 12,4 | AW51: 8,2 | AX51: 14,5 | AY51: 7,3 | AZ51: 17,4 | BA51: 6,7 | BB51: 13,8 | BC51: 5,5 | BD51: 10,3 | BE51: 4,0 | BF51: 6,7 | BG51: 2,8 | BH51: 3,0 | BI51: 2,3 | BJ51: 2,1 | BK51: 47 | BL51: LUCCA | BM51: D | BN51: 166 | BO51: 1715 | BP51: 47 | BQ51: LUCCA | BR51: LU | BS51: 28.3 | BV51: 47 | BW51: LU | BX51: Lucca | BY51: 32,5
A52: 48 | B52: MC | C52: Macerata | D52: 315 | E52: 3.8 | F52: 5.3 | G52: 8.3 | H52: 12.4 | I52: 16.3 | J52: 20.7 | K52: 23.5 | L52: 23.2 | M52: 19.9 | N52: 14.4 | O52: 9.5 | P52: 5.7 | R52: 48 | S52: MC | T52: Macerata | U52: 315 | V52: 2 | W52: 3,4 | X52: NW | Z52: 48 | AA52: MC | AB52: Macerata | AC52: 315 | AD52: 43 | AE52: 17 | AF52: 13 | AG52: 27 | AH52: -2 | AJ52: 48 | AK52: MC | AL52: Macerata | AM52: 2,7 | AN52: 2,8 | AO52: 3,7 | AP52: 4,7 | AQ52: 5,3 | AR52: 7,2 | AS52: 6,7 | AT52: 10,9 | AU52: 7,5 | AV52: 15,2 | AW52: 7,8 | AX52: 16,7 | AY52: 7,1 | AZ52: 18,3 | BA52: 6,5 | BB52: 15,2 | BC52: 5,4 | BD52: 11,1 | BE52: 4,0 | BF52: 7,0 | BG52: 2,9 | BH52: 3,5 | BI52: 2,4 | BJ52: 2,4 | BK52: 48 | BL52: MACERATA | BM52: D | BN52: 166 | BO52: 2005 | BP52: 48 | BQ52: MACERATA | BR52: MC | BS52: 28.3 | BV52: 48 | BW52: MC | BX52: Macerata | BY52: 31,2
A53: 49 | B53: MN | C53: Mantova | D53: 19 | E53: 1 | F53: 3.3 | G53: 8.4 | H53: 13.3 | I53: 17.4 | J53: 22 | K53: 24.3 | L53: 23.6 | M53: 20 | N53: 14 | O53: 8 | P53: 2.9 | R53: 49 | S53: MN | T53: Mantova | U53: 19 | V53: 1 | W53: 0,9 | X53: E | Z53: 49 | AA53: MN | AB53: Mantova | AC53: 19 | AD53: 45 | AE53: 09 | AF53: 10 | AG53: 46 | AH53: -5 | AJ53: 49 | AK53: MN | AL53: Mantova | AM53: 2,3 | AN53: 1,5 | AO53: 3,5 | AP53: 3,1 | AQ53: 5,1 | AR53: 6,0 | AS53: 6,7 | AT53: 9,5 | AU53: 7,8 | AV53: 12,2 | AW53: 8,0 | AX53: 15,5 | AY53: 7,3 | AZ53: 17,4 | BA53: 6,8 | BB53: 13,0 | BC53: 5,6 | BD53: 8,2 | BE53: 4,0 | BF53: 4,1 | BG53: 2,6 | BH53: 1,8 | BI53: 2,0 | BJ53: 1,3 | BK53: 49 | BL53: MANTOVA | BM53: E | BN53: 183 | BO53: 2388 | BP53: 49 | BQ53: MANTOVA | BR53: MN | BS53: 38.7 | BV53: 49 | BW53: MN | BX53: Mantova | BY53: 33,0
A54: 50 | B54: MS | C54: Massa-Carrara | D54: 65 | E54: 6.8 | F54: 7.4 | G54: 10.3 | H54: 13.2 | I54: 16.9 | J54: 21.2 | K54: 23.7 | L54: 23.3 | M54: 20.6 | N54: 15.9 | O54: 11.3 | P54: 7.9 | R54: 50 | S54: MS | T54: Massa-Carrara | U54: 65 | V54: 2 | W54: 3,5 | X54: N | Z54: 50 | AA54: MS | AB54: Massa-Carrara | AC54: 65 | AD54: 44 | AE54: 01 | AF54: 10 | AG54: 07 | AH54: 0 | AJ54: 50 | AK54: MS | AL54: Massa-Carrara | AM54: 2,6 | AN54: 2,7 | AO54: 3,6 | AP54: 4,7 | AQ54: 5,1 | AR54: 7,5 | AS54: 6,7 | AT54: 10,2 | AU54: 7,8 | AV54: 12,4 | AW54: 8,1 | AX54: 15,1 | AY54: 7,1 | AZ54: 18,3 | BA54: 6,6 | BB54: 14,4 | BC54: 5,4 | BD54: 10,4 | BE54: 4,0 | BF54: 6,4 | BG54: 2,8 | BH54: 3,0 | BI54: 2,3 | BJ54: 2,4 | BK54: 50 | BL54: MASSA-Carrara | BM54: D | BN54: 166 | BO54: 1525 | BP54: 50 | BQ54: MASSA | BR54: MS | BS54: 63.2 | BV54: 50 | BW54: MS | BX54: Massa-Carrara | BY54: 32,5
A55: 51 | B55: MT | C55: Matera | D55: 200 | E55: 7.7 | F55: 8.4 | G55: 10.5 | H55: 14.2 | I55: 18.5 | J55: 23.6 | K55: 26.7 | L55: 26.2 | M55: 22.9 | N55: 18 | O55: 13.3 | P55: 9.3 | R55: 51 | S55: MT | T55: Matera | U55: 200 | V55: 1 | W55: 2,9 | X55: N | Z55: 51 | AA55: MT | AB55: Matera | AC55: 200 | AD55: 40 | AE55: 39 | AF55: 16 | AG55: 36 | AH55: -2 | AJ55: 51 | AK55: MT | AL55: Matera | AM55: 3,0 | AN55: 3,3 | AO55: 4,0 | AP55: 5,7 | AQ55: 5,5 | AR55: 7,6 | AS55: 6,8 | AT55: 11,6 | AU55: 7,6 | AV55: 15,1 | AW55: 7,7 | AX55: 17,4 | AY55: 6,8 | AZ55: 19,7 | BA55: 6,2 | BB55: 17,0 | BC55: 5,4 | BD55: 12,3 | BE55: 4,4 | BF55: 7,2 | BG55: 3,2 | BH55: 3,8 | BI55: 2,7 | BJ55: 3,1 | BK55: 51 | BL55: MATERA | BM55: D | BN55: 166 | BO55: 1776 | BP55: 51 | BQ55: MATERA | BR55: MT | BS55: 41.7 | BV55: 51 | BW55: MT | BX55: Matera | BY55: 34,1
A56: 52 | B56: ME | C56: Messina | D56: 3 | E56: 11.7 | F56: 12 | G56: 13.2 | H56: 15.7 | I56: 19.2 | J56: 23.5 | K56: 26.4 | L56: 26.5 | M56: 24.2 | N56: 20.3 | O56: 16.6 | P56: 13.3 | R56: 52 | S56: ME | T56: Messina | U56: 3 | V56: 3 | W56: 2,8 | X56: N | Z56: 52 | AA56: ME | AB56: Messina | AC56: 3 | AD56: 38 | AE56: 11 | AF56: 15 | AG56: 32 | AH56: 5 | AJ56: 52 | AK56: ME | AL56: Messina | AM56: 3,3 | AN56: 3,9 | AO56: 4,3 | AP56: 6,5 | AQ56: 5,6 | AR56: 9,6 | AS56: 6,7 | AT56: 13,6 | AU56: 7,2 | AV56: 17,2 | AW56: 7,0 | AX56: 20,3 | AY56: 6,6 | AZ56: 20,6 | BA56: 6,0 | BB56: 18,6 | BC56: 5,4 | BD56: 13,6 | BE56: 4,6 | BF56: 8,3 | BG56: 3,5 | BH56: 5,4 | BI56: 3,0 | BJ56: 3.6 | BK56: 52 | BL56: MESSINA | BM56: B | BN56: 121 | BO56: 707 | BP56: 52 | BQ56: MESSINA | BR56: ME | BS56: 59.8 | BV56: 52 | BW56: ME | BX56: Messina | BY56: 32,3
A57: 53 | B57: MI | C57: Milano | D57: 122 | E57: 1.7 | F57: 4.2 | G57: 9.2 | H57: 14 | I57: 17.9 | J57: 22.5 | K57: 25.1 | L57: 24.1 | M57: 20.4 | N57: 14 | O57: 7.9 | P57: 3.1 | R57: 53 | S57: MI | T57: Milano | U57: 122 | V57: 1 | W57: 1,1 | X57: SW | Z57: 53 | AA57: MI | AB57: Milano | AC57: 122 | AD57: 45 | AE57: 27 | AF57: 9 | AG57: 11 | AH57: -5 | AJ57: 53 | AK57: MI | AL57: Milano | AM57: 2,3 | AN57: 1,5 | AO57: 3,5 | AP57: 3,2 | AQ57: 5,1 | AR57: 6,5 | AS57: 6,7 | AT57: 9,8 | AU57: 7,9 | AV57: 12,1 | AW57: 8,3 | AX57: 13,9 | AY57: 7,5 | AZ57: 16,5 | BA57: 6,9 | BB57: 12,5 | BC57: 5,6 | BD57: 8,4 | BE57: 3,9 | BF57: 4,5 | BG57: 2,5 | BH57: 1,9 | BI57: 2,0 | BJ57: 1,3 | BK57: 53 | BL57: MILANO | BM57: E | BN57: 183 | BO57: 2404 | BP57: 53 | BQ57: MILANO | BR57: MI | BS57: 38.7 | BV57: 53 | BW57: MI | BX57: Milano | BY57: 31,9
A58: 54 | B58: MO | C58: Modena | D58: 34 | E58: 1.4 | F58: 3.5 | G58: 8.6 | H58: 13.3 | I58: 17.2 | J58: 21.8 | K58: 24.3 | L58: 23.8 | M58: 20.1 | N58: 14 | O58: 8.1 | P58: 3.1 | R58: 54 | S58: MO | T58: Modena | U58: 34 | V58: 1 | W58: 1,6 | X58: SW | Z58: 54 | AA58: MO | AB58: Modena | AC58: 34 | AD58: 44 | AE58: 38 | AF58: 10 | AG58: 55 | AH58: -5 | AJ58: 54 | AK58: MO | AL58: Modena | AM58: 2,5 | AN58: 1,9 | AO58: 3,6 | AP58: 3,4 | AQ58: 5,1 | AR58: 6,7 | AS58: 6,7 | AT58: 10,5 | AU58: 7,6 | AV58: 14,0 | AW58: 7,9 | AX58: 16,1 | AY58: 7,2 | AZ58: 17,8 | BA58: 6,8 | BB58: 13,5 | BC58: 5,5 | BD58: 9,6 | BE58: 4,0 | BF58: 6,0 | BG58: 2,7 | BH58: 2,6 | BI58: 2,2 | BJ58: 1,9 | BK58: 54 | BL58: MODENA | BM58: E | BN58: 183 | BO58: 2258 | BP58: 54 | BQ58: MODENA | BR58: MO | BS58: 37 | BV58: 54 | BW58: MO | BX58: Modena | BY58: 32,2
A59: 55 | B59: NA | C59: Napoli | D59: 17 | E59: 10.5 | F59: 10.6 | G59: 13.2 | H59: 16 | I59: 19.5 | J59: 24.1 | K59: 26.7 | L59: 26.5 | M59: 23.8 | N59: 19.6 | O59: 15.5 | P59: 12.1 | R59: 55 | S59: NA | T59: Napoli | U59: 17 | V59: 3 | W59: 2,3 | X59: NE | Z59: 55 | AA59: NA | AB59: Napoli | AC59: 17 | AD59: 40 | AE59: 51 | AF59: 14 | AG59: 15 | AH59: 2 | AJ59: 55 | AK59: NA | AL59: Napoli | AM59: 3,0 | AN59: 3,7 | AO59: 4,0 | AP59: 5,6 | AQ59: 5,4 | AR59: 8,5 | AS59: 6,7 | AT59: 12,2 | AU59: 7,4 | AV59: 16,3 | AW59: 7,4 | AX59: 18,9 | AY59: 6,6 | AZ59: 20,6 | BA59: 6,0 | BB59: 17,9 | BC59: 5,4 | BD59: 12,4 | BE59: 4,1 | BF59: 8,7 | BG59: 3,2 | BH59: 4,4 | BI59: 2,7 | BJ59: 3,1 | BK59: 55 | BL59: NAPOLI | BM59: C | BN59: 137 | BO59: 1034 | BP59: 55 | BQ59: NAPOLI | BR59: NA | BS59: 48.8 | BV59: 55 | BW59: NA | BX59: Napoli | BY59: 32,4
A60: 56 | B60: NO | C60: Novara | D60: 159 | E60: 0.9 | F60: 3.3 | G60: 8.4 | H60: 13.1 | I60: 17.4 | J60: 21.8 | K60: 24.3 | L60: 23.3 | M60: 19.2 | N60: 12.9 | O60: 7.1 | P60: 2.4 | R60: 56 | S60: NO | T60: Novara | U60: 159 | V60: 1 | W60: 0,8 | X60: N | Z60: 56 | AA60: NO | AB60: Novara | AC60: 159 | AD60: 45 | AE60: 25 | AF60: 8 | AG60: 37 | AH60: -5 | AJ60: 56 | AK60: NO | AL60: Novara | AM60: 2,3 | AN60: 1,7 | AO60: 3,5 | AP60: 3,7 | AQ60: 5,0 | AR60: 6,8 | AS60: 6,6 | AT60: 10,2 | AU60: 7,8 | AV60: 12,2 | AW60: 8,2 | AX60: 14,2 | AY60: 7,4 | AZ60: 16,9 | BA60: 6,8 | BB60: 12,8 | BC60: 5,5 | BD60: 8,7 | BE60: 3,9 | BF60: 4,3 | BG60: 2,6 | BH60: 2,2 | BI60: 2,0 | BJ60: 1,4 | BK60: 56 | BL60: NOVARA | BM60: E | BN60: 183 | BO60: 2463 | BP60: 56 | BQ60: NOVARA | BR60: NO | BS60: 44.4 | BV60: 56 | BW60: NO | BX60: Novara | BY60: 30,7
A61: 57 | B61: NU | C61: Nuoro | D61: 546 | E61: 6.2 | F61: 6.7 | G61: 9.5 | H61: 12.4 | I61: 15.7 | J61: 21.1 | K61: 24.3 | L61: 24.1 | M61: 20.9 | N61: 15.7 | O61: 11.2 | P61: 7.6 | R61: 57 | S61: NU | T61: Nuoro | U61: 546 | V61: 3 | W61: 2,4 | X61: NW | Z61: 57 | AA61: NU | AB61: Nuoro | AC61: 546 | AD61: 40 | AE61: 19 | AF61: 9 | AG61: 19 | AH61: 0 | AJ61: 57 | AK61: NU | AL61: Nuoro | AM61: 3,1 | AN61: 3,8 | AO61: 4,1 | AP61: 5,5 | AQ61: 5,4 | AR61: 8,8 | AS61: 6,8 | AT61: 12,1 | AU61: 7,3 | AV61: 16,3 | AW61: 7,3 | AX61: 18,9 | AY61: 6,2 | AZ61: 21,8 | BA61: 6,1 | BB61: 17,8 | BC61: 5,4 | BD61: 12,7 | BE61: 4,3 | BF61: 8,0 | BG61: 3,3 | BH61: 4,4 | BI61: 2,8 | BJ61: 3,2 | BK61: 57 | BL61: NUORO | BM61: D | BN61: 166 | BO61: 1602 | BP61: 57 | BQ61: NUORO | BR61: NU | BS61: 59.5 | BV61: 57 | BW61: NU | BX61: Nuoro | BY61: 31,0
A62: 58 | B62: OR | C62: Oristano | D62: 9 | E62: 9.6 | F62: 10.2 | G62: 12.3 | H62: 14.5 | I62: 17.4 | J62: 21.4 | K62: 23.5 | L62: 24.1 | M62: 22.6 | N62: 18.7 | O62: 14.4 | P62: 10.8 | R62: 58 | S62: OR | T62: Oristano | U62: 9 | V62: 4 | W62: 4,3 | X62: NW | Z62: 58 | AA62: OR | AB62: Oristano | AC62: 9 | AD62: 39 | AE62: 54 | AF62: 8 | AG62: 35 | AH62: 3 | AJ62: 58 | AK62: OR | AL62: Oristano | AM62: 3,1 | AN62: 3,9 | AO62: 4,1 | AP62: 5,8 | AQ62: 5,4 | AR62: 8,9 | AS62: 6,8 | AT62: 12,0 | AU62: 7,4 | AV62: 15,9 | AW62: 7,5 | AX62: 18,2 | AY62: 6,3 | AZ62: 21,3 | BA62: 6,1 | BB62: 17,9 | BC62: 5,4 | BD62: 12,8 | BE62: 4,3 | BF62: 8,3 | BG62: 3.3 | BH62: 4,5 | BI62: 2,8 | BJ62: 3,3 | BK62: 58 | BL62: ORISTANO | BM62: C | BN62: 137 | BO62: 1059 | BP62: 58 | BQ62: ORISTANO | BR62: OR | BS62: 59.5 | BV62: 58 | BW62: OR | BX62: Oristano | BY62: 32,9
A63: 59 | B63: PD | C63: Padova | D63: 12 | E63: 1.9 | F63: 4 | G63: 8.4 | H63: 13 | I63: 17.1 | J63: 21.3 | K63: 23.6 | L63: 23.1 | M63: 19.7 | N63: 13.8 | O63: 8.2 | P63: 3.6 | R63: 59 | S63: PD | T63: Padova | U63: 12 | V63: 1 | W63: 1,0 | X63: NE | Z63: 59 | AA63: PD | AB63: Padova | AC63: 12 | AD63: 45 | AE63: 24 | AF63: 11 | AG63: 52 | AH63: -5 | AJ63: 59 | AK63: PD | AL63: Padova | AM63: 2,3 | AN63: 1,8 | AO63: 3,5 | AP63: 3,6 | AQ63: 5,1 | AR63: 5,9 | AS63: 6,7 | AT63: 8,0 | AU63: 7,9 | AV63: 10,9 | AW63: 8,4 | AX63: 12,2 | AY63: 8,0 | AZ63: 13,5 | BA63: 7,0 | BB63: 11,7 | BC63: 5,5 | BD63: 8,9 | BE63: 3,9 | BF63: 5,5 | BG63: 2,6 | BH63: 2,4 | BI63: 2,1 | BJ63: 2,1 | BK63: 59 | BL63: PADOVA | BM63: E | BN63: 183 | BO63: 2383 | BP63: 59 | BQ63: PADOVA | BR63: PD | BS63: 38.9 | BV63: 59 | BW63: PD | BX63: Padova | BY63: 32,5
A64: 60 | B64: PA | C64: Palermo | D64: 14 | E64: 11.1 | F64: 11.6 | G64: 13.1 | H64: 15.5 | I64: 18.8 | J64: 22.7 | K64: 25.5 | L64: 25.4 | M64: 23.6 | N64: 19.8 | O64: 16 | P64: 12.6 | R64: 60 | S64: PA | T64: Palermo | U64: 14 | V64: 3 | W64: 3,6 | X64: SW | Z64: 60 | AA64: PA | AB64: Palermo | AC64: 14 | AD64: 38 | AE64: 07 | AF64: 13 | AG64: 21 | AH64: 5 | AJ64: 60 | AK64: PA | AL64: Palermo | AM64: 3,3 | AN64: 4,4 | AO64: 4,3 | AP64: 6,8 | AQ64: 5,5 | AR64: 10,2 | AS64: 6,6 | AT64: 14,2 | AU64: 6,9 | AV64: 18,3 | AW64: 6,8 | AX64: 21,1 | AY64: 6,3 | AZ64: 21,6 | BA64: 5,6 | BB64: 19,6 | BC64: 5,2 | BD64: 14,4 | BE64: 4,4 | BF64: 9,1 | BG64: 3,5 | BH64: 5,8 | BI64: 3,0 | BJ64: 3,9 | BK64: 60 | BL64: PALERMO | BM64: B | BN64: 121 | BO64: 751 | BP64: 60 | BQ64: PALERMO | BR64: PA | BS64: 59.8 | BV64: 60 | BW64: PA | BX64: Palermo | BY64: 32,6
A65: 61 | B65: PR | C65: Parma | D65: 57 | E65: 0.9 | F65: 3.5 | G65: 8.9 | H65: 13.7 | I65: 17.6 | J65: 22.2 | K65: 24.7 | L65: 24 | M65: 20.2 | N65: 14.1 | O65: 8 | P65: 2.8 | R65: 61 | S65: PR | T65: Parma | U65: 57 | V65: 1 | W65: 1,1 | X65: E | Z65: 61 | AA65: PR | AB65: Parma | AC65: 57 | AD65: 44 | AE65: 48 | AF65: 10 | AG65: 19 | AH65: -5 | AJ65: 61 | AK65: PR | AL65: Parma | AM65: 2,4 | AN65: 1,9 | AO65: 3,6 | AP65: 4,1 | AQ65: 5,0 | AR65: 8,0 | AS65: 6,5 | AT65: 11,8 | AU65: 7,6 | AV65: 13,9 | AW65: 7,8 | AX65: 17,0 | AY65: 6,8 | AZ65: 19,5 | BA65: 6,4 | BB65: 15,4 | BC65: 5,1 | BD65: 11,8 | BE65: 4,0 | BF65: 6,0 | BG65: 2,7 | BH65: 2,5 | BI65: 2,1 | BJ65: 1,6 | BK65: 61 | BL65: PARMA | BM65: E | BN65: 183 | BO65: 2502 | BP65: 61 | BQ65: PARMA | BR65: PR | BS65: 37 | BV65: 61 | BW65: PR | BX65: Parma | BY65: 31,0
A66: 62 | B66: PV | C66: Pavia | D66: 77 | E66: 0.5 | F66: 3.2 | G66: 8.4 | H66: 12.9 | I66: 17.1 | J66: 21.3 | K66: 23.5 | L66: 22.7 | M66: 19.3 | N66: 13.3 | O66: 7.1 | P66: 2.3 | R66: 62 | S66: PV | T66: Pavia | U66: 77 | V66: 1 | W66: 1,2 | X66: S | Z66: 62 | AA66: PV | AB66: Pavia | AC66: 77 | AD66: 45 | AE66: 11 | AF66: 9 | AG66: 09 | AH66: -5 | AJ66: 62 | AK66: PV | AL66: Pavia | AM66: 2,3 | AN66: 1,4 | AO66: 3,5 | AP66: 3,0 | AQ66: 5,1 | AR66: 6,0 | AS66: 6,7 | AT66: 9,6 | AU66: 7,8 | AV66: 12,3 | AW66: 8,0 | AX66: 15,7 | AY66: 7,3 | AZ66: 17,5 | BA66: 6,8 | BB66: 13,1 | BC66: 5,6 | BD66: 8,1 | BE66: 4,0 | BF66: 4,0 | BG66: 2,6 | BH66: 1,7 | BI66: 2,0 | BJ66: 1,2 | BK66: 62 | BL66: PAVIA | BM66: E | BN66: 183 | BO66: 2623 | BP66: 62 | BQ66: PAVIA | BR66: PV | BS66: 38.7 | BV66: 62 | BW66: PV | BX66: Pavia | BY66: 32,0
A67: 63 | B67: PG | C67: Perugia | D67: 493 | E67: 4 | F67: 5 | G67: 8.1 | H67: 11.5 | I67: 15.4 | J67: 20.1 | K67: 23.1 | L67: 22.7 | M67: 19.6 | N67: 14.1 | O67: 9.4 | P67: 5.5 | R67: 63 | S67: PG | T67: Perugia | U67: 493 | V67: 2 | W67: 1,4 | X67: NE | Z67: 63 | AA67: PG | AB67: Perugia | AC67: 493 | AD67: 43 | AE67: 06 | AF67: 12 | AG67: 23 | AH67: -2 | AJ67: 63 | AK67: PG | AL67: Perugia | AM67: 2,7 | AN67: 2,8 | AO67: 3,8 | AP67: 4,1 | AQ67: 5,3 | AR67: 7,0 | AS67: 6,8 | AT67: 9,8 | AU67: 7,7 | AV67: 13,7 | AW67: 8,0 | AX67: 15,6 | AY67: 7,1 | AZ67: 18,4 | BA67: 6,6 | BB67: 14,9 | BC67: 5,5 | BD67: 10,6 | BE67: 4,0 | BF67: 7,4 | BG67: 2,9 | BH67: 3,4 | BI67: 2,4 | BJ67: 2,2 | BK67: 63 | BL67: PERUGIA | BM67: E | BN67: 183 | BO67: 2289 | BP67: 63 | BQ67: PERUGIA | BR67: PG | BS67: 28.3 | BV67: 63 | BW67: PG | BX67: Perugia | BY67: 28,6
A68: 64 | B68: PS | C68: Pesaro e Urbino | D68: 11 | E68: 3.6 | F68: 4.7 | G68: 8.4 | H68: 12.3 | I68: 16.2 | J68: 20.6 | K68: 23.2 | L68: 22.7 | M68: 19.7 | N68: 14.7 | O68: 9.9 | P68: 5.4 | R68: 64 | S68: PS | T68: Pesaro e Urbino | U68: 11 | V68: 2 | W68: 3,4 | X68: S | Z68: 64 | AA68: PS | AB68: Pesaro e Urbino | AC68: 11 | AD68: 43 | AE68: 54 | AF68: 12 | AG68: 54 | AH68: -2 | AJ68: 64 | AK68: PS | AL68: Pesaro e Urbino | AM68: 2,4 | AN68: 1,6 | AO68: 3,6 | AP68: 3,4 | AQ68: 5,2 | AR68: 6,9 | AS68: 6,7 | AT68: 10,7 | AU68: 7,7 | AV68: 13,5 | AW68: 8,1 | AX68: 14,9 | AY68: 7,1 | AZ68: 18,3 | BA68: 6,4 | BB68: 15,4 | BC68: 5,5 | BD68: 10,1 | BE68: 4,1 | BF68: 5,6 | BG68: 2,8 | BH68: 2,6 | BI68: 2,2 | BJ68: 1,7 | BK68: 64 | BL68: PESARO e URBINO | BM68: D | BN68: 166 | BO68: 2083 | BP68: 64 | BQ68: PESARO URBINO | BR68: PS | BS68: 28.3 | BV68: 64 | BW68: PS | BX68: Pesaro e Urbino | BY68: 30,5
A69: 65 | B69: PE | C69: Pescara | D69: 4 | E69: 7.2 | F69: 8.4 | G69: 10.9 | H69: 14.2 | I69: 18.5 | J69: 22.7 | K69: 25.4 | L69: 25 | M69: 22 | N69: 17.4 | O69: 12.5 | P69: 8.7 | R69: 65 | S69: PE | T69: Pescara | U69: 4 | V69: 2 | W69: 2,0 | X69: SW | Z69: 65 | AA69: PE | AB69: Pescara | AC69: 4 | AD69: 42 | AE69: 27 | AF69: 14 | AG69: 12 | AH69: 2 | AJ69: 65 | AK69: PE | AL69: Pescara | AM69: 2,8 | AN69: 2,9 | AO69: 3,9 | AP69: 4,7 | AQ69: 5,3 | AR69: 7,5 | AS69: 6,6 | AT69: 11,9 | AU69: 7,4 | AV69: 15,6 | AW69: 7,9 | AX69: 16,5 | AY69: 6,9 | AZ69: 19,2 | BA69: 6,5 | BB69: 15,7 | BC69: 5,4 | BD69: 11,4 | BE69: 4,1 | BF69: 7,4 | BG69: 3,0 | BH69: 3,7 | BI69: 2,5 | BJ69: 2,4 | BK69: 65 | BL69: PESCARA | BM69: D | BN69: 166 | BO69: 1718 | BP69: 65 | BQ69: PESCARA | BR69: PE | BS69: 39.8 | BV69: 65 | BW69: PE | BX69: Pescara | BY69: 31,6
A70: 66 | B70: PC | C70: Piacenza | D70: 61 | E70: 0.1 | F70: 2.4 | G70: 7.7 | H70: 12.2 | I70: 16.3 | J70: 20.7 | K70: 23.2 | L70: 22.3 | M70: 18.9 | N70: 12.8 | O70: 6.9 | P70: 2 | R70: 66 | S70: PC | T70: Piacenza | U70: 61 | V70: 1 | W70: 1,2 | X70: E | Z70: 66 | AA70: PC | AB70: Piacenza | AC70: 61 | AD70: 45 | AE70: 03 | AF70: 9 | AG70: 41 | AH70: -5 | AJ70: 66 | AK70: PC | AL70: Piacenza | AM70: 2,4 | AN70: 2,0 | AO70: 3,5 | AP70: 3,8 | AQ70: 5,1 | AR70: 7,1 | AS70: 6,6 | AT70: 10,9 | AU70: 7,7 | AV70: 13,4 | AW70: 8,0 | AX70: 15,9 | AY70: 7,1 | AZ70: 18,4 | BA70: 6,6 | BB70: 14,1 | BC70: 5,4 | BD70: 9,9 | BE70: 4,0 | BF70: 5,1 | BG70: 2.6 | BH70: 2,2 | BI70: 2,1 | BJ70: 1,4 | BK70: 66 | BL70: PIACENZA | BM70: E | BN70: 183 | BO70: 2715 | BP70: 66 | BQ70: PIACENZA | BR70: PC | BS70: 38.7 | BV70: 66 | BW70: PC | BX70: Piacenza | BY70: 32,6
A71: 67 | B71: PI | C71: Pisa | D71: 4 | E71: 6.7 | F71: 7.7 | G71: 10.6 | H71: 13.6 | I71: 17.2 | J71: 21.1 | K71: 23.5 | L71: 23.5 | M71: 20.9 | N71: 16.3 | O71: 11.7 | P71: 7.8 | R71: 67 | S71: PI | T71: Pisa | U71: 4 | V71: 3 | W71: 2,4 | X71: E | Z71: 67 | AA71: PI | AB71: Pisa | AC71: 4 | AD71: 43 | AE71: 42 | AF71: 10 | AG71: 24 | AH71: 0 | AJ71: 67 | AK71: PI | AL71: Pisa | AM71: 2,6 | AN71: 2,7 | AO71: 3,7 | AP71: 4,6 | AQ71: 5,2 | AR71: 7,1 | AS71: 6,7 | AT71: 11,1 | AU71: 7,5 | AV71: 14,8 | AW71: 7,9 | AX71: 16,5 | AY71: 6,9 | AZ71: 19,1 | BA71: 6,4 | BB71: 15,6 | BC71: 5,3 | BD71: 11,3 | BE71: 4,0 | BF71: 7,2 | BG71: 2,9 | BH71: 3,2 | BI71: 2,3 | BJ71: 2,4 | BK71: 67 | BL71: PISA | BM71: D | BN71: 166 | BO71: 1694 | BP71: 67 | BQ71: PISA | BR71: PI | BS71: 28.3 | BV71: 67 | BW71: PI | BX71: Pisa | BY71: 31,5
A72: 68 | B72: PT | C72: Pistoia | D72: 67 | E72: 5.3 | F72: 6.5 | G72: 9.9 | H72: 13.4 | I72: 17.2 | J72: 21.3 | K72: 24.1 | L72: 23.6 | M72: 20.9 | N72: 15.3 | O72: 10.4 | P72: 6.3 | R72: 68 | S72: PT | T72: Pisoia | U72: 67 | V72: 2 | W72: 3,7 | X72: S | Z72: 68 | AA72: PT | AB72: Pisoia | AC72: 67 | AD72: 43 | AE72: 55 | AF72: 10 | AG72: 54 | AH72: 0 | AJ72: 68 | AK72: PT | AL72: Pistoia | AM72: 2,6 | AN72: 2,4 | AO72: 3,7 | AP72: 4,0 | AQ72: 5,2 | AR72: 6,1 | AS72: 6,8 | AT72: 8,1 | AU72: 8,0 | AV72: 9,9 | AW72: 8,4 | AX72: 11,6 | AY72: 7,7 | AZ72: 15,3 | BA72: 6,9 | BB72: 12,8 | BC72: 5,6 | BD72: 9,2 | BE72: 4,1 | BF72: 5,9 | BG72: 2,8 | BH72: 2,9 | BI72: 2,3 | BJ72: 2,1 | BK72: 68 | BL72: PISTOIA | BM72: D | BN72: 166 | BO72: 1885 | BP72: 68 | BQ72: PISTOIA | BR72: PT | BS72: 28.3 | BV72: 68 | BW72: PT | BX72: Pisoia | BY72: 31,6
A73: 69 | B73: PN | C73: Pordenone | D73: 24 | E73: 2.3 | F73: 4.4 | G73: 8.1 | H73: 12.1 | I73: 15.7 | J73: 18.4 | K73: 21.5 | L73: 21.2 | M73: 18.3 | N73: 12.9 | O73: 7.4 | P73: 3.8 | R73: 69 | S73: PN | T73: Pordenone | U73: 24 | V73: 1 | W73: 1,3 | X73: NE | Z73: 69 | AA73: PN | AB73: Pordenone | AC73: 24 | AD73: 45 | AE73: 57 | AF73: 12 | AG73: 39 | AH73: -5 | AJ73: 69 | AK73: PN | AL73: Pordenone | AM73: 2,3 | AN73: 2,2 | AO73: 3,4 | AP73: 4,1 | AQ73: 5,0 | AR73: 6,4 | AS73: 6,7 | AT73: 8,3 | AU73: 7,9 | AV73: 11,0 | AW73: 8,3 | AX73: 12,8 | AY73: 7,9 | AZ73: 14,1 | BA73: 6,8 | BB73: 12,8 | BC73: 5,4 | BD73: 9,0 | BE73: 3,9 | BF73: 5,5 | BG73: 2,5 | BH73: 2,2 | BI73: 2,0 | BJ73: 1,9 | BK73: 69 | BL73: PORDENONE | BM73: E | BN73: 183 | BO73: 2459 | BP73: 69 | BQ73: PORDENONE | BR73: PN | BS73: 57.5 | BV73: 69 | BW73: PN | BX73: Pordenone | BY73: 33,0
A74: 70 | B74: PZ | C74: Potenza | D74: 819 | E74: 3.6 | F74: 4.3 | G74: 6.8 | H74: 10.6 | I74: 14.7 | J74: 19.1 | K74: 21.9 | L74: 21.9 | M74: 18.9 | N74: 13.7 | O74: 9.3 | P74: 5.2 | R74: 70 | S74: PZ | T74: Potenza | U74: 819 | V74: 3 | W74: 3,8 | X74: W | Z74: 70 | AA74: PZ | AB74: Potenza | AC74: 819 | AD74: 40 | AE74: 38 | AF74: 15 | AG74: 48 | AH74: -3 | AJ74: 70 | AK74: PZ | AL74: Potenza | AM74: 3,0 | AN74: 3,0 | AO74: 4,1 | AP74: 4,8 | AQ74: 5,5 | AR74: 7,5 | AS74: 6,9 | AT74: 10,9 | AU74: 7,7 | AV74: 14,2 | AW74: 7,6 | AX74: 17,7 | AY74: 7,0 | AZ74: 19,0 | BA74: 6,5 | BB74: 15,9 | BC74: 5,7 | BD74: 11,1 | BE74: 4,4 | BF74: 7,1 | BG74: 3,2 | BH74: 4,1 | BI74: 2,7 | BJ74: 2,8 | BK74: 70 | BL74: POTENZA | BM74: E | BN74: 183 | BO74: 2472 | BP74: 70 | BQ74: POTENZA | BR74: PZ | BS74: 48.8 | BV74: 70 | BW74: PZ | BX74: Potenza | BY74: 28,7
A75: 71 | B75: PO | C75: Prato | D75: 61 | E75: 5.6 | F75: 6.9 | G75: 10.4 | H75: 14.3 | I75: 18 | J75: 22.3 | K75: 25 | L75: 24.7 | M75: 21.6 | N75: 16.1 | O75: 10.9 | P75: 6.8 | R75: 71 | S75: PO | T75: Prato | U75: 61 | V75: 2 | W75: 1,4 | X75: NE | Z75: 71 | AA75: PO | AB75: Prato | AC75: 61 | AD75: 43 | AE75: 52 | AF75: 11 | AG75: 05 | AH75: 0 | AJ75: 71 | AK75: PO | AL75: Prato | AM75: 2,6 | AN75: 2,5 | AO75: 3,7 | AP75: 4,1 | AQ75: 5,2 | AR75: 6,3 | AS75: 6,8 | AT75: 8,8 | AU75: 7,9 | AV75: 11,0 | AW75: 8,3 | AX75: 12,7 | AY75: 7,5 | AZ75: 16,2 | BA75: 6,8 | BB75: 13,4 | BC75: 5,5 | BD75: 9, | BE75: 4,1 | BF75: 6,2 | BG75: 2,8 | BH75: 2,9 | BI75: 2,3 | BJ75: 2,1 | BK75: 71 | BL75: PRATO | BM75: D | BN75: 166 | BO75: 1668 | BP75: 71 | BQ75: PRATO | BR75: PO | BS75: 28.3 | BV75: 71 | BW75: PO | BX75: Prato | BY75: 32,5
A76: 72 | B76: RG | C76: Ragusa | D76: 502 | E76: 8.6 | F76: 9.2 | G76: 11.2 | H76: 14.1 | I76: 18.5 | J76: 23.6 | K76: 26.6 | L76: 26.4 | M76: 23.2 | N76: 18.4 | O76: 14.3 | P76: 10.1 | R76: 72 | S76: RG | T76: Ragusa | U76: 502 | V76: 3 | W76: 2,1 | X76: W | Z76: 72 | AA76: RG | AB76: Ragusa | AC76: 502 | AD76: 36 | AE76: 55 | AF76: 14 | AG76: 43 | AH76: 0 | AJ76: 72 | AK76: RG | AL76: Ragusa | AM76: 3,4 | AN76: 5,6 | AO76: 4,4 | AP76: 7,5 | AQ76: 5,5 | AR76: 11,6 | AS76: 6,5 | AT76: 15,0 | AU76: 7,0 | AV76: 18,4 | AW76: 7,4 | AX76: 19,1 | AY76: 6,9 | AZ76: 19,8 | BA76: 6,0 | BB76: 18,8 | BC76: 5,2 | BD76: 14,8 | BE76: 4,1 | BF76: 11,1 | BG76: 3,3 | BH76: 7,6 | BI76: 3,2 | BJ76: 4,4 | BK76: 72 | BL76: RAGUSA | BM76: C | BN76: 137 | BO76: 1324 | BP76: 72 | BQ76: RAGUSA | BR76: RG | BS76: 59.8 | BV76: 72 | BW76: RG | BX76: Ragusa | BY76: 34,1
A77: 73 | B77: RA | C77: Ravenna | D77: 4 | E77: 1.9 | F77: 3.4 | G77: 8.1 | H77: 12.4 | I77: 16.4 | J77: 20.9 | K77: 23.4 | L77: 22.9 | M77: 19.7 | N77: 14.3 | O77: 8.9 | P77: 3.8 | R77: 73 | S77: RA | T77: Ravenna | U77: 4 | V77: 2 | W77: 2,1 | X77: E | Z77: 73 | AA77: RA | AB77: Ravenna | AC77: 4 | AD77: 44 | AE77: 25 | AF77: 12 | AG77: 11 | AH77: -5 | AJ77: 73 | AK77: RA | AL77: Ravenna | AM77: 2,5 | AN77: 1,9 | AO77: 3,6 | AP77: 3,5 | AQ77: 5,1 | AR77: 7,5 | AS77: 6,6 | AT77: 11,1 | AU77: 7,8 | AV77: 13,1 | AW77: 8,0 | AX77: 15,9 | AY77: 7,2 | AZ77: 18,1 | BA77: 6,6 | BB77: 14,4 | BC77: 5.4 | BD77: 10,1 | BE77: 4,0 | BF77: 5,5 | BG77: 2,7 | BH77: 2,4 | BI77: 2,1 | BJ77: 1,5 | BK77: 73 | BL77: RAVENNA | BM77: E | BN77: 183 | BO77: 2227 | BP77: 73 | BQ77: RAVENNA | BR77: RA | BS77: 37 | BV77: 73 | BW77: RA | BX77: Ravenna | BY77: 31,0
A78: 74 | B78: RC | C78: Reggio di Calabria | D78: 15 | E78: 11.1 | F78: 11.5 | G78: 12.8 | H78: 15.3 | I78: 18.7 | J78: 23 | K78: 25.7 | L78: 26.1 | M78: 23.8 | N78: 20 | O78: 16.5 | P78: 12.7 | R78: 74 | S78: RC | T78: Reggio di Calabria | U78: 15 | V78: 3 | W78: 2,8 | X78: N | Z78: 74 | AA78: RC | AB78: Reggio di Calabria | AC78: 15 | AD78: 38 | AE78: 06 | AF78: 15 | AG78: 38 | AH78: 3 | AJ78: 74 | AK78: RC | AL78: Reggio di Calabria | AM78: 3,3 | AN78: 4,2 | AO78: 4,2 | AP78: 7,2 | AQ78: 5,7 | AR78: 9,0 | AS78: 6,6 | AT78: 14,0 | AU78: 7,1 | AV78: 17,6 | AW78: 6,8 | AX78: 21,1 | AY78: 6,4 | AZ78: 21,1 | BA78: 5,8 | BB78: 19,1 | BC78: 5,4 | BD78: 13,7 | BE78: 4,5 | BF78: 8,3 | BG78: 3,5 | BH78: 5,5 | BI78: 3,0 | BJ78: 3,8 | BK78: 74 | BL78: REGGIO di CALABRIA | BM78: B | BN78: 121 | BO78: 772 | BP78: 74 | BQ78: REGGIO CALABRIA | BR78: RC | BS78: 59.8 | BV78: 74 | BW78: RC | BX78: Reggio di Clabria | BY78: 34,0
A79: 75 | B79: RE | C79: Reggio nell'Emilia | D79: 58 | E79: 1.1 | F79: 3.2 | G79: 8.2 | H79: 12.7 | I79: 16.9 | J79: 21.2 | K79: 23.8 | L79: 22.9 | M79: 19.6 | N79: 13.3 | O79: 7.2 | P79: 2.8 | R79: 75 | S79: RE | T79: Reggio nell'Emilia | U79: 58 | V79: 1 | W79: 1,1 | X79: E | Z79: 75 | AA79: RE | AB79: Reggio nell'Emilia | AC79: 58 | AD79: 44 | AE79: 41 | AF79: 10 | AG79: 37 | AH79: -5 | AJ79: 75 | AK79: RE | AL79: Reggio nell'Emilia | AM79: 2,5 | AN79: 1,9 | AO79: 3,6 | AP79: 3,6 | AQ79: 5,1 | AR79: 7,1 | AS79: 6,6 | AT79: 10,9 | AU79: 7,6 | AV79: 14,0 | AW79: 7,9 | AX79: 16,4 | AY79: 7,1 | AZ79: 18,3 | BA79: 6,7 | BB79: 14,1 | BC79: 5,4 | BD79: 10,3 | BE79: 4,0 | BF79: 6,0 | BG79: 2,7 | BH79: 2,6 | BI79: 2,2 | BJ79: 1,8 | BK79: 75 | BL79: REGGIO nell'EMILIA | BM79: E | BN79: 183 | BO79: 2560 | BP79: 75 | BQ79: REGGIO EMILIA | BR79: RE | BS79: 37 | BV79: 75 | BW79: RE | BX79: Reggio nell'Emilia | BY79: 31,5
A80: 76 | B80: RI | C80: Rieti | D80: 405 | E80: 3.7 | F80: 4.9 | G80: 8.1 | H80: 11.6 | I80: 15.2 | J80: 18.8 | K80: 21.8 | L80: 21.7 | M80: 18.9 | N80: 13.5 | O80: 8.7 | P80: 5.1 | R80: 76 | S80: RI | T80: Rieti | U80: 405 | V80: 2 | W80: 2,7 | X80: W | Z80: 76 | AA80: RI | AB80: Rieti | AC80: 405 | AD80: 42 | AE80: 24 | AF80: 12 | AG80: 52 | AH80: -3 | AJ80: 76 | AK80: RI | AL80: Rieti | AM80: 2,8 | AN80: 3,2 | AO80: 3,8 | AP80: 4,5 | AQ80: 5,3 | AR80: 6,5 | AS80: 6,9 | AT80: 7,6 | AU80: 8,0 | AV80: 11,4 | AW80: 8,4 | AX80: 12,3 | AY80: 7,7 | AZ80: 15,6 | BA80: 7,0 | BB80: 12,8 | BC80: 5,7 | BD80: 9,9 | BE80: 4,2 | BF80: 6,4 | BG80: 3,0 | BH80: 3,3 | BI80: 2,5 | BJ80: 2,5 | BK80: 76 | BL80: RIETI | BM80: E | BN80: 183 | BO80: 2324 | BP80: 76 | BQ80: RIETI | BR80: RI | BS80: 39.8 | BV80: 76 | BW80: RI | BX80: Rieti | BY80: 29,5
A81: 77 | B81: RN | C81: Rimini | D81: 5 | E81: 3.1 | F81: 4.9 | G81: 8.5 | H81: 12.4 | I81: 16.5 | J81: 20.8 | K81: 23.4 | L81: 22.7 | M81: 19.9 | N81: 15 | O81: 9.6 | P81: 5.3 | R81: 77 | S81: RN | T81: Rimini | U81: 5 | V81: 2 | W81: 2,3 | X81: NW | Z81: 77 | AA81: RN | AB81: Rimini | AC81: 5 | AD81: 44 | AE81: 03 | AF81: 12 | AG81: 34 | AH81: -5 | AJ81: 77 | AK81: RN | AL81: Rimini | AM81: 2,5 | AN81: 2,1 | AO81: 3,6 | AP81: 4,2 | AQ81: 5,1 | AR81: 7,6 | AS81: 6,7 | AT81: 10,2 | AU81: 7,6 | AV81: 14,1 | AW81: 7,9 | AX81: 16,3 | AY81: 7,0 | AZ81: 18,7 | BA81: 6,4 | BB81: 15,5 | BC81: 5,3 | BD81: 10,9 | BE81: 4,0 | BF81: 6,3 | BG81: 2,8 | BH81: 2,9 | BI81: 2,2 | BJ81: 1,9 | BK81: 77 | BL81: RIMINI | BM81: E | BN81: 183 | BO81: 2139 | BP81: 77 | BQ81: RIMINI | BR81: RN | BS81: 37 | BV81: 77 | BW81: RN | BX81: Rimini | BY81: 30,0
A82: 78 | B82: RM | C82: Roma | D82: 20 | E82: 7.6 | F82: 8.7 | G82: 11.4 | H82: 14.7 | I82: 18.5 | J82: 22.9 | K82: 25.7 | L82: 25.3 | M82: 22.4 | N82: 17.4 | O82: 12.6 | P82: 8.9 | R82: 78 | S82: RM | T82: Roma | U82: 20 | V82: 2 | W82: 2,6 | X82: SW | Z82: 78 | AA82: RM | AB82: Roma | AC82: 20 | AD82: 41 | AE82: 53 | AF82: 12 | AG82: 28 | AH82: 0 | AJ82: 78 | AK82: RM | AL82: Roma | AM82: 2,9 | AN82: 3,4 | AO82: 3,9 | AP82: 5,3 | AQ82: 5,3 | AR82: 8,4 | AS82: 6,7 | AT82: 12,2 | AU82: 7,3 | AV82: 16,3 | AW82: 7,5 | AX82: 18,2 | AY82: 6,6 | AZ82: 20,5 | BA82: 6,2 | BB82: 17,1 | BC82: 5,3 | BD82: 12,3 | BE82: 4,1 | BF82: 8,1 | BG82: 3,1 | BH82: 4,2 | BI82: 2,6 | BJ82: 2,8 | BK82: 78 | BL82: ROMA | BM82: D | BN82: 166 | BO82: 1415 | BP82: 78 | BQ82: ROMA | BR82: RM | BS82: 39.8 | BV82: 78 | BW82: RM | BX82: Roma | BY82: 33,8
A83: 79 | B83: RO | C83: Rovigo | D83: 7 | E83: 1.3 | F83: 3.6 | G83: 8.5 | H83: 13.4 | I83: 17.6 | J83: 22 | K83: 24.5 | L83: 23.8 | M83: 20.1 | N83: 14 | O83: 8.1 | P83: 3.1 | R83: 79 | S83: RO | T83: Rovigo | U83: 7 | V83: 1 | W83: 1,9 | X83: NE | Z83: 79 | AA83: RO | AB83: Rovigo | AC83: 7 | AD83: 45 | AE83: 04 | AF83: 11 | AG83: 47 | AH83: -5 | AJ83: 79 | AK83: RO | AL83: Rovigo | AM83: 2,3 | AN83: 1,6 | AO83: 3,5 | AP83: 3,9 | AQ83: 5,1 | AR83: 6,9 | AS83: 6,7 | AT83: 9,6 | AU83: 7,6 | AV83: 14,0 | AW83: 7,7 | AX83: 17,3 | AY83: 6,9 | AZ83: 19,0 | BA83: 6,3 | BB83: 15,7 | BC83: 5,4 | BD83: 9,7 | BE83: 4,0 | BF83: 5,1 | BG83: 2,6 | BH83: 2,2 | BI83: 2,1 | BJ83: 1,8 | BK83: 79 | BL83: ROVIGO | BM83: E | BN83: 183 | BO83: 2466 | BP83: 79 | BQ83: ROVIGO | BR83: RO | BS83: 38.9 | BV83: 79 | BW83: RO | BX83: Rovigo | BY83: 31,5
A84: 80 | B84: SA | C84: Salerno | D84: 4 | E84: 10.4 | F84: 11.3 | G84: 13.5 | H84: 16.5 | I84: 20.1 | J84: 23.9 | K84: 26.5 | L84: 26.6 | M84: 24.1 | N84: 19.9 | O84: 15.7 | P84: 12.2 | R84: 80 | S84: SA | T84: Salerno | U84: 4 | V84: 3 | W84: 1,8 | X84: SW | Z84: 80 | AA84: SA | AB84: Salerno | AC84: 4 | AD84: 40 | AE84: 40 | AF84: 14 | AG84: 46 | AH84: 2 | AJ84: 80 | AK84: SA | AL84: Salerno | AM84: 3,0 | AN84: 3,0 | AO84: 4,0 | AP84: 4,2 | AQ84: 5,5 | AR84: 6,4 | AS84: 7,0 | AT84: 8,7 | AU84: 8,0 | AV84: 11,7 | AW84: 8,2 | AX84: 14,6 | AY84: 7,6 | AZ84: 16,2 | BA84: 6,9 | BB84: 13,8 | BC84: 5,9 | BD84: 9,6 | BE84: 4,4 | BF84: 6,7 | BG84: 3,2 | BH84: 3,7 | BI84: 2,7 | BJ84: 2,6 | BK84: 80 | BL84: SALERNO | BM84: C | BN84: 137 | BO84: 994 | BP84: 80 | BQ84: SALERNO | BR84: SA | BS84: 48.8 | BV84: 80 | BW84: SA | BX84: Salerno | BY84: 31,2
A85: 81 | B85: SS | C85: Sassari | D85: 225 | E85: 8.7 | F85: 9.1 | G85: 11.3 | H85: 14 | I85: 16.8 | J85: 21.4 | K85: 24 | L85: 24.5 | M85: 22.1 | N85: 17.5 | O85: 13.5 | P85: 9.9 | R85: 81 | S85: SS | T85: Sassari | U85: 225 | V85: 4 | W85: 3,1 | X85: W | Z85: 81 | AA85: SS | AB85: Sassari | AC85: 225 | AD85: 40 | AE85: 43 | AF85: 8 | AG85: 33 | AH85: 2 | AJ85: 81 | AK85: SS | AL85: Sassari | AM85: 3,0 | AN85: 3,8 | AO85: 4,0 | AP85: 5,8 | AQ85: 5,4 | AR85: 8,8 | AS85: 6,7 | AT85: 12,3 | AU85: 7,2 | AV85: 16,9 | AW85: 7,2 | AX85: 19,4 | AY85: 6,1 | AZ85: 22,0 | BA85: 6,0 | BB85: 18,0 | BC85: 5,1 | BD85: 13,5 | BE85: 4,1 | BF85: 8,5 | BG85: 3,2 | BH85: 4,3 | BI85: 2,7 | BJ85: 3,1 | BK85: 81 | BL85: SASSARI | BM85: C | BN85: 137 | BO85: 1185 | BP85: 81 | BQ85: SASSARI | BR85: SS | BS85: 59.5 | BV85: 81 | BW85: SS | BX85: Sassari | BY85: 30,5
A86: 82 | B86: SV | C86: Savona | D86: 4 | E86: 6.6 | F86: 8.5 | G86: 11.4 | H86: 14.6 | I86: 18.1 | J86: 22.2 | K86: 24.9 | L86: 24.6 | M86: 21.9 | N86: 16.9 | O86: 11.9 | P86: 8.2 | R86: 82 | S86: SV | T86: Savona | U86: 4 | V86: 3 | W86: 2,2 | X86: E | Z86: 82 | AA86: SV | AB86: Savona | AC86: 4 | AD86: 44 | AE86: 18 | AF86: 8 | AG86: 18 | AH86: 0 | AJ86: 82 | AK86: SV | AL86: Savona | AM86: 2,6 | AN86: 2,9 | AO86: 3,6 | AP86: 4,7 | AQ86: 5,1 | AR86: 7,4 | AS86: 6,7 | AT86: 9,9 | AU86: 7,9 | AV86: 11,7 | AW86: 8,4 | AX86: 12,8 | AY86: 7,6 | AZ86: 16,1 | BA86: 6,9 | BB86: 12,5 | BC86: 5,5 | BD86: 9,6 | BE86: 4,0 | BF86: 6,3 | BG86: 2,8 | BH86: 3,4 | BI86: 2,3 | BJ86: 2,7 | BK86: 82 | BL86: SAVONA | BM86: D | BN86: 166 | BO86: 1481 | BP86: 82 | BQ86: SAVONA | BR86: SV | BS86: 63.2 | BV86: 82 | BW86: SV | BX86: Savona | BY86: 29,1
A87: 83 | B87: SI | C87: Siena | D87: 322 | E87: 4.8 | F87: 5.7 | G87: 9.1 | H87: 12.4 | I87: 16.3 | J87: 21 | K87: 24 | L87: 23.7 | M87: 20.2 | N87: 14.6 | O87: 9.8 | P87: 6 | R87: 83 | S87: SI | T87: Siena | U87: 322 | V87: 2 | W87: 2,0 | X87: NW | Z87: 83 | AA87: SI | AB87: Siena | AC87: 322 | AD87: 43 | AE87: 19 | AF87: 11 | AG87: 19 | AH87: -2 | AJ87: 83 | AK87: SI | AL87: Siena | AM87: 2,7 | AN87: 2,7 | AO87: 3,7 | AP87: 4,2 | AQ87: 5,2 | AR87: 6,5 | AS87: 6,8 | AT87: 9,2 | AU87: 7,8 | AV87: 12,6 | AW87: 8,0 | AX87: 15,2 | AY87: 7,4 | AZ87: 17,0 | BA87: 6,7 | BB87: 13,7 | BC87: 5,5 | BD87: 10,0 | BE87: 4,1 | BF87: 6,0 | BG87: 2,9 | BH87: 3,1 | BI87: 2,3 | BJ87: 2,0 | BK87: 83 | BL87: SIENA | BM87: D | BN87: 166 | BO87: 1943 | BP87: 83 | BQ87: SIENA | BR87: SI | BS87: 28.3 | BV87: 83 | BW87: SI | BX87: Siena | BY87: 31,3
A88: 84 | B88: SR | C88: Siracusa | D88: 17 | E88: 11.3 | F88: 11.5 | G88: 13.1 | H88: 15.4 | I88: 18.7 | J88: 23 | K88: 26.2 | L88: 26.4 | M88: 23.9 | N88: 20.1 | O88: 16.4 | P88: 12.9 | R88: 84 | S88: SR | T88: Siracusa | U88: 17 | V88: 3 | W88: 5,2 | X88: W | Z88: 84 | AA88: SR | AB88: Siracusa | AC88: 17 | AD88: 37 | AE88: 04 | AF88: 15 | AG88: 17 | AH88: 5 | AJ88: 84 | AK88: SR | AL88: Siracusa | AM88: 3,4 | AN88: 5,5 | AO88: 4,3 | AP88: 7,8 | AQ88: 5,4 | AR88: 11,6 | AS88: 6,4 | AT88: 15,4 | AU88: 6,7 | AV88: 19,3 | AW88: 6,8 | AX88: 20,9 | AY88: 6,3 | AZ88: 21,6 | BA88: 5,5 | BB88: 20,2 | BC88: 5,1 | BD88: 15,3 | BE88: 4,2 | BF88: 10,8 | BG88: 3,4 | BH88: 7,2 | BI88: 3,1 | BJ88: 4,7 | BK88: 84 | BL88: SIRACUSA | BM88: B | BN88: 121 | BO88: 799 | BP88: 84 | BQ88: SIRACUSA | BR88: SR | BS88: 59.8 | BV88: 84 | BW88: SR | BX88: Siracusa | BY88: 33,1
A89: 85 | B89: SO | C89: Sondrio | D89: 307 | E89: 0.5 | F89: 3.3 | G89: 8.2 | H89: 12.6 | I89: 16 | J89: 20 | K89: 22.3 | L89: 21.4 | M89: 18.1 | N89: 12.4 | O89: 6.6 | P89: 1.7 | R89: 85 | S89: SO | T89: Sondrio | U89: 307 | V89: 1 | W89: 0,8 | X89: E | Z89: 85 | AA89: SO | AB89: Sondrio | AC89: 307 | AD89: 46 | AE89: 10 | AF89: 9 | AG89: 52 | AH89: -10 | AJ89: 85 | AK89: SO | AL89: Sondrio | AM89: 2,3 | AN89: 3,2 | AO89: 3,2 | AP89: 5,7 | AQ89: 4,6 | AR89: 9,6 | AS89: 6,4 | AT89: 11,4 | AU89: 7,6 | AV89: 13,8 | AW89: 8,2 | AX89: 14,4 | AY89: 7,8 | AZ89: 14,6 | BA89: 6,7 | BB89: 13,4 | BC89: 5,1 | BD89: 10,8 | BE89: 3,7 | BF89: 6,4 | BG89: 2,5 | BH89: 4,2 | BI89: 2,0 | BJ89: 2,7 | BK89: 85 | BL89: SONDRIO | BM89: E | BN89: 183 | BO89: 2755 | BP89: 85 | BQ89: SONDRIO | BR89: SO | BS89: 38.7 | BV89: 85 | BW89: SO | BX89: Sondrio | BY89: 29,9
A90: 86 | B90: TA | C90: Taranto | D90: 15 | E90: 9.2 | F90: 9.7 | G90: 11.3 | H90: 14.5 | I90: 18.5 | J90: 23 | K90: 25.9 | L90: 25.8 | M90: 23 | N90: 18.7 | O90: 14.4 | P90: 10.9 | R90: 86 | S90: TA | T90: Taranto | U90: 15 | V90: 2 | W90: 5,1 | X90: N | Z90: 86 | AA90: TA | AB90: Taranto | AC90: 15 | AD90: 40 | AE90: 27 | AF90: 17 | AG90: 14 | AH90: 0 | AJ90: 86 | AK90: TA | AL90: Taranto | AM90: 3,0 | AN90: 3,8 | AO90: 4,0 | AP90: 5,9 | AQ90: 5,4 | AR90: 8,8 | AS90: 6,6 | AT90: 12,9 | AU90: 7,3 | AV90: 16,5 | AW90: 7,0 | AX90: 20,2 | AY90: 6,1 | AZ90: 22,0 | BA90: 5,9 | BB90: 18,3 | BC90: 5,3 | BD90: 13,0 | BE90: 4,2 | BF90: 8,4 | BG90: 3,2 | BH90: 4,7 | BI90: 2,7 | BJ90: 3,3 | BK90: 86 | BL90: TARANTO | BM90: C | BN90: 137 | BO90: 1071 | BP90: 86 | BQ90: TARANTO | BR90: TA | BS90: 41.7 | BV90: 86 | BW90: TA | BX90: Taranto | BY90: 33,0
A91: 87 | B91: TE | C91: Teramo | D91: 265 | E91: 5.1 | F91: 5.9 | G91: 9 | H91: 12.8 | I91: 16.8 | J91: 21.4 | K91: 24 | L91: 23.6 | M91: 20.4 | N91: 15.1 | O91: 10.4 | P91: 6.6 | R91: 87 | S91: TE | T91: Teramo | U91: 265 | V91: 1 | W91: 1,3 | X91: SW | Z91: 87 | AA91: TE | AB91: Teramo | AC91: 265 | AD91: 42 | AE91: 39 | AF91: 13 | AG91: 42 | AH91: 0 | AJ91: 87 | AK91: TE | AL91: Teramo | AM91: 2,8 | AN91: 2,8 | AO91: 3,8 | AP91: 4,6 | AQ91: 5,3 | AR91: 7,2 | AS91: 6,8 | AT91: 10,7 | AU91: 7,7 | AV91: 13,6 | AW91: 8,0 | AX91: 15,6 | AY91: 7,1 | AZ91: 18,6 | BA91: 6,3 | BB91: 16,2 | BC91: 5,6 | BD91: 10,4 | BE91: 4,2 | BF91: 6,6 | BG91: 3,0 | BH91: 3,6 | BI91: 2,5 | BJ91: 2,5 | BK91: 87 | BL91: TERAMO | BM91: D | BN91: 166 | BO91: 1834 | BP91: 87 | BQ91: TERAMO | BR91: TE | BS91: 39.8 | BV91: 87 | BW91: TE | BX91: Teramo | BY91: 33,0
A92: 88 | B92: TR | C92: Terni | D92: 130 | E92: 6.7 | F92: 7.6 | G92: 10.7 | H92: 13.6 | I92: 17.6 | J92: 22.3 | K92: 24.7 | L92: 24.3 | M92: 21.1 | N92: 16.4 | O92: 11.3 | P92: 6.6 | R92: 88 | S92: TR | T92: Terni | U92: 130 | V92: 2 | W92: 2,7 | X92: W | Z92: 88 | AA92: TR | AB92: Terni | AC92: 130 | AD92: 42 | AE92: 33 | AF92: 12 | AG92: 38 | AH92: -2 | AJ92: 88 | AK92: TR | AL92: Terni | AM92: 2,8 | AN92: 2,9 | AO92: 3,8 | AP92: 4,3 | AQ92: 5,3 | AR92: 7,2 | AS92: 6,9 | AT92: 8,4 | AU92: 7,9 | AV92: 12,0 | AW92: 8,3 | AX92: 13,5 | AY92: 7,6 | AZ92: 16,4 | BA92: 6,8 | BB92: 13,9 | BC92: 5,6 | BD92: 10,6 | BE92: 4,2 | BF92: 6,6 | BG92: 3,0 | BH92: 3,6 | BI92: 2,4 | BJ92: 2,3 | BK92: 88 | BL92: TERNI | BM92: D | BN92: 166 | BO92: 1650 | BP92: 88 | BQ92: TERNI | BR92: TR | BS92: 39.8 | BV92: 88 | BW92: TR | BX92: Terni | BY92: 32,8
A93: 89 | B93: TO | C93: Torino | D93: 239 | E93: 0.4 | F93: 3.2 | G93: 8.2 | H93: 12.7 | I93: 16.7 | J93: 21.1 | K93: 23.3 | L93: 22.6 | M93: 18.8 | N93: 12.6 | O93: 6.8 | P93: 2 | R93: 89 | S93: TO | T93: Torino | U93: 239 | V93: 1 | W93: 0,8 | X93: NE | Z93: 89 | AA93: TO | AB93: Torino | AC93: 239 | AD93: 45 | AE93: 07 | AF93: 7 | AG93: 43 | AH93: -8 | AJ93: 89 | AK93: TO | AL93: Torino | AM93: 2,5 | AN93: 2,5 | AO93: 3,5 | AP93: 4,3 | AQ93: 5,0 | AR93: 7,2 | AS93: 6,6 | AT93: 10,4 | AU93: 7,9 | AV93: 11,7 | AW93: 8,3 | AX93: 13,2 | AY93: 7,6 | AZ93: 15,9 | BA93: 7,0 | BB93: 11,5 | BC93: 5,6 | BD93: 7,9 | BE93: 4,0 | BF93: 5,3 | BG93: 2,7 | BH93: 2,8 | BI93: 2,1 | BJ93: 2,6 | BK93: 89 | BL93: TORINO | BM93: E | BN93: 183 | BO93: 2617 | BP93: 89 | BQ93: TORINO | BR93: TO | BS93: 44.4 | BV93: 89 | BW93: TO | BX93: Torino | BY93: 30,7
A94: 90 | B94: TP | C94: Trapani | D94: 3 | E94: 11 | F94: 11.5 | G94: 13.2 | H94: 15.8 | I94: 19.2 | J94: 23.3 | K94: 25.8 | L94: 26.2 | M94: 24 | N94: 19.9 | O94: 15.8 | P94: 12.4 | R94: 90 | S94: TP | T94: Trapani | U94: 3 | V94: 3 | W94: 6,8 | X94: NW | Z94: 90 | AA94: TP | AB94: Trapani | AC94: 3 | AD94: 38 | AE94: 01 | AF94: 12 | AG94: 32 | AH94: 5 | AJ94: 90 | AK94: TP | AL94: Trapani | AM94: 3,3 | AN94: 5,2 | AO94: 4,2 | AP94: 7,2 | AQ94: 5,4 | AR94: 11,0 | AS94: 6,4 | AT94: 15,1 | AU94: 6,5 | AV94: 20,0 | AW94: 6,4 | AX94: 22,3 | AY94: 5,8 | AZ94: 23,1 | BA94: 5,1 | BB94: 21,2 | BC94: 5,0 | BD94: 15,5 | BE94: 4,2 | BF94: 10,3 | BG94: 3,4 | BH94: 6,5 | BI94: 3,0 | BJ94: 4,4 | BK94: 90 | BL94: TRAPANI | BM94: B | BN94: 121 | BO94: 810 | BP94: 90 | BQ94: TRAPANI | BR94: TP | BS94: 59.8 | BV94: 90 | BW94: TP | BX94: Trapani | BY94: 31,6
A95: 91 | B95: TN | C95: Trento | D95: 194 | E95: 4.3 | F95: 7.3 | G95: 11.8 | H95: 16.5 | I95: 20 | J95: 24 | K95: 26.3 | L95: 25.5 | M95: 22.3 | N95: 16.4 | O95: 10.2 | P95: 5.7 | R95: 91 | S95: TN | T95: Trento | U95: 194 | V95: 1 | W95: 1,1 | X95: N | Z95: 91 | AA95: TN | AB95: Trento | AC95: 194 | AD95: 46 | AE95: 03 | AF95: 11 | AG95: 07 | AH95: -12 | AJ95: 91 | AK95: TN | AL95: Trento | AM95: 2,3 | AN95: 2,6 | AO95: 3,4 | AP95: 5,0 | AQ95: 4,7 | AR95: 9,0 | AS95: 6,5 | AT95: 11,2 | AU95: 7,7 | AV95: 13,2 | AW95: 8,1 | AX95: 15,1 | AY95: 7,3 | AZ95: 17,3 | BA95: 6,7 | BB95: 13,5 | BC95: 5,2 | BD95: 10,3 | BE95: 3,8 | BF95: 5,6 | BG95: 2,6 | BH95: 2,9 | BI95: 2,0 | BJ95: 2,1 | BK95: 91 | BL95: TRENTO | BM95: E | BN95: 183 | BO95: 2567 | BP95: 91 | BQ95: TRENTO | BR95: TN | BS95: 38.9 | BV95: 91 | BW95: TN | BX95: Trento | BY95: 31,6
A96: 92 | B96: TV | C96: Treviso | D96: 15 | E96: 2.8 | F96: 4.4 | G96: 8.4 | H96: 13.2 | I96: 17.1 | J96: 21.6 | K96: 23.8 | L96: 23.2 | M96: 19.8 | N96: 14 | O96: 8.2 | P96: 4.3 | R96: 92 | S96: TV | T96: Treviso | U96: 15 | V96: 2 | W96: 1,0 | X96: NE | Z96: 92 | AA96: TV | AB96: Treviso | AC96: 15 | AD96: 45 | AE96: 40 | AF96: 12 | AG96: 14 | AH96: -5 | AJ96: 92 | AK96: TV | AL96: Treviso | AM96: 2,3 | AN96: 2,2 | AO96: 3,4 | AP96: 4,5 | AQ96: 5,0 | AR96: 7,1 | AS96: 6,7 | AT96: 9,2 | AU96: 7,8 | AV96: 12,5 | AW96: 7,9 | AX96: 15,8 | AY96: 7,2 | AZ96: 17,3 | BA96: 6,5 | BB96: 14,6 | BC96: 5,4 | BD96: 9,8 | BE96: 3,9 | BF96: 5,7 | BG96: 2,5 | BH96: 2,3 | BI96: 2,0 | BJ96: 1,9 | BK96: 92 | BL96: TREVISO | BM96: E | BN96: 183 | BO96: 2378 | BP96: 92 | BQ96: TREVISO | BR96: TV | BS96: 51.8 | BV96: 92 | BW96: TV | BX96: Treviso | BY96: 31,0
A97: 93 | B97: TS | C97: Trieste | D97: 2 | E97: 4.9 | F97: 6.2 | G97: 9.4 | H97: 13.5 | I97: 17.7 | J97: 21.9 | K97: 24.2 | L97: 24 | M97: 20.7 | N97: 15.5 | O97: 10.6 | P97: 6.9 | R97: 93 | S97: TS | T97: Trieste | U97: 2 | V97: 3 | W97: 2,6 | X97: E | Z97: 93 | AA97: TS | AB97: Trieste | AC97: 2 | AD97: 45 | AE97: 39 | AF97: 13 | AG97: 47 | AH97: -5 | AJ97: 93 | AK97: TS | AL97: Trieste | AM97: 2,4 | AN97: 1,9 | AO97: 3,5 | AP97: 3,7 | AQ97: 5,0 | AR97: 6,1 | AS97: 6,7 | AT97: 8,9 | AU97: 7,8 | AV97: 12,2 | AW97: 8,4 | AX97: 13,1 | AY97: 7,7 | AZ97: 15,6 | BA97: 6,7 | BB97: 13,3 | BC97: 5,4 | BD97: 9,4 | BE97: 3,9 | BF97: 5,7 | BG97: 2,6 | BH97: 2,5 | BI97: 2,1 | BJ97: 1,8 | BK97: 93 | BL97: TRIESTE | BM97: D | BN97: 166 | BO97: 1929 | BP97: 93 | BQ97: TRIESTE | BR97: TS | BS97: 57.5 | BV97: 93 | BW97: TS | BX97: Trieste | BY97: 31,1
A98: 94 | B98: UD | C98: Udine | D98: 113 | E98: 3.5 | F98: 5 | G98: 8.6 | H98: 13.3 | I98: 17.3 | J98: 21.1 | K98: 23.3 | L98: 23.1 | M98: 19.8 | N98: 14.2 | O98: 8.7 | P98: 4.8 | R98: 94 | S98: UD | T98: Udine | U98: 113 | V98: 1 | W98: 1,7 | X98: NE | Z98: 94 | AA98: UD | AB98: Udine | AC98: 113 | AD98: 46 | AE98: 03 | AF98: 13 | AG98: 14 | AH98: -5 | AJ98: 94 | AK98: UD | AL98: Udine | AM98: 2,3 | AN98: 2,1 | AO98: 3,4 | AP98: 3,6 | AQ98: 5,0 | AR98: 5,9 | AS98: 6,7 | AT98: 8,6 | AU98: 7.9 | AV98: 11,1 | AW98: 8,4 | AX98: 11,8 | AY98: 7,9 | AZ98: 14,1 | BA98: 6,9 | BB98: 12,0 | BC98: 5,5 | BD98: 8,6 | BE98: 3,8 | BF98: 5,6 | BG98: 2,6 | BH98: 2,4 | BI98: 2,0 | BJ98: 2,0 | BK98: 94 | BL98: UDINE | BM98: E | BN98: 183 | BO98: 2323 | BP98: 94 | BQ98: UDINE | BR98: UD | BS98: 57.5 | BV98: 94 | BW98: UD | BX98: Udine | BY98: 31,4
A99: 95 | B99: VA | C99: Varese | D99: 382 | E99: 1.2 | F99: 1.9 | G99: 6 | H99: 10.4 | I99: 14 | J99: 17.7 | K99: 20.5 | L99: 19.6 | M99: 16.4 | N99: 11.2 | O99: 5.3 | P99: 1.9 | R99: 95 | S99: VA | T99: Varese | U99: 382 | V99: 1 | W99: 1,3 | X99: N | Z99: 95 | AA99: VA | AB99: Varese | AC99: 382 | AD99: 45 | AE99: 49 | AF99: 8 | AG99: 49 | AH99: -5 | AJ99: 95 | AK99: VA | AL99: Varese | AM99: 2,4 | AN99: 2,6 | AO99: 3,4 | AP99: 3,9 | AQ99: 5,0 | AR99: 6,4 | AS99: 6,7 | AT99: 8,7 | AU99: 7,9 | AV99: 11,2 | AW99: 8,4 | AX99: 12,1 | AY99: 8,0 | AZ99: 14,0 | BA99: 7,0 | BB99: 11,2 | BC99: 5,5 | BD99: 8,2 | BE99: 3,9 | BF99: 5,1 | BG99: 2,6 | BH99: 3,0 | BI99: 2,1 | BJ99: 2,6 | BK99: 95 | BL99: VARESE | BM99: E | BN99: 183 | BO99: 2652 | BP99: 95 | BQ99: VARESE | BR99: VA | BS99: 38.7 | BV99: 95 | BW99: VA | BX99: Varese | BY99: 29,0
A100: 96 | B100: VE | C100: Venezia | D100: 1 | E100: 3.3 | F100: 4.8 | G100: 8.6 | H100: 13.2 | I100: 17.3 | J100: 21.3 | K100: 23.6 | L100: 23.4 | M100: 20.4 | N100: 14.9 | O100: 9.5 | P100: 5 | R100: 96 | S100: VE | T100: Venezia | U100: 1 | V100: 3 | W100: 2,6 | X100: NE | Z100: 96 | AA100: VE | AB100: Venezia | AC100: 1 | AD100: 45 | AE100: 26 | AF100: 12 | AG100: 20 | AH100: -5 | AJ100: 96 | AK100: VE | AL100: Venezia | AM100: 2.4 | AN100: 2,1 | AO100: 3,5 | AP100: 4,6 | AQ100: 5,0 | AR100: 7,5 | AS100: 6,6 | AT100: 10,3 | AU100: 7,6 | AV100: 14,3 | AW100: 7,5 | AX100: 18,3 | AY100: 6,4 | AZ100: 20,7 | BA100: 6,2 | BB100: 15,9 | BC100: 5,3 | BD100: 10,5 | BE100: 3,9 | BF100: 5,9 | BG100: 2,6 | BH100: 2,7 | BI100: 2,1 | BJ100: 2,0 | BK100: 96 | BL100: VENEZIA | BM100: E | BN100: 183 | BO100: 2345 | BP100: 96 | BQ100: VENEZIA | BR100: VE | BS100: 51.8 | BV100: 96 | BW100: VE | BX100: Venezia | BY100: 31,0
A101: 97 | B101: VB | C101: Verbania | D101: 197 | E101: 2.9 | F101: 4.6 | G101: 8.5 | H101: 12.6 | I101: 16.6 | J101: 20.8 | K101: 23.3 | L101: 22.6 | M101: 19.3 | N101: 13.5 | O101: 8.1 | P101: 4.2 | R101: 97 | S101: VB | T101: Verbania | U101: 197 | V101: 1 | W101: 0,9 | X101: S | Z101: 97 | AA101: VB | AB101: Verbania | AC101: 197 | AD101: 45 | AE101: 55 | AF101: 8 | AG101: 33 | AH101: -5 | AJ101: 97 | AK101: VB | AL101: Verbania | AM101: 2,4 | AN101: 2,8 | AO101: 3,4 | AP101: 4,0 | AQ101: 5,0 | AR101: 6,4 | AS101: 6,6 | AT101: 10,3 | AU101: 7,9 | AV101: 10,3 | AW101: 8,2 | AX101: 13,8 | AY101: 7,7 | AZ101: 15,5 | BA101: 7,0 | BB101: 11,3 | BC101: 5,4 | BD101: 8,9 | BE101: 3,9 | BF101: 5,2 | BG101: 2,6 | BH101: 3,3 | BI101: 2,1 | BJ101: 2,6 | BK101: 97 | BL101: VERBANIA | BM101: E | BN101: 183 | BO101: 2426 | BP101: 97 | BQ101: VERBANIA | BR101: VB | BS101: 44.4 | BV101: 97 | BW101: VB | BX101: Verbania | BY101: 30,0
A102: 98 | B102: VC | C102: Vercelli | D102: 130 | E102: 0.2 | F102: 2.9 | G102: 7.7 | H102: 12.5 | I102: 17.2 | J102: 21.7 | K102: 23.8 | L102: 22.8 | M102: 18.7 | N102: 12.7 | O102: 6.5 | P102: 1.8 | R102: 98 | S102: VC | T102: Vercelli | U102: 130 | V102: 1 | W102: 0,8 | X102: N | Z102: 98 | AA102: VC | AB102: Vercelli | AC102: 130 | AD102: 45 | AE102: 19 | AF102: 8 | AG102: 25 | AH102: -7 | AJ102: 98 | AK102: VC | AL102: Vercelli | AM102: 2,4 | AN102: 1,8 | AO102: 3,5 | AP102: 3,6 | AQ102: 5,1 | AR102: 6,7 | AS102: 6,6 | AT102: 10,1 | AU102: 7,8 | AV102: 12,3 | AW102: 8,3 | AX102: 13,6 | AY102: 7,4 | AZ102: 17,0 | BA102: 6,8 | BB102: 12,8 | BC102: 5,5 | BD102: 8,6 | BE102: 4,0 | BF102: 4,4 | BG102: 2,6 | BH102: 2,2 | BI102: 2,0 | BJ102: 1,5 | BK102: 98 | BL102: VERCELLI | BM102: E | BN102: 183 | BO102: 2751 | BP102: 98 | BQ102: VERCELLI | BR102: VC | BS102: 38.7 | BV102: 98 | BW102: VC | BX102: Vercelli | BY102: 32,0
A103: 99 | B103: VR | C103: Verona | D103: 59 | E103: 2.4 | F103: 4.9 | G103: 9.3 | H103: 13.7 | I103: 17.4 | J103: 21.7 | K103: 23.8 | L103: 23.6 | M103: 20.2 | N103: 14.7 | O103: 8.5 | P103: 4.3 | R103: 99 | S103: VR | T103: Verona | U103: 59 | V103: 1 | W103: 0,9 | X103: E | Z103: 99 | AA103: VR | AB103: Verona | AC103: 59 | AD103: 45 | AE103: 26 | AF103: 10 | AG103: 59 | AH103: -5 | AJ103: 99 | AK103: VR | AL103: Verona | AM103: 2,3 | AN103: 1,8 | AO103: 3,5 | AP103: 3,6 | AQ103: 5,1 | AR103: 5,9 | AS103: 6,7 | AT103: 8,0 | AU103: 7,9 | AV103: 11,0 | AW103: 8,4 | AX103: 12,3 | AY103: 8,0 | AZ103: 13,6 | BA103: 7,0 | BB103: 11,6 | BC103: 5,5 | BD103: 8,8 | BE103: 3,9 | BF103: 5,5 | BG103: 2,6 | BH103: 2,4 | BI103: 2,1 | BJ103: 2,1 | BK103: 99 | BL103: VERONA | BM103: E | BN103: 166 | BO103: 2468 | BP103: 99 | BQ103: VERONA | BR103: VR | BS103: 38.9 | BV103: 99 | BW103: VR | BX103: Verona | BY103: 31,6
A104: 100 | B104: VI | C104: Vicenza | D104: 39 | E104: 2.4 | F104: 4.2 | G104: 8.5 | H104: 12.9 | I104: 17 | J104: 21.3 | K104: 23.6 | L104: 23 | M104: 19.6 | N104: 13.9 | O104: 8.5 | P104: 4.1 | R104: 100 | S104: VI | T104: Vicenza | U104: 39 | V104: 1 | W104: 1,3 | X104: E | Z104: 100 | AA104: VI | AB104: Vicenza | AC104: 39 | AD104: 45 | AE104: 32 | AF104: 11 | AG104: 32 | AH104: -5 | AJ104: 100 | AK104: VI | AL104: Vicenza | AM104: 2,3 | AN104: 2,3 | AO104: 3,4 | AP104: 4,0 | AQ104: 5,0 | AR104: 6,8 | AS104: 6,6 | AT104: 8,7 | AU104: 7,8 | AV104: 11,6 | AW104: 8,3 | AX104: 13,1 | AY104: 7,9 | AZ104: 14,2 | BA104: 6,8 | BB104: 12,7 | BC104: 5,4 | BD104: 9,3 | BE104: 3,8 | BF104: 5,5 | BG104: 2,5 | BH104: 2,9 | BI104: 2,0 | BJ104: 2,4 | BK104: 100 | BL104: VICENZA | BM104: E | BN104: 183 | BO104: 2371 | BP104: 100 | BQ104: VICENZA | BR104: VI | BS104: 38.9 | BV104: 100 | BW104: VI | BX104: Vicenza | BY104: 32,6
A105: 101 | B105: VT | C105: Viterbo | D105: 326 | E105: 5.7 | F105: 6.6 | G105: 9.4 | H105: 12.7 | I105: 16.9 | J105: 21.8 | K105: 24.8 | L105: 24 | M105: 20.7 | N105: 15.9 | O105: 11.3 | P105: 7.5 | R105: 101 | S105: VT | T105: Viterbo | U105: 326 | V105: 2 | W105: 4,0 | X105: NE | Z105: 101 | AA105: VT | AB105: Viterbo | AC105: 326 | AD105: 42 | AE105: 25 | AF105: 12 | AG105: 06 | AH105: -2 | AJ105: 101 | AK105: VT | AL105: Viterbo | AM105: 2,8 | AN105: 3,1 | AO105: 3,8 | AP105: 4,7 | AQ105: 5,3 | AR105: 7,6 | AS105: 6,8 | AT105: 9,4 | AU105: 7,7 | AV105: 13,2 | AW105: 8,1 | AX105: 14,8 | AY105: 7.4 | AZ105: 17,4 | BA105: 6,6 | BB105: 14,7 | BC105: 5,5 | BD105: 11.2 | BE105: 4,1 | BF105: 7,2 | BG105: 3,0 | BH105: 3,9 | BI105: 2,4 | BJ105: 2,6 | BK105: 101 | BL105: VITERBO | BM105: D | BN105: 166 | BO105: 1989 | BP105: 101 | BQ105: VITERBO | BR105: VT | BS105: 39.8 | BV105: 101 | BW105: VT | BX105: Viterbo | BY105: 31,0

Sheet cashflow (hidden)
C19: Anno | D19: 1 | E19: 2 | F19: 3 | G19: 4 | H19: 5 | I19: 6 | J19: 7 | K19: 8 | L19: 9 | M19: 10
C20: Costi attualizz. (manutenzione) | D20: =manut*(1+tasso/100)^D19 -> 0 | E20: 0 | F20: 0 | G20: 0 | H20: 0 | I20: 0 | J20: 0 | K20: 0 | L20: 0 | M20: 0
C21: Risparmi combust. (attualizz.) | D21: =+ammortamento!$C$18 -> 204.85 | E21: =$D$21*(1+tasso/100)^E19 -> 221.56576 | F21: 230.4283904 | G21: 239.645526 | H21: 249.2313471 | I21: 259.2006009 | J21: 269.568625 | K21: 280.35137 | L21: 291.5654248 | M21: 303.2280418
C22: Risparmio netto R-C | D22: =D21-D20 -> 204.85 | E22: 221.56576 | F22: 230.4283904 | G22: 239.645526 | H22: 249.2313471 | I22: 259.2006009 | J22: 269.568625 | K22: 280.35137 | L22: 291.5654248 | M22: 303.2280418
C24: Risparmio cumul. | D24: =D22 -> 204.85 | E24: =D24+E22 -> 426.41576 | F24: 656.8441504 | G24: 896.4896764 | H24: 1145.721023 | I24: 1404.921624 | J24: 1674.490249 | K24: 1954.841619 | L24: 2246.407044 | M24: 2549.635086
C25: Detrazioni | D25: =+incentivi!E35 -> 393.96 | E25: =+incentivi!E36 -> 393.96 | F25: =incentivi!E37 -> 0 | G25: =+incentivi!E38 -> 0 | H25: =+incentivi!E39 -> 0 | I25: =+incentivi!E40 -> 0 | J25: =+incentivi!E41 -> 0 | K25: =+incentivi!E42 -> 0 | L25: =+incentivi!E43 -> 0 | M25: =+incentivi!E44 -> 0
C26: Detrazioni cumul. | D26: =+D25 -> 393.96 | E26: =+D26+E25 -> 787.92 | F26: 787.92 | G26: 787.92 | H26: 787.92 | I26: 787.92 | J26: 787.92 | K26: 787.92 | L26: 787.92 | M26: 787.92
C28: Pay back | D28: =(-costo2)+D24+D26 -> -6401.19 | E28: -5785.66424 | F28: -5555.23585 | G28: -5315.590324 | H28: -5066.358977 | I28: -4807.158376 | J28: -4537.589751 | K28: -4257.238381 | L28: -3965.672956 | M28: -3662.444914 | N28: =+D39 -> -3347.087751 | O28: -3019.116301 | P28: -2678.025993 | Q28: -2323.292072 | R28: -1954.368795 | S28: -1570.688587 | T28: -1171.661171 | U28: -756.6726574 | V28: -325.0846037 | W28: 123.7669721
C30: Anno | D30: 11 | E30: 12 | F30: 13 | G30: 14 | H30: 15 | I30: 16 | J30: 17 | K30: 18 | L30: 19 | M30: 20
C31: Costi attualizz. (manutenzione) | D31: =manut*(1+tasso/100)^D30 -> 0 | E31: 0 | F31: 0 | G31: 0 | H31: 0 | I31: 0 | J31: 0 | K31: 0 | L31: 0 | M31: 0
C32: Risparmi combust. (attualizz.) | D32: =$D$21*(1+tasso/100)^D30 -> 315.3571634 | E32: 327.97145 | F32: 341.090308 | G32: 354.7339203 | H32: 368.9232771 | I32: 383.6802082 | J32: 399.0274165 | K32: 414.9885132 | L32: 431.5880537 | M32: 448.8515759
C33: Risparmio netto R-C | D33: =D32-D31 -> 315.3571634 | E33: 327.97145 | F33: 341.090308 | G33: 354.7339203 | H33: 368.9232771 | I33: 383.6802082 | J33: 399.0274165 | K33: 414.9885132 | L33: 431.5880537 | M33: 448.8515759
C35: Risparmio cumul. | D35: =M24+D33 -> 2864.992249 | E35: =D35+E33 -> 3192.963699 | F35: 3534.054007 | G35: 3888.787928 | H35: 4257.711205 | I35: 4641.391413 | J35: 5040.418829 | K35: 5455.407343 | L35: 5886.995396 | M35: 6335.846972
C36: Detrazioni
C37: Detrazioni cumul. | D37: =+M26+D36 -> 787.92 | E37: =+D37+E36 -> 787.92 | F37: 787.92 | G37: 787.92 | H37: 787.92 | I37: 787.92 | J37: 787.92 | K37: 787.92 | L37: 787.92 | M37: 787.92
C39: Pay back | D39: =(-costo2)+D35+D37 -> -3347.087751 | E39: -3019.116301 | F39: -2678.025993 | G39: -2323.292072 | H39: -1954.368795 | I39: -1570.688587 | J39: -1171.661171 | K39: -756.6726574 | L39: -325.0846037 | M39: 123.7669721
